{"text_format":"1","workbook":"xlsx","n_sheets":1,"sheets":["Blad1"],"not_rendered":{"charts":0,"images":8,"macros":1,"external_links":0,"defined_names":1,"comments":0,"pivot_tables":0},"unopened":[],"bounds":{"document_bytes":16777216,"sheet_cells":100000,"rows_first":2000,"rows_last":500,"rows_between":2000,"halvings":0,"cell_chars":16384,"cell_head_chars":4096},"cells_cut":0,"cells_raw":0,"read":"whole","date_system":"1900"}

{"sheet":"Blad1","index":0,"n_rows":1001,"n_cols":59,"rows_kept":1001,"cut":false,"hidden":false,"merged":[[3,31,3,40],[3,42,3,51],[1,29,4,29],[1,57,4,57],[5,56,5,57]]}
[null,null,null,null,null,"GFL 4.6",null,16,null,17,null,17,null,17,null,17,null,17,null,18,null,19,null,20]
[null,null,null,"vul aan ->           naam van je school",null,"ICT Co",null,4,null,5,null,5,null,5,null,5,null,5,null,1,null,6,null,7,null,null,null,null,null,null,null,null,null,null,null,null,null,null,null,null,null,null,null,null,null,null,null,null,null,null,null,null,null,null,null,null,null,"Leerplannen 2de graad"]
[null,null,null,"vul aan ->           studiedomein…",null,null,null,null,null,"K1/K2",null,"K4/K5",null,"K7",null,"K8",null,"K6",null,"K3",null,null,null,null,null,null,null,null,null,null,null,"sep","okt","nov","dec","jan","feb","maa","apr","mei ","jun",null,"sep","okt","nov","dec","jan","feb","maa","apr","mei ","jun"]
[null,null,null,"vul aan ->           …",null,null,null,{"$f":"COUNTIF(H6:H1001,BD7)","v":0},null,{"$f":"COUNTIF(J6:J1001,BD8)","v":0},null,{"$f":"COUNTIF(L6:L1001,BD9)","v":0},null,{"$f":"COUNTIF(N6:N1001,BD10)","v":0},null,{"$f":"COUNTIF(P6:P1001,BD11)","v":0},null,{"$f":"COUNTIF(R6:R1001,BD12)","v":0},null,{"$f":"COUNTIF(T6:T1001,BD13)","v":0},null,{"$f":"COUNTIF(V6:V1001,BD14)","v":0},null,{"$f":"COUNTIF(X6:X1001,BD15)","v":0},null,null,null,null,null,null,null," schooljaar 2023-2024        leerjaar 1 van de 2de  graad",null,null,null,null,null,null,null,null,null,null," schooljaar 2024-2025        leerjaar 2 van de 2de  graad"]
[null,null,null,"leerplannen          -         vakken"]
[null,null,null,"Aardrijkskunde B - 2de graad - D-finaliteit",null,{"$f":"9-(I6+K6+M6+O6+Q6+S6+U6++Y6+W6)","v":0},null,null,{"$f":"COUNTBLANK(H6)","v":1},null,{"$f":"COUNTBLANK(J6)","v":1},null,{"$f":"COUNTBLANK(L6)","v":1},null,{"$f":"COUNTBLANK(N6)","v":1},null,{"$f":"COUNTBLANK(P6)","v":1},null,{"$f":"COUNTBLANK(R6)","v":1},null,{"$f":"COUNTBLANK(T6)","v":1},null,{"$f":"COUNTBLANK(V6)","v":1},null,{"$f":"COUNTBLANK(X6)","v":1},null,"d","x","12 en 11",{"$f":"D6","v":"Aardrijkskunde B - 2de graad - D-finaliteit"},"d",null,null,null,null,null,null,null,null,null,null,0,null,null,"AOE",null,null,null,null,null,null,null,null,null,null,null,"           aantal keer dait in een leerplan aandacht is voor een ICT-doel"]
[null,null,null,"Architecturale en beeldende kunsten - 2de graad - D/A-finaliteit",null,0,null,null,1,null,1,null,1,null,1,null,1,null,1,null,1,null,1,null,1,null,"d","x",null,"Architecturale en beeldende kunsten - 2de graad - D/A-finaliteit","d",null,null,null,null,null,null,null,null,null,null,0,null,null,null,null,null,null,null,null,null,null,null,null,6,"LPD 4 ICTco - LPD 16 GFL -> Digitaal communiceren",{"$f":"COUNTIF($D$6:$D$1001,BF7)","v":0},"Aardrijkskunde B - 2de graad - D/A-finaliteit",1]
[null,null,null,"Bakkerij - 2de graad - A-finaliteit",null,0,null,null,1,null,1,null,1,null,1,null,1,null,1,null,1,null,1,null,1,"x","d","x","3, 4 en 5","Bakkerij - 2de graad - A-finaliteit","d",null,null,"A","O",null,null,null,null,null,null,0,null,null,null,null,null,null,null,null,null,null,null,null,7,"LPD 5 ICTco (K1/K2) - LPD 17 GFL -> Digitale inhouden creëren TEKST",1,"Aardrijkskunde B - 2de graad - D-finaliteit",2]
[null,null,null,"Bakkerij - 2de graad - A-finaliteit",null,0,null,null,1,null,1,null,1,null,1,null,1,null,1,null,1,null,1,null,1,null,"d","x",null,"Bakkerij - 2de graad - A-finaliteit","d",null,null,null,null,null,null,null,null,null,null,0,null,null,null,null,null,null,null,null,null,null,null,null,8,"LPD 5 ICTco (K4/K5) - LPD 17 GFL -> Digitale inhouden creëren CIJFER",1,"Architecturale en beeldende kunsten - 2de graad - D/A-finaliteit",3]
[null,null,null,"Economie' - 2de graad - D-finaliteit",null,0,null,null,1,null,1,null,1,null,1,null,1,null,1,null,1,null,1,null,1,"x","d","x",7,"Economie' - 2de graad - D-finaliteit","d",null,"A","AO",null,null,"OE",null,null,null,null,0,null,null,null,null,"O","O","OE","E",null,null,null,null,9,"LPD 5 ICTco (K7) - LPD 17 GFL -> Digitale inhouden creëren GELUID en BEELD",0,"Architecturale en beeldende vorming - 2de graad - D-finaliteit",4]
[null,null,null,"Economie' - 2de graad - D-finaliteit",null,0,null,null,1,null,1,null,1,null,1,null,1,null,1,null,1,null,1,null,1,"x","d","x",null,"Economie' - 2de graad - D-finaliteit","d",null,null,null,null,null,null,null,null,null,null,0,null,null,null,null,null,null,null,null,null,null,null,null,10,"LPD 5 ICTco (K8) - LPD 17 GFL -> Digitale inhouden creëren COMPATIBEL",0,"Artistiek-creatieve bewerkingen - 2de graad - A-finaliteit",5]
[null,null,null,null,null,0,null,null,1,null,1,null,1,null,1,null,1,null,1,null,1,null,1,null,1,null,"d","x",null,0,"d",null,null,null,null,null,null,null,null,null,null,0,null,null,null,null,null,null,null,null,null,null,null,null,11,"LPD 5 ICTco (K6) - LPD 17 GFL -> Digitale inhouden creëren PRESENTATIE",0,"Artistieke vorming Co - 2de graad - D-D/A-A-finaliteit",6]
[null,null,null,null,null,0,null,null,1,null,1,null,1,null,1,null,1,null,1,null,1,null,1,null,1,"x","d","x",null,0,"d",null,null,null,null,null,null,null,null,null,null,0,null,null,null,null,null,null,null,null,null,null,null,null,12,"LPD 1 ICTco (K3) - LPD 18 GFL -> Beheren",2,"Bakkerij - 2de graad - A-finaliteit",7]
[null,null,null,null,null,0,null,null,1,null,1,null,1,null,1,null,1,null,1,null,1,null,1,null,1,null,"d","x",null,0,"d",null,null,null,null,null,null,null,null,null,null,0,null,null,null,null,null,null,null,null,null,null,null,null,13,"LPD 6 ICTco - LPD 19 GFL -> Respecteren",0,"Bakkerijtechnieken - 2de graad - D/A-finaliteit",8]
[null,null,null,null,null,0,null,null,1,null,1,null,1,null,1,null,1,null,1,null,1,null,1,null,1,"x","d","x",null,0,"d",null,null,null,null,null,null,null,null,null,null,0,null,null,null,null,null,null,null,null,null,null,null,null,14,"LPD 7 ICTco - LPD 20 GFL -> Impact",0,"Bandenmonteur S - 2de graad - A-finaliteit",9]
[null,null,null,null,null,0,null,null,1,null,1,null,1,null,1,null,1,null,1,null,1,null,1,null,1,null,"d","x",null,0,"d",null,null,null,null,null,null,null,null,null,null,0,null,null,null,null,null,null,null,null,null,null,null,null,null,null,0,"Bedrijfseconomie - 2de graad - D/A-finaliteit",10]
[null,null,null,null,null,0,null,null,1,null,1,null,1,null,1,null,1,null,1,null,1,null,1,null,1,"x","d","x",null,0,"d",null,null,null,null,null,null,null,null,null,null,0,null,null,null,null,null,null,null,null,null,null,null,null,null,null,0,"Beeldende en audiovisuele kunsten - 2de graad - D/A-finaliteit",11]
[null,null,null,null,null,0,null,null,1,null,1,null,1,null,1,null,1,null,1,null,1,null,1,null,1,"x","d","x",null,0,"d",null,null,null,null,null,null,null,null,null,null,0,null,null,null,null,null,null,null,null,null,null,null,null,null,null,0,"Beeldende en audiovisuele vorming - 2de graad - D-finaliteit",12]
[null,null,null,null,null,0,null,null,1,null,1,null,1,null,1,null,1,null,1,null,1,null,1,null,1,null,"d","x",null,0,"d",null,null,null,null,null,null,null,null,null,null,0,null,null,null,null,null,null,null,null,null,null,null,null,null,null,0,"Bestuurder interne transportmiddelen - 2de graad - A-finaliteit",13]
[null,null,null,null,null,0,null,null,1,null,1,null,1,null,1,null,1,null,1,null,1,null,1,null,1,null,"d","x",null,0,"d",null,null,null,null,null,null,null,null,null,null,0,null,null,null,null,null,null,null,null,null,null,null,"oranje","A","kies 'A'      ->  aanleren",0,"Biologie - 2de graad - D-finaliteit",14]
[null,null,null,null,null,null,null,null,1,null,1,null,1,null,1,null,1,null,1,null,1,null,1,null,1,null,"d","x",null,null,"d",null,null,null,null,null,null,null,null,null,null,0,null,null,null,null,null,null,null,null,null,null,null,"groen","O","kies 'O'      ->  oefenen",0,"Biologie-chemie - 2de graad - D-finaliteit",15]
[null,null,null,null,null,{"$f":"9-(I22+K22+M22+O22+Q22+S22+U22++Y22+W22)","v":0},null,null,1,null,1,null,1,null,1,null,1,null,1,null,1,null,1,null,1,null,"d","x",null,{"$f":"D22","v":0},"d",null,null,null,null,null,null,null,null,null,null,0,null,null,null,null,null,null,null,null,null,null,null,"rood","E","kies 'E'       ->  evalueren",0,"Biotechnieken B+S - 2de graad - D/A-finaliteit",16]
[null,null,null,null,null,0,null,null,1,null,1,null,1,null,1,null,1,null,1,null,1,null,1,null,1,null,"d","x",null,0,"d",null,null,null,null,null,null,null,null,null,null,0,null,null,null,null,null,null,null,null,null,null,null,"oranje + groen","AO","kies 'AO'    -> aanleren + oefenen",0,"Biotechnologische STEM-wetenschappen B+S - 2de graad - D-finaliteit",17]
[null,null,null,null,null,0,null,null,1,null,1,null,1,null,1,null,1,null,1,null,1,null,1,null,1,null,"d","x",null,0,"d",null,null,null,null,null,null,null,null,null,null,0,null,null,null,null,null,null,null,null,null,null,null,"groen + rood","OE","kies 'OE'    -> oefenen + evalueren",0,"Biotechnologische wetenschappen B+S - 2de graad - D-finaliteit",18]
[null,null,null,null,null,0,null,null,1,null,1,null,1,null,1,null,1,null,1,null,1,null,1,null,1,null,"d","x",null,0,"d",null,null,null,null,null,null,null,null,null,null,0,null,null,null,null,null,null,null,null,null,null,null,"blauw geel","AOE","kies 'AOE'  -> aanleren + oefenen + evalueren",0,"Bouw - 2de graad - A-finaliteit",19]
[null,null,null,null,null,0,null,null,1,null,1,null,1,null,1,null,1,null,1,null,1,null,1,null,1,null,"d","x",null,0,"d",null,null,null,null,null,null,null,null,null,null,0,null,null,null,null,null,null,null,null,null,null,null,null,null,null,0,"Bouwtechnieken B+S - 2de graad - D/A-finaliteit",20]
[null,null,null,null,null,0,null,null,1,null,1,null,1,null,1,null,1,null,1,null,1,null,1,null,1,null,"d","x",null,0,"d",null,null,null,null,null,null,null,null,null,null,0,null,null,null,null,null,null,null,null,null,null,null,null,null,null,0,"Bouwwetenschappen B+S - 2de graad - D-finaliteit",21]
[null,null,null,null,null,0,null,null,1,null,1,null,1,null,1,null,1,null,1,null,1,null,1,null,1,null,"d","x",null,0,"d",null,null,null,null,null,null,null,null,null,null,0,null,null,null,null,null,null,null,null,null,null,null,null,null," schooljaar 2023-2024        leerjaar 1 van de 2de  graad",0,"Cementgebonden voeger - 2de graad - A-finaliteit",22]
[null,null,null,null,null,0,null,null,1,null,1,null,1,null,1,null,1,null,1,null,1,null,1,null,1,null,"d","x",null,0,"d",null,null,null,null,null,null,null,null,null,null,0,null,null,null,null,null,null,null,null,null,null,null,null,null," schooljaar 2024-2025        leerjaar 1 van de 2de  graad",0,"Communicatiewetenschappen en taaltechnologie - 2de graad - D-finaliteit",23]
[null,null,null,null,null,0,null,null,1,null,1,null,1,null,1,null,1,null,1,null,1,null,1,null,1,null,"d","x",null,0,"d",null,null,null,null,null,null,null,null,null,null,0,null,null,null,null,null,null,null,null,null,null,null,null,null," schooljaar 2025-2026        leerjaar 1 van de 2de  graad",0,"Creatie en mode - 2de graad - D/A-finaliteit",24]
[null,null,null,null,null,0,null,null,1,null,1,null,1,null,1,null,1,null,1,null,1,null,1,null,1,null,"d","x",null,0,"d",null,null,null,null,null,null,null,null,null,null,0,null,null,null,null,null,null,null,null,null,null,null,null,null," schooljaar 2026-2027        leerjaar 1 van de 2de  graad",0,"Dans - 2de graad - D-finaliteit",25]
[null,null,null,null,null,0,null,null,1,null,1,null,1,null,1,null,1,null,1,null,1,null,1,null,1,null,"d","x",null,0,"d",null,null,null,null,null,null,null,null,null,null,0,null,null,null,null,null,null,null,null,null,null,null,null,null," schooljaar 2027-2028        leerjaar 1 van de 2de  graad",0,"Decor en etalage - 2de graad - A-finaliteit",26]
[null,null,null,null,null,0,null,null,1,null,1,null,1,null,1,null,1,null,1,null,1,null,1,null,1,null,"d","x",null,0,"d",null,null,null,null,null,null,null,null,null,null,0,null,null,null,null,null,null,null,null,null,null,null,null,null," schooljaar 2028-2029        leerjaar 1 van de 2de  graad",0,"Duits - 2de graad - D-finaliteit",27]
[null,null,null,null,null,0,null,null,1,null,1,null,1,null,1,null,1,null,1,null,1,null,1,null,1,null,"d","x",null,0,"d",null,null,null,null,null,null,null,null,null,null,0,null,null,null,null,null,null,null,null,null,null,null,null,null," schooljaar 2029-2030        leerjaar 1 van de 2de  graad",0,"Duits Co - 2de graad - D-D/A-finaliteit",28]
[null,null,null,null,null,0,null,null,1,null,1,null,1,null,1,null,1,null,1,null,1,null,1,null,1,null,"d","x",null,0,"d",null,null,null,null,null,null,null,null,null,null,0,null,null,null,null,null,null,null,null,null,null,null,null,null,null,0,"Duits S - 2de graad - D/A-finaliteit",29]
[null,null,null,null,null,0,null,null,1,null,1,null,1,null,1,null,1,null,1,null,1,null,1,null,1,null,"d","x",null,0,"d",null,null,null,null,null,null,null,null,null,null,0,null,null,null,null,null,null,null,null,null,null,null,null,null,null,2,"Economie' - 2de graad - D-finaliteit",30]
[null,null,null,null,null,0,null,null,1,null,1,null,1,null,1,null,1,null,1,null,1,null,1,null,1,null,"d","x",null,0,"d",null,null,null,null,null,null,null,null,null,null,0,null,null,null,null,null,null,null,null,null,null,null,null,null,null,0,"Economie Co - 2de graad - D-finaliteit",31]
[null,null,null,null,null,0,null,null,1,null,1,null,1,null,1,null,1,null,1,null,1,null,1,null,1,null,"d","x",null,0,"d",null,null,null,null,null,null,null,null,null,null,0,null,null,null,null,null,null,null,null,null,null,null,null,null,null,0,"Economie - 2de graad - D-finaliteit",32]
[null,null,null,null,null,0,null,null,1,null,1,null,1,null,1,null,1,null,1,null,1,null,1,null,1,null,"d","x",null,0,"d",null,null,null,null,null,null,null,null,null,null,0,null,null,null,null,null,null,null,null,null,null,null,null,null,null,0,"Elektriciteit - 2de graad - A-finaliteit",33]
[null,null,null,null,null,0,null,null,1,null,1,null,1,null,1,null,1,null,1,null,1,null,1,null,1,null,"d","x",null,0,"d",null,null,null,null,null,null,null,null,null,null,0,null,null,null,null,null,null,null,null,null,null,null,null,null,null,0,"Elektromechanische technieken B+S - 2de graad - D/A-finaliteit",34]
[null,null,null,null,null,0,null,null,1,null,1,null,1,null,1,null,1,null,1,null,1,null,1,null,1,null,"d","x",null,0,"d",null,null,null,null,null,null,null,null,null,null,0,null,null,null,null,null,null,null,null,null,null,null,null,null,null,0,"Elektrotechnieken B+S - 2de graad - D/A-finaliteit",35]
[null,null,null,null,null,0,null,null,1,null,1,null,1,null,1,null,1,null,1,null,1,null,1,null,1,null,"d","x",null,0,"d",null,null,null,null,null,null,null,null,null,null,0,null,null,null,null,null,null,null,null,null,null,null,null,null,null,0,"Engels B - 2de graad - A-finaliteit",36]
[null,null,null,null,null,0,null,null,1,null,1,null,1,null,1,null,1,null,1,null,1,null,1,null,1,null,"d","x",null,0,"d",null,null,null,null,null,null,null,null,null,null,0,null,null,null,null,null,null,null,null,null,null,null,null,null,null,0,"Engels B - 2de graad - D/A-finaliteit",37]
[null,null,null,null,null,0,null,null,1,null,1,null,1,null,1,null,1,null,1,null,1,null,1,null,1,null,"d","x",null,0,"d",null,null,null,null,null,null,null,null,null,null,0,null,null,null,null,null,null,null,null,null,null,null,null,null,null,0,"Engels B - 2de graad - D-finaliteit",38]
[null,null,null,null,null,0,null,null,1,null,1,null,1,null,1,null,1,null,1,null,1,null,1,null,1,null,"d","x",null,0,"d",null,null,null,null,null,null,null,null,null,null,0,null,null,null,null,null,null,null,null,null,null,null,null,null,null,0,"Engels B+ - 2de graad - D-finaliteit",39]
[null,null,null,null,null,0,null,null,1,null,1,null,1,null,1,null,1,null,1,null,1,null,1,null,1,null,"d","x",null,0,"d",null,null,null,null,null,null,null,null,null,null,0,null,null,null,null,null,null,null,null,null,null,null,null,null,null,0,"Engels B+S - 2de graad - A-finaliteit",40]
[null,null,null,null,null,0,null,null,1,null,1,null,1,null,1,null,1,null,1,null,1,null,1,null,1,null,"d","x",null,0,"d",null,null,null,null,null,null,null,null,null,null,0,null,null,null,null,null,null,null,null,null,null,null,null,null,null,0,"Engels B+S - 2de graad - D/A-finaliteit",41]
[null,null,null,null,null,0,null,null,1,null,1,null,1,null,1,null,1,null,1,null,1,null,1,null,1,null,"d","x",null,0,"d",null,null,null,null,null,null,null,null,null,null,0,null,null,null,null,null,null,null,null,null,null,null,null,null,null,0,"Engels B+S - 2de graad - D-finaliteit",42]
[null,null,null,null,null,0,null,null,1,null,1,null,1,null,1,null,1,null,1,null,1,null,1,null,1,null,"d","x",null,0,"d",null,null,null,null,null,null,null,null,null,null,0,null,null,null,null,null,null,null,null,null,null,null,null,null,null,0,"Fietshersteller - 2de graad - A-finaliteit",43]
[null,null,null,null,null,0,null,null,1,null,1,null,1,null,1,null,1,null,1,null,1,null,1,null,1,null,"d","x",null,0,"d",null,null,null,null,null,null,null,null,null,null,0,null,null,null,null,null,null,null,null,null,null,null,null,null," schooljaar 2023-2024        leerjaar 2 van de 2de  graad",0,"Filosofie - 2de graad - D-finaliteit",44]
[null,null,null,null,null,0,null,null,1,null,1,null,1,null,1,null,1,null,1,null,1,null,1,null,1,null,"d","x",null,0,"d",null,null,null,null,null,null,null,null,null,null,0,null,null,null,null,null,null,null,null,null,null,null,null,null," schooljaar 2024-2025        leerjaar 2 van de 2de  graad",0,"Fotografie - 2de graad - D/A-finaliteit",45]
[null,null,null,null,null,0,null,null,1,null,1,null,1,null,1,null,1,null,1,null,1,null,1,null,1,null,"d","x",null,0,"d",null,null,null,null,null,null,null,null,null,null,0,null,null,null,null,null,null,null,null,null,null,null,null,null," schooljaar 2025-2026        leerjaar 2 van de 2de  graad",0,"Frans - 2de graad - D-finaliteit",46]
[null,null,null,null,null,0,null,null,1,null,1,null,1,null,1,null,1,null,1,null,1,null,1,null,1,null,"d","x",null,0,"d",null,null,null,null,null,null,null,null,null,null,0,null,null,null,null,null,null,null,null,null,null,null,null,null," schooljaar 2026-2027        leerjaar 2 van de 2de  graad",0,"Frans B - 2de graad - A-finaliteit",47]
[null,null,null,null,null,0,null,null,1,null,1,null,1,null,1,null,1,null,1,null,1,null,1,null,1,null,"d","x",null,0,"d",null,null,null,null,null,null,null,null,null,null,0,null,null,null,null,null,null,null,null,null,null,null,null,null," schooljaar 2027-2028        leerjaar 2 van de 2de  graad",0,"Frans B - 2de graad - D/A-finaliteit",48]
[null,null,null,null,null,0,null,null,1,null,1,null,1,null,1,null,1,null,1,null,1,null,1,null,1,null,"d","x",null,0,"d",null,null,null,null,null,null,null,null,null,null,0,null,null,null,null,null,null,null,null,null,null,null,null,null," schooljaar 2028-2029        leerjaar 2 van de 2de  graad",0,"Frans B+ - 2de graad - D-finaliteit",49]
[null,null,null,null,null,0,null,null,1,null,1,null,1,null,1,null,1,null,1,null,1,null,1,null,1,null,"d","x",null,0,"d",null,null,null,null,null,null,null,null,null,null,0,null,null,null,null,null,null,null,null,null,null,null,null,null," schooljaar 2029-2030        leerjaar 2 van de 2de  graad",0,"Frans B+S - 2de graad - A-finaliteit",50]
[null,null,null,null,null,0,null,null,1,null,1,null,1,null,1,null,1,null,1,null,1,null,1,null,1,null,"d","x",null,0,"d",null,null,null,null,null,null,null,null,null,null,0,null,null,null,null,null,null,null,null,null,null,null,null,null,null,0,"Frans B+S - 2de graad - D/A-finaliteit",51]
[null,null,null,null,null,0,null,null,1,null,1,null,1,null,1,null,1,null,1,null,1,null,1,null,1,null,"d","x",null,0,"d",null,null,null,null,null,null,null,null,null,null,0,null,null,null,null,null,null,null,null,null,null,null,null,null,null,0,"Frans B+S' - 2de graad - D/A-finaliteit",52]
[null,null,null,null,null,0,null,null,1,null,1,null,1,null,1,null,1,null,1,null,1,null,1,null,1,null,"d","x",null,0,"d",null,null,null,null,null,null,null,null,null,null,0,null,null,null,null,null,null,null,null,null,null,null,null,null,null,0,"Frans B+S - 2de graad - D-finaliteit",53]
[null,null,null,null,null,0,null,null,1,null,1,null,1,null,1,null,1,null,1,null,1,null,1,null,1,null,"d","x",null,0,"d",null,null,null,null,null,null,null,null,null,null,0,null,null,null,null,null,null,null,null,null,null,null,null,null,null,0,"Gemeenschappelijk funderend leerplan B - 2de graad - D,- D/A-, A-finaliteit",54]
[null,null,null,null,null,0,null,null,1,null,1,null,1,null,1,null,1,null,1,null,1,null,1,null,1,null,"d","x",null,0,"d",null,null,null,null,null,null,null,null,null,null,0,null,null,null,null,null,null,null,null,null,null,null,null,null,null,0,"Geschiedenis B - 2de graad - D/A-finaliteit",55]
[null,null,null,null,null,0,null,null,1,null,1,null,1,null,1,null,1,null,1,null,1,null,1,null,1,null,"d","x",null,0,"d",null,null,null,null,null,null,null,null,null,null,0,null,null,null,null,null,null,null,null,null,null,null,null,null,null,0,"Geschiedenis B+ - 2de graad - D-finaliteit",56]
[null,null,null,null,null,0,null,null,1,null,1,null,1,null,1,null,1,null,1,null,1,null,1,null,1,null,"d","x",null,0,"d",null,null,null,null,null,null,null,null,null,null,0,null,null,null,null,null,null,null,null,null,null,null,null,null,null,0,"Geschiedenis - 2de graad - D-finaliteit",57]
[null,null,null,null,null,0,null,null,1,null,1,null,1,null,1,null,1,null,1,null,1,null,1,null,1,null,"d","x",null,0,"d",null,null,null,null,null,null,null,null,null,null,0,null,null,null,null,null,null,null,null,null,null,null,null,null,null,0,"Grafische technieken - 2de graad -  D/A-finaliteit",58]
[null,null,null,null,null,0,null,null,1,null,1,null,1,null,1,null,1,null,1,null,1,null,1,null,1,null,"d","x",null,0,"d",null,null,null,null,null,null,null,null,null,null,0,null,null,null,null,null,null,null,null,null,null,null,null,null,null,0,"Grieks - 2de graad - D-finaliteit",59]
[null,null,null,null,null,0,null,null,1,null,1,null,1,null,1,null,1,null,1,null,1,null,1,null,1,null,"d","x",null,0,"d",null,null,null,null,null,null,null,null,null,null,0,null,null,null,null,null,null,null,null,null,null,null,null,null,null,0,"Haar- en schoonheidsverzorging - 2de graad - A-finaliteit",60]
[null,null,null,null,null,0,null,null,1,null,1,null,1,null,1,null,1,null,1,null,1,null,1,null,1,null,"d","x",null,0,"d",null,null,null,null,null,null,null,null,null,null,0,null,null,null,null,null,null,null,null,null,null,null,null,null,null,0,"Hoeknaadlasser - 2de graad - A-finaliteit",61]
[null,null,null,null,null,0,null,null,1,null,1,null,1,null,1,null,1,null,1,null,1,null,1,null,1,null,"d","x",null,0,"d",null,null,null,null,null,null,null,null,null,null,0,null,null,null,null,null,null,null,null,null,null,null,null,null,null,0,"Horeca - 2de graad - D/A-finaliteit",62]
[null,null,null,null,null,0,null,null,1,null,1,null,1,null,1,null,1,null,1,null,1,null,1,null,1,null,"d","x",null,0,"d",null,null,null,null,null,null,null,null,null,null,0,null,null,null,null,null,null,null,null,null,null,null,null,null,null,0,"Hout - 2de graad - A-finaliteit",63]
[null,null,null,null,null,0,null,null,{"$f":"COUNTBLANK(H70)","v":1},null,{"$f":"COUNTBLANK(J70)","v":1},null,{"$f":"COUNTBLANK(L70)","v":1},null,{"$f":"COUNTBLANK(N70)","v":1},null,{"$f":"COUNTBLANK(P70)","v":1},null,{"$f":"COUNTBLANK(R70)","v":1},null,{"$f":"COUNTBLANK(T70)","v":1},null,{"$f":"COUNTBLANK(V70)","v":1},null,{"$f":"COUNTBLANK(X70)","v":1},null,"d","x",null,0,"d",null,null,null,null,null,null,null,null,null,null,0,null,null,null,null,null,null,null,null,null,null,null,null,null,null,0,"Houttechnieken B+S - 2de graad - D/A-finaliteit",64]
[null,null,null,null,null,0,null,null,1,null,1,null,1,null,1,null,1,null,1,null,1,null,1,null,1,null,"d","x",null,0,"d",null,null,null,null,null,null,null,null,null,null,0,null,null,null,null,null,null,null,null,null,null,null,null,null,null,0,"Hulpkelner - 2de graad - A-finaliteit",65]
[null,null,null,null,null,0,null,null,1,null,1,null,1,null,1,null,1,null,1,null,1,null,1,null,1,null,"d","x",null,0,"d",null,null,null,null,null,null,null,null,null,null,0,null,null,null,null,null,null,null,null,null,null,null,null,null,null,{"$f":"COUNTIF($D$6:$D$1001,BF72)","v":0},"ICT Co - 2de graad - D/DA/A-finaliteit",66]
[null,null,null,null,null,0,null,null,1,null,1,null,1,null,1,null,1,null,1,null,1,null,1,null,1,null,"d","x",null,0,"d",null,null,null,null,null,null,null,null,null,null,0,null,null,null,null,null,null,null,null,null,null,null,null,null,null,0,"Informaticawetenschappen - 2de graad - D-finaliteit",67]
[null,null,null,null,null,0,null,null,1,null,1,null,1,null,1,null,1,null,1,null,1,null,1,null,1,null,"d","x",null,0,"d",null,null,null,null,null,null,null,null,null,null,0,null,null,null,null,null,null,null,null,null,null,null,null,null,null,0,"Inleiding filosofie S (oud) - 2de graad - D-finaliteit",68]
[null,null,null,null,null,0,null,null,1,null,1,null,1,null,1,null,1,null,1,null,1,null,1,null,1,null,"d","x",null,0,"d",null,null,null,null,null,null,null,null,null,null,0,null,null,null,null,null,null,null,null,null,null,null,null,null,null,0,"Installateur elektrotechnische basiscomponenten - 2de graad - A-finaliteit",69]
[null,null,null,null,null,0,null,null,1,null,1,null,1,null,1,null,1,null,1,null,1,null,1,null,1,null,"d","x",null,0,"d",null,null,null,null,null,null,null,null,null,null,0,null,null,null,null,null,null,null,null,null,null,null,null,null,null,0,"Keukenmedewerker S - 2de graad - A-finaliteit",70]
[null,null,null,null,null,0,null,null,1,null,1,null,1,null,1,null,1,null,1,null,1,null,1,null,1,null,"d","x",null,0,"d",null,null,null,null,null,null,null,null,null,null,0,null,null,null,null,null,null,null,null,null,null,null,null,null,null,0,"Kunstbeschouwing S' - 2de graad - D-finaliteit",71]
[null,null,null,null,null,0,null,null,1,null,1,null,1,null,1,null,1,null,1,null,1,null,1,null,1,null,"d","x",null,0,"d",null,null,null,null,null,null,null,null,null,null,0,null,null,null,null,null,null,null,null,null,null,null,null,null,null,0,"Kunstbeschouwing - 2de graad - D-finaliteit",72]
[null,null,null,null,null,0,null,null,1,null,1,null,1,null,1,null,1,null,1,null,1,null,1,null,1,null,"d","x",null,0,"d",null,null,null,null,null,null,null,null,null,null,0,null,null,null,null,null,null,null,null,null,null,null,null,null,null,0,"Latijn - 2de graad - D-finaliteit",73]
[null,null,null,null,null,0,null,null,1,null,1,null,1,null,1,null,1,null,1,null,1,null,1,null,1,null,"d","x",null,0,"d",null,null,null,null,null,null,null,null,null,null,0,null,null,null,null,null,null,null,null,null,null,null,null,null,null,0,"Lichamelijke opvoeding B - 2de graad - D-, D/A-, A-finaliteit",74]
[null,null,null,null,null,0,null,null,1,null,1,null,1,null,1,null,1,null,1,null,1,null,1,null,1,null,"d","x",null,0,"d",null,null,null,null,null,null,null,null,null,null,0,null,null,null,null,null,null,null,null,null,null,null,null,null,null,0,"Maatschappelijke vorming - 2de graad - A-finaliteit",75]
[null,null,null,null,null,0,null,null,1,null,1,null,1,null,1,null,1,null,1,null,1,null,1,null,1,null,"d","x",null,0,"d",null,null,null,null,null,null,null,null,null,null,0,null,null,null,null,null,null,null,null,null,null,null,null,null,null,0,"Maatschappij en welzijn - 2de graad - D/A-finaliteit",76]
[null,null,null,null,null,0,null,null,1,null,1,null,1,null,1,null,1,null,1,null,1,null,1,null,1,null,"d","x",null,0,"d",null,null,null,null,null,null,null,null,null,null,0,null,null,null,null,null,null,null,null,null,null,null,null,null,null,0,"Machinaal houtbewerker S - 2de graad - A-finaliteit",77]
[null,null,null,null,null,0,null,null,1,null,1,null,1,null,1,null,1,null,1,null,1,null,1,null,1,null,"d","x",null,0,"d",null,null,null,null,null,null,null,null,null,null,0,null,null,null,null,null,null,null,null,null,null,null,null,null,null,0,"Magazijnmedewerker - 2de graad - A-finaliteit",78]
[null,null,null,null,null,0,null,null,1,null,1,null,1,null,1,null,1,null,1,null,1,null,1,null,1,null,"d","x",null,0,"d",null,null,null,null,null,null,null,null,null,null,0,null,null,null,null,null,null,null,null,null,null,null,null,null,null,0,"Mechanica - 2de graad - A-finaliteit",79]
[null,null,null,null,null,{"$f":"9-(I86+K86+M86+O86+Q86+S86+U86++Y86+W86)","v":0},null,null,1,null,1,null,1,null,1,null,1,null,1,null,1,null,1,null,1,null,"d","x",null,{"$f":"D86","v":0},"d",null,null,null,null,null,null,null,null,null,null,0,null,null,null,null,null,null,null,null,null,null,null,null,null,null,0,"Mechanische technieken B+S - 2de graad - D/A-finaliteit",80]
[null,null,null,null,null,0,null,null,1,null,1,null,1,null,1,null,1,null,1,null,1,null,1,null,1,null,"d","x",null,0,"d",null,null,null,null,null,null,null,null,null,null,0,null,null,null,null,null,null,null,null,null,null,null,null,null,null,0,"Medewerker (banket)bakkerij - 2de graad - A-finaliteit",81]
[null,null,null,null,null,0,null,null,1,null,1,null,1,null,1,null,1,null,1,null,1,null,1,null,1,null,"d","x",null,0,"d",null,null,null,null,null,null,null,null,null,null,0,null,null,null,null,null,null,null,null,null,null,null,null,null,null,0,"Medewerker fastfood S - 2de graad - A-finaliteit",82]
[null,null,null,null,null,0,null,null,1,null,1,null,1,null,1,null,1,null,1,null,1,null,1,null,1,null,"d","x",null,0,"d",null,null,null,null,null,null,null,null,null,null,0,null,null,null,null,null,null,null,null,null,null,null,null,null,null,0,"Medewerker groen- en tuinaanleg S - 2de graad - A-finaliteit",83]
[null,null,null,null,null,0,null,null,1,null,1,null,1,null,1,null,1,null,1,null,1,null,1,null,1,null,"d","x",null,0,"d",null,null,null,null,null,null,null,null,null,null,0,null,null,null,null,null,null,null,null,null,null,null,null,null,null,0,"Medewerker groen- en tuinbeheer S - 2de graad - A-finaliteit",84]
[null,null,null,null,null,0,null,null,1,null,1,null,1,null,1,null,1,null,1,null,1,null,1,null,1,null,"d","x",null,0,"d",null,null,null,null,null,null,null,null,null,null,0,null,null,null,null,null,null,null,null,null,null,null,null,null,null,0,"Medewerker hout - 2de graad - A-finaliteit",85]
[null,null,null,null,null,0,null,null,1,null,1,null,1,null,1,null,1,null,1,null,1,null,1,null,1,null,"d","x",null,0,"d",null,null,null,null,null,null,null,null,null,null,0,null,null,null,null,null,null,null,null,null,null,null,null,null,null,0,"Medewerker kamerdienst - 2de graad - A-finaliteit",86]
[null,null,null,null,null,0,null,null,1,null,1,null,1,null,1,null,1,null,1,null,1,null,1,null,1,null,"d","x",null,0,"d",null,null,null,null,null,null,null,null,null,null,0,null,null,null,null,null,null,null,null,null,null,null,null,null,null,0,"Medewerker productielijn kleding, confectie en meubelstoffering - 2de graad - A-finaliteit",87]
[null,null,null,null,null,0,null,null,1,null,1,null,1,null,1,null,1,null,1,null,1,null,1,null,1,null,"d","x",null,0,"d",null,null,null,null,null,null,null,null,null,null,0,null,null,null,null,null,null,null,null,null,null,null,null,null,null,0,"Medewerker ruwbouw S - 2de graad - A-finaliteit",88]
[null,null,null,null,null,0,null,null,1,null,1,null,1,null,1,null,1,null,1,null,1,null,1,null,1,null,"d","x",null,0,"d",null,null,null,null,null,null,null,null,null,null,0,null,null,null,null,null,null,null,null,null,null,null,null,null,null,0,"Medewerker schilder- en behangwerken - 2de graad - A-finaliteit",89]
[null,null,null,null,null,0,null,null,1,null,1,null,1,null,1,null,1,null,1,null,1,null,1,null,1,null,"d","x",null,0,"d",null,null,null,null,null,null,null,null,null,null,0,null,null,null,null,null,null,null,null,null,null,null,null,null,null,0,"Medewerker slagerij - 2de graad - A-finaliteit",90]
[null,null,null,null,null,0,null,null,1,null,1,null,1,null,1,null,1,null,1,null,1,null,1,null,1,null,"d","x",null,0,"d",null,null,null,null,null,null,null,null,null,null,0,null,null,null,null,null,null,null,null,null,null,null,null,null,null,0,"Medewerker tegelzetwerken en dekvloeren - 2de graad - A-finaliteit",91]
[null,null,null,null,null,0,null,null,1,null,1,null,1,null,1,null,1,null,1,null,1,null,1,null,1,null,"d","x",null,0,"d",null,null,null,null,null,null,null,null,null,null,0,null,null,null,null,null,null,null,null,null,null,null,null,null,null,0,"Mens en samenleving complementair - 2de graad - D/DA-finaliteit",92]
[null,null,null,null,null,0,null,null,1,null,1,null,1,null,1,null,1,null,1,null,1,null,1,null,1,null,"d","x",null,0,"d",null,null,null,null,null,null,null,null,null,null,0,null,null,null,null,null,null,null,null,null,null,null,null,null,null,0,"Moderealisatie en textielverzorging - 2de graad - A-finaliteit",93]
[null,null,null,null,null,0,null,null,1,null,1,null,1,null,1,null,1,null,1,null,1,null,1,null,1,null,"d","x",null,0,"d",null,null,null,null,null,null,null,null,null,null,0,null,null,null,null,null,null,null,null,null,null,null,null,null,null,0,"Monteur sanitaire en verwarmingsinstallaties - 2de graad - A-finaliteit",94]
[null,null,null,null,null,0,null,null,1,null,1,null,1,null,1,null,1,null,1,null,1,null,1,null,1,null,"d","x",null,0,"d",null,null,null,null,null,null,null,null,null,null,0,null,null,null,null,null,null,null,null,null,null,null,null,null,null,0,"Muziek - 2de graad - D-finaliteit",95]
[null,null,null,null,null,0,null,null,1,null,1,null,1,null,1,null,1,null,1,null,1,null,1,null,1,null,"d","x",null,0,"d",null,null,null,null,null,null,null,null,null,null,0,null,null,null,null,null,null,null,null,null,null,null,null,null,null,0,"Natuurwetenschappen B - 2de graad - D/A-finaliteit",96]
[null,null,null,null,null,0,null,null,1,null,1,null,1,null,1,null,1,null,1,null,1,null,1,null,1,null,"d","x",null,0,"d",null,null,null,null,null,null,null,null,null,null,0,null,null,null,null,null,null,null,null,null,null,null,null,null,null,0,"Natuurwetenschappen B' - 2de graad - D/A-finaliteit",97]
[null,null,null,null,null,0,null,null,1,null,1,null,1,null,1,null,1,null,1,null,1,null,1,null,1,null,"d","x",null,0,"d",null,null,null,null,null,null,null,null,null,null,0,null,null,null,null,null,null,null,null,null,null,null,null,null,null,0,"Natuurwetenschappen B (oud) - 2de graad - A-finaliteit",98]
[null,null,null,null,null,0,null,null,1,null,1,null,1,null,1,null,1,null,1,null,1,null,1,null,1,null,"d","x",null,0,"d",null,null,null,null,null,null,null,null,null,null,0,null,null,null,null,null,null,null,null,null,null,null,null,null,null,0,"Natuurwetenschappen B+ - 2de graad - D-finaliteit",99]
[null,null,null,null,null,0,null,null,1,null,1,null,1,null,1,null,1,null,1,null,1,null,1,null,1,null,"d","x",null,0,"d",null,null,null,null,null,null,null,null,null,null,0,null,null,null,null,null,null,null,null,null,null,null,null,null,null,0,"Natuurwetenschappen B+S - 2de graad - D/A-finaliteit",100]
[null,null,null,null,null,0,null,null,1,null,1,null,1,null,1,null,1,null,1,null,1,null,1,null,1,null,"d","x",null,0,"d",null,null,null,null,null,null,null,null,null,null,0,null,null,null,null,null,null,null,null,null,null,null,null,null,null,0,"Natuurwetenschappen B+S' - 2de graad - D/A-finaliteit",101]
[null,null,null,null,null,0,null,null,1,null,1,null,1,null,1,null,1,null,1,null,1,null,1,null,1,null,"d","x",null,0,"d",null,null,null,null,null,null,null,null,null,null,0,null,null,null,null,null,null,null,null,null,null,null,null,null,null,0,"Natuurwetenschappen B+S - 2de graad - D-finaliteit",102]
[null,null,null,null,null,0,null,null,1,null,1,null,1,null,1,null,1,null,1,null,1,null,1,null,1,null,"d","x",null,0,"d",null,null,null,null,null,null,null,null,null,null,0,null,null,null,null,null,null,null,null,null,null,null,null,null,null,0,"Natuurwetenschappen - 2de graad - D-finaliteit",103]
[null,null,null,null,null,0,null,null,1,null,1,null,1,null,1,null,1,null,1,null,1,null,1,null,1,null,"d","x",null,0,"d",null,null,null,null,null,null,null,null,null,null,0,null,null,null,null,null,null,null,null,null,null,null,null,null,null,0,"Nederlands B - 2de graad - D/A-finaliteit",104]
[null,null,null,null,null,0,null,null,1,null,1,null,1,null,1,null,1,null,1,null,1,null,1,null,1,null,"d","x",null,0,"d",null,null,null,null,null,null,null,null,null,null,0,null,null,null,null,null,null,null,null,null,null,null,null,null,null,0,"Nederlands B - 2de graad - D-finaliteit",105]
[null,null,null,null,null,0,null,null,1,null,1,null,1,null,1,null,1,null,1,null,1,null,1,null,1,null,"d","x",null,0,"d",null,null,null,null,null,null,null,null,null,null,0,null,null,null,null,null,null,null,null,null,null,null,null,null,null,0,"Nederlands B+ - 2de graad - D-finaliteit",106]
[null,null,null,null,null,0,null,null,1,null,1,null,1,null,1,null,1,null,1,null,1,null,1,null,1,null,"d","x",null,0,"d",null,null,null,null,null,null,null,null,null,null,0,null,null,null,null,null,null,null,null,null,null,null,null,null,null,0,"Nederlands B+S - 2de graad - D/A-finaliteit",107]
[null,null,null,null,null,0,null,null,1,null,1,null,1,null,1,null,1,null,1,null,1,null,1,null,1,null,"d","x",null,0,"d",null,null,null,null,null,null,null,null,null,null,0,null,null,null,null,null,null,null,null,null,null,null,null,null,null,0,"Nederlands B+S' - 2de graad - D-finaliteit",108]
[null,null,null,null,null,0,null,null,1,null,1,null,1,null,1,null,1,null,1,null,1,null,1,null,1,null,"d","x",null,0,"d",null,null,null,null,null,null,null,null,null,null,0,null,null,null,null,null,null,null,null,null,null,null,null,null,null,0,"Nederlands B+S - 2de graad - D-finaliteit",109]
[null,null,null,null,null,0,null,null,1,null,1,null,1,null,1,null,1,null,1,null,1,null,1,null,1,null,"d","x",null,0,"d",null,null,null,null,null,null,null,null,null,null,0,null,null,null,null,null,null,null,null,null,null,null,null,null,null,0,"Nederlands - 2de graad - A-finaliteit",110]
[null,null,null,null,null,0,null,null,1,null,1,null,1,null,1,null,1,null,1,null,1,null,1,null,1,null,"d","x",null,0,"d",null,null,null,null,null,null,null,null,null,null,0,null,null,null,null,null,null,null,null,null,null,null,null,null,null,0,"Onderhoudsmedewerker - 2de graad - A-finaliteit",111]
[null,null,null,null,null,0,null,null,1,null,1,null,1,null,1,null,1,null,1,null,1,null,1,null,1,null,"d","x",null,0,"d",null,null,null,null,null,null,null,null,null,null,0,null,null,null,null,null,null,null,null,null,null,null,null,null,null,0,"Onthaal en recreatie - 2de graad - A-finaliteit",112]
[null,null,null,null,null,0,null,null,1,null,1,null,1,null,1,null,1,null,1,null,1,null,1,null,1,null,"d","x",null,0,"d",null,null,null,null,null,null,null,null,null,null,0,null,null,null,null,null,null,null,null,null,null,null,null,null,null,0,"Organisatie en logistiek - 2de graad - A-finaliteit",113]
[null,null,null,null,null,0,null,null,1,null,1,null,1,null,1,null,1,null,1,null,1,null,1,null,1,null,"d","x",null,0,"d",null,null,null,null,null,null,null,null,null,null,0,null,null,null,null,null,null,null,null,null,null,null,null,null,null,0,"Paardenhouderij - 2de graad - A-finaliteit",114]
[null,null,null,null,null,0,null,null,1,null,1,null,1,null,1,null,1,null,1,null,1,null,1,null,1,null,"d","x",null,0,"d",null,null,null,null,null,null,null,null,null,null,0,null,null,null,null,null,null,null,null,null,null,null,null,null,null,0,"Plant, dier en milieu - 2de graad - A-finaliteit",115]
[null,null,null,null,null,0,null,null,1,null,1,null,1,null,1,null,1,null,1,null,1,null,1,null,1,null,"d","x",null,0,"d",null,null,null,null,null,null,null,null,null,null,0,null,null,null,null,null,null,null,null,null,null,null,null,null,null,0,"Plant-, dier- en milieutechnieken - 2de graad - D/A-finaliteit",116]
[null,null,null,null,null,0,null,null,1,null,1,null,1,null,1,null,1,null,1,null,1,null,1,null,1,null,"d","x",null,0,"d",null,null,null,null,null,null,null,null,null,null,0,null,null,null,null,null,null,null,null,null,null,null,null,null,null,0,"Polyvalent administratief ondersteuner - 2de graad - A-finaliteit",117]
[null,null,null,null,null,0,null,null,1,null,1,null,1,null,1,null,1,null,1,null,1,null,1,null,1,null,"d","x",null,0,"d",null,null,null,null,null,null,null,null,null,null,0,null,null,null,null,null,null,null,null,null,null,null,null,null,null,0,"Printmedia - 2de graad - A-finaliteit",118]
[null,null,null,null,null,0,null,null,1,null,1,null,1,null,1,null,1,null,1,null,1,null,1,null,1,null,"d","x",null,0,"d",null,null,null,null,null,null,null,null,null,null,0,null,null,null,null,null,null,null,null,null,null,null,null,null,null,0,"Productiemedewerker drukafwerking in de printmedia - 2de graad - A-finaliteit",119]
[null,null,null,null,null,0,null,null,1,null,1,null,1,null,1,null,1,null,1,null,1,null,1,null,1,null,"d","x",null,0,"d",null,null,null,null,null,null,null,null,null,null,0,null,null,null,null,null,null,null,null,null,null,null,null,null,null,0,"Productiemedewerker industrie - 2de graad - A-finaliteit",120]
[null,null,null,null,null,0,null,null,1,null,1,null,1,null,1,null,1,null,1,null,1,null,1,null,1,null,"d","x",null,0,"d",null,null,null,null,null,null,null,null,null,null,0,null,null,null,null,null,null,null,null,null,null,null,null,null,null,0,"Public relations S - 2de graad - D/A-finaliteit",121]
[null,null,null,null,null,0,null,null,1,null,1,null,1,null,1,null,1,null,1,null,1,null,1,null,1,null,"d","x",null,0,"d",null,null,null,null,null,null,null,null,null,null,0,null,null,null,null,null,null,null,null,null,null,null,null,null,null,0,"Restaurant en keuken - 2de graad - A-finaliteit",122]
[null,null,null,null,null,0,null,null,1,null,1,null,1,null,1,null,1,null,1,null,1,null,1,null,1,null,"d","x",null,0,"d",null,null,null,null,null,null,null,null,null,null,0,null,null,null,null,null,null,null,null,null,null,null,null,null,null,0,"Rooms-katholieke godsdienst - 1ste, 2de en 3de graad",123]
[null,null,null,null,null,0,null,null,1,null,1,null,1,null,1,null,1,null,1,null,1,null,1,null,1,null,"d","x",null,0,"d",null,null,null,null,null,null,null,null,null,null,0,null,null,null,null,null,null,null,null,null,null,null,null,null,null,0,"Schilderen en decoratie - 2de graad - A-finaliteit",124]
[null,null,null,null,null,0,null,null,1,null,1,null,1,null,1,null,1,null,1,null,1,null,1,null,1,null,"d","x",null,0,"d",null,null,null,null,null,null,null,null,null,null,0,null,null,null,null,null,null,null,null,null,null,null,null,null,null,0,"Schoonmaker - 2de graad - A-finaliteit",125]
[null,null,null,null,null,0,null,null,1,null,1,null,1,null,1,null,1,null,1,null,1,null,1,null,1,null,"d","x",null,0,"d",null,null,null,null,null,null,null,null,null,null,0,null,null,null,null,null,null,null,null,null,null,null,null,null,null,0,"Slagerij - 2de graad - A-finaliteit",126]
[null,null,null,null,null,0,null,null,1,null,1,null,1,null,1,null,1,null,1,null,1,null,1,null,1,null,"d","x",null,0,"d",null,null,null,null,null,null,null,null,null,null,0,null,null,null,null,null,null,null,null,null,null,null,null,null,null,0,"Slagerijtechnieken - 2de graad - D/A-finaliteit",127]
[null,null,null,null,null,0,null,null,{"$f":"COUNTBLANK(H134)","v":1},null,{"$f":"COUNTBLANK(J134)","v":1},null,{"$f":"COUNTBLANK(L134)","v":1},null,{"$f":"COUNTBLANK(N134)","v":1},null,{"$f":"COUNTBLANK(P134)","v":1},null,{"$f":"COUNTBLANK(R134)","v":1},null,{"$f":"COUNTBLANK(T134)","v":1},null,{"$f":"COUNTBLANK(V134)","v":1},null,{"$f":"COUNTBLANK(X134)","v":1},null,"d","x",null,0,"d",null,null,null,null,null,null,null,null,null,null,0,null,null,null,null,null,null,null,null,null,null,null,null,null,null,0,"Sociologie en psychologie - 2de graad - D-finaliteit",128]
[null,null,null,null,null,0,null,null,1,null,1,null,1,null,1,null,1,null,1,null,1,null,1,null,1,null,"d","x",null,0,"d",null,null,null,null,null,null,null,null,null,null,0,null,null,null,null,null,null,null,null,null,null,null,null,null,null,0,"Sport B+S - 2de graad - D/A-finaliteit",129]
[null,null,null,null,null,0,null,null,1,null,1,null,1,null,1,null,1,null,1,null,1,null,1,null,1,null,"d","x",null,0,"d",null,null,null,null,null,null,null,null,null,null,0,null,null,null,null,null,null,null,null,null,null,null,null,null,null,{"$f":"COUNTIF($D$6:$D$1001,BF136)","v":0},"Sport B+S - 2de graad - D-finaliteit",130]
[null,null,null,null,null,0,null,null,1,null,1,null,1,null,1,null,1,null,1,null,1,null,1,null,1,null,"d","x",null,0,"d",null,null,null,null,null,null,null,null,null,null,0,null,null,null,null,null,null,null,null,null,null,null,null,null,null,0,"Sport - 2de graad - A-finaliteit",131]
[null,null,null,null,null,0,null,null,1,null,1,null,1,null,1,null,1,null,1,null,1,null,1,null,1,null,"d","x",null,0,"d",null,null,null,null,null,null,null,null,null,null,0,null,null,null,null,null,null,null,null,null,null,null,null,null,null,0,"Stratenmaker - 2de graad - A-finaliteit",132]
[null,null,null,null,null,0,null,null,1,null,1,null,1,null,1,null,1,null,1,null,1,null,1,null,1,null,"d","x",null,0,"d",null,null,null,null,null,null,null,null,null,null,0,null,null,null,null,null,null,null,null,null,null,null,null,null,null,0,"Technologische wetenschappen B+S - 2de graad - D-finaliteit",133]
[null,null,null,null,null,0,null,null,1,null,1,null,1,null,1,null,1,null,1,null,1,null,1,null,1,null,"d","x",null,0,"d",null,null,null,null,null,null,null,null,null,null,0,null,null,null,null,null,null,null,null,null,null,null,null,null,null,0,"Toerisme - 2de graad - D/A-finaliteit",134]
[null,null,null,null,null,0,null,null,1,null,1,null,1,null,1,null,1,null,1,null,1,null,1,null,1,null,"d","x",null,0,"d",null,null,null,null,null,null,null,null,null,null,0,null,null,null,null,null,null,null,null,null,null,null,null,null,null,0,"Topsport B+S - 2de graad - D/A-finaliteit",135]
[null,null,null,null,null,0,null,null,1,null,1,null,1,null,1,null,1,null,1,null,1,null,1,null,1,null,"d","x",null,0,"d",null,null,null,null,null,null,null,null,null,null,0,null,null,null,null,null,null,null,null,null,null,null,null,null,null,0,"Topsport B+S - 2de graad - D-finaliteit",136]
[null,null,null,null,null,0,null,null,1,null,1,null,1,null,1,null,1,null,1,null,1,null,1,null,1,null,"d","x",null,0,"d",null,null,null,null,null,null,null,null,null,null,0,null,null,null,null,null,null,null,null,null,null,null,null,null,null,0,"Topsport S - 2de graad - A-finaliteit",137]
[null,null,null,null,null,0,null,null,1,null,1,null,1,null,1,null,1,null,1,null,1,null,1,null,1,null,"d","x",null,0,"d",null,null,null,null,null,null,null,null,null,null,0,null,null,null,null,null,null,null,null,null,null,null,null,null,null,0,"Verpakker - 2de graad - A-finaliteit",138]
[null,null,null,null,null,0,null,null,1,null,1,null,1,null,1,null,1,null,1,null,1,null,1,null,1,null,"d","x",null,0,"d",null,null,null,null,null,null,null,null,null,null,0,null,null,null,null,null,null,null,null,null,null,null,null,null,null,0,"Voertuigtechnieken B+S - 2de graad - D/A-finaliteit",139]
[null,null,null,null,null,0,null,null,1,null,1,null,1,null,1,null,1,null,1,null,1,null,1,null,1,null,"d","x",null,0,"d",null,null,null,null,null,null,null,null,null,null,0,null,null,null,null,null,null,null,null,null,null,null,null,null,null,0,"Voorbewerker carrosserie - 2de graad - A-finaliteit",140]
[null,null,null,null,null,0,null,null,1,null,1,null,1,null,1,null,1,null,1,null,1,null,1,null,1,null,"d","x",null,0,"d",null,null,null,null,null,null,null,null,null,null,0,null,null,null,null,null,null,null,null,null,null,null,null,null,null,0,"Wellness en lifestyle B + S - 2de graad - D/A-finaliteit",141]
[null,null,null,null,null,0,null,null,1,null,1,null,1,null,1,null,1,null,1,null,1,null,1,null,1,null,"d","x",null,0,"d",null,null,null,null,null,null,null,null,null,null,0,null,null,null,null,null,null,null,null,null,null,null,null,null,null,0,"Winkelmedewerker - 2de graad - A-finaliteit",142]
[null,null,null,null,null,0,null,null,1,null,1,null,1,null,1,null,1,null,1,null,1,null,1,null,1,null,"d","x",null,0,"d",null,null,null,null,null,null,null,null,null,null,0,null,null,null,null,null,null,null,null,null,null,null,null,null,null,0,"Wiskunde - 2de graad - D-finaliteit",143]
[null,null,null,null,null,{"$f":"9-(I150+K150+M150+O150+Q150+S150+U150++Y150+W150)","v":0},null,null,1,null,1,null,1,null,1,null,1,null,1,null,1,null,1,null,1,null,"d","x",null,{"$f":"D150","v":0},"d",null,null,null,null,null,null,null,null,null,null,0,null,null,null,null,null,null,null,null,null,null,null,null,null,null,0,"Wiskunde (oud) - 2de graad - D-finaliteit",144]
[null,null,null,null,null,0,null,null,1,null,1,null,1,null,1,null,1,null,1,null,1,null,1,null,1,null,"d","x",null,0,"d",null,null,null,null,null,null,null,null,null,null,0,null,null,null,null,null,null,null,null,null,null,null,null,null,null,0,"Wiskunde B + C' (oud) - 2de graad - D-finaliteit",145]
[null,null,null,null,null,0,null,null,1,null,1,null,1,null,1,null,1,null,1,null,1,null,1,null,1,null,"d","x",null,0,"d",null,null,null,null,null,null,null,null,null,null,0,null,null,null,null,null,null,null,null,null,null,null,null,null,null,0,"Wiskunde B+ - 2de graad - D-finaliteit",146]
[null,null,null,null,null,0,null,null,1,null,1,null,1,null,1,null,1,null,1,null,1,null,1,null,1,null,"d","x",null,0,"d",null,null,null,null,null,null,null,null,null,null,0,null,null,null,null,null,null,null,null,null,null,null,null,null,null,0,"Wiskunde B+S - 2de graad - D/A-finaliteit",147]
[null,null,null,null,null,0,null,null,1,null,1,null,1,null,1,null,1,null,1,null,1,null,1,null,1,null,"d","x",null,0,"d",null,null,null,null,null,null,null,null,null,null,0,null,null,null,null,null,null,null,null,null,null,null,null,null,null,0,"Wiskunde B+S - 2de graad - D-finaliteit",148]
[null,null,null,null,null,0,null,null,1,null,1,null,1,null,1,null,1,null,1,null,1,null,1,null,1,null,"d","x",null,0,"d",null,null,null,null,null,null,null,null,null,null,0,null,null,null,null,null,null,null,null,null,null,null,null,null,null,0,"Wiskunde B+S' - 2de graad - D-finaliteit",149]
[null,null,null,null,null,0,null,null,1,null,1,null,1,null,1,null,1,null,1,null,1,null,1,null,1,null,"d","x",null,0,"d",null,null,null,null,null,null,null,null,null,null,0,null,null,null,null,null,null,null,null,null,null,null,null,null,null,0,"Wiskunde B+S' (oud) - 2de graad - D/A-finaliteit",150]
[null,null,null,null,null,0,null,null,1,null,1,null,1,null,1,null,1,null,1,null,1,null,1,null,1,null,"d","x",null,0,"d",null,null,null,null,null,null,null,null,null,null,0,null,null,null,null,null,null,null,null,null,null,null,null,null,null,0,"Wiskunde B+S'' (oud) - 2de graad - D/A-finaliteit",151]
[null,null,null,null,null,0,null,null,1,null,1,null,1,null,1,null,1,null,1,null,1,null,1,null,1,null,"d","x",null,0,"d",null,null,null,null,null,null,null,null,null,null,0,null,null,null,null,null,null,null,null,null,null,null,null,null,null,0,"Wiskunde - 2de graad - A-finaliteit",152]
[null,null,null,null,null,0,null,null,1,null,1,null,1,null,1,null,1,null,1,null,1,null,1,null,1,null,"d","x",null,0,"d",null,null,null,null,null,null,null,null,null,null,0,null,null,null,null,null,null,null,null,null,null,null,null,null,null,0,"Wiskunde - 2de graad - D/A-finaliteit",153]
[null,null,null,null,null,0,null,null,1,null,1,null,1,null,1,null,1,null,1,null,1,null,1,null,1,null,"d","x",null,0,"d",null,null,null,null,null,null,null,null,null,null,0,null,null,null,null,null,null,null,null,null,null,null,null,null,null,0,"Woordkunst-drama - 2de graad - D-finaliteit",154]
[null,null,null,null,null,0,null,null,1,null,1,null,1,null,1,null,1,null,1,null,1,null,1,null,1,null,"d","x",null,0,"d",null,null,null,null,null,null,null,null,null,null,0]
[null,null,null,null,null,0,null,null,1,null,1,null,1,null,1,null,1,null,1,null,1,null,1,null,1,null,"d","x",null,0,"d",null,null,null,null,null,null,null,null,null,null,0]
[null,null,null,null,null,0,null,null,1,null,1,null,1,null,1,null,1,null,1,null,1,null,1,null,1,null,"d","x",null,0,"d",null,null,null,null,null,null,null,null,null,null,0]
[null,null,null,null,null,0,null,null,1,null,1,null,1,null,1,null,1,null,1,null,1,null,1,null,1,null,"d","x",null,0,"d",null,null,null,null,null,null,null,null,null,null,0]
[null,null,null,null,null,0,null,null,1,null,1,null,1,null,1,null,1,null,1,null,1,null,1,null,1,null,"d","x",null,0,"d",null,null,null,null,null,null,null,null,null,null,0]
[null,null,null,null,null,0,null,null,1,null,1,null,1,null,1,null,1,null,1,null,1,null,1,null,1,null,"d","x",null,0,"d",null,null,null,null,null,null,null,null,null,null,0]
[null,null,null,null,null,0,null,null,1,null,1,null,1,null,1,null,1,null,1,null,1,null,1,null,1,null,"d","x",null,0,"d",null,null,null,null,null,null,null,null,null,null,0]
[null,null,null,null,null,0,null,null,1,null,1,null,1,null,1,null,1,null,1,null,1,null,1,null,1,null,"d","x",null,0,"d",null,null,null,null,null,null,null,null,null,null,0]
[null,null,null,null,null,0,null,null,1,null,1,null,1,null,1,null,1,null,1,null,1,null,1,null,1,null,"d","x",null,0,"d",null,null,null,null,null,null,null,null,null,null,0]
[null,null,null,null,null,0,null,null,1,null,1,null,1,null,1,null,1,null,1,null,1,null,1,null,1,null,"d","x",null,0,"d",null,null,null,null,null,null,null,null,null,null,0]
[null,null,null,null,null,0,null,null,1,null,1,null,1,null,1,null,1,null,1,null,1,null,1,null,1,null,"d","x",null,0,"d",null,null,null,null,null,null,null,null,null,null,0]
[null,null,null,null,null,0,null,null,1,null,1,null,1,null,1,null,1,null,1,null,1,null,1,null,1,null,"d","x",null,0,"d",null,null,null,null,null,null,null,null,null,null,0]
[null,null,null,null,null,0,null,null,1,null,1,null,1,null,1,null,1,null,1,null,1,null,1,null,1,null,"d","x",null,0,"d",null,null,null,null,null,null,null,null,null,null,0]
[null,null,null,null,null,0,null,null,1,null,1,null,1,null,1,null,1,null,1,null,1,null,1,null,1,null,"d","x",null,0,"d",null,null,null,null,null,null,null,null,null,null,0]
[null,null,null,null,null,0,null,null,1,null,1,null,1,null,1,null,1,null,1,null,1,null,1,null,1,null,"d","x",null,0,"d",null,null,null,null,null,null,null,null,null,null,0]
[null,null,null,null,null,0,null,null,1,null,1,null,1,null,1,null,1,null,1,null,1,null,1,null,1,null,"d","x",null,0,"d",null,null,null,null,null,null,null,null,null,null,0]
[null,null,null,null,null,0,null,null,1,null,1,null,1,null,1,null,1,null,1,null,1,null,1,null,1,null,"d","x",null,0,"d",null,null,null,null,null,null,null,null,null,null,0]
[null,null,null,null,null,0,null,null,1,null,1,null,1,null,1,null,1,null,1,null,1,null,1,null,1,null,"d","x",null,0,"d",null,null,null,null,null,null,null,null,null,null,0]
[null,null,null,null,null,0,null,null,1,null,1,null,1,null,1,null,1,null,1,null,1,null,1,null,1,null,"d","x",null,0,"d",null,null,null,null,null,null,null,null,null,null,0]
[null,null,null,null,null,0,null,null,1,null,1,null,1,null,1,null,1,null,1,null,1,null,1,null,1,null,"d","x",null,0,"d",null,null,null,null,null,null,null,null,null,null,0]
[null,null,null,null,null,0,null,null,1,null,1,null,1,null,1,null,1,null,1,null,1,null,1,null,1,null,"d","x",null,0,"d",null,null,null,null,null,null,null,null,null,null,0]
[null,null,null,null,null,0,null,null,1,null,1,null,1,null,1,null,1,null,1,null,1,null,1,null,1,null,"d","x",null,0,"d",null,null,null,null,null,null,null,null,null,null,0]
[null,null,null,null,null,0,null,null,1,null,1,null,1,null,1,null,1,null,1,null,1,null,1,null,1,null,"d","x",null,0,"d",null,null,null,null,null,null,null,null,null,null,0]
[null,null,null,null,null,0,null,null,1,null,1,null,1,null,1,null,1,null,1,null,1,null,1,null,1,null,"d","x",null,0,"d",null,null,null,null,null,null,null,null,null,null,0]
[null,null,null,null,null,0,null,null,1,null,1,null,1,null,1,null,1,null,1,null,1,null,1,null,1,null,"d","x",null,0,"d",null,null,null,null,null,null,null,null,null,null,0]
[null,null,null,null,null,0,null,null,1,null,1,null,1,null,1,null,1,null,1,null,1,null,1,null,1,null,"d","x",null,0,"d",null,null,null,null,null,null,null,null,null,null,0]
[null,null,null,null,null,0,null,null,1,null,1,null,1,null,1,null,1,null,1,null,1,null,1,null,1,null,"d","x",null,0,"d",null,null,null,null,null,null,null,null,null,null,0]
[null,null,null,null,null,0,null,null,1,null,1,null,1,null,1,null,1,null,1,null,1,null,1,null,1,null,"d","x",null,0,"d",null,null,null,null,null,null,null,null,null,null,0]
[null,null,null,null,null,0,null,null,1,null,1,null,1,null,1,null,1,null,1,null,1,null,1,null,1,null,"d","x",null,0,"d",null,null,null,null,null,null,null,null,null,null,0]
[null,null,null,null,null,0,null,null,1,null,1,null,1,null,1,null,1,null,1,null,1,null,1,null,1,null,"d","x",null,0,"d",null,null,null,null,null,null,null,null,null,null,0]
[null,null,null,null,null,0,null,null,1,null,1,null,1,null,1,null,1,null,1,null,1,null,1,null,1,null,"d","x",null,0,"d",null,null,null,null,null,null,null,null,null,null,0]
[null,null,null,null,null,0,null,null,1,null,1,null,1,null,1,null,1,null,1,null,1,null,1,null,1,null,"d","x",null,0,"d",null,null,null,null,null,null,null,null,null,null,0]
[null,null,null,null,null,0,null,null,1,null,1,null,1,null,1,null,1,null,1,null,1,null,1,null,1,null,"d","x",null,0,"d",null,null,null,null,null,null,null,null,null,null,0]
[null,null,null,null,null,0,null,null,1,null,1,null,1,null,1,null,1,null,1,null,1,null,1,null,1,null,"d","x",null,0,"d",null,null,null,null,null,null,null,null,null,null,0]
[null,null,null,null,null,0,null,null,1,null,1,null,1,null,1,null,1,null,1,null,1,null,1,null,1,null,"d","x",null,0,"d",null,null,null,null,null,null,null,null,null,null,0]
[null,null,null,null,null,0,null,null,1,null,1,null,1,null,1,null,1,null,1,null,1,null,1,null,1,null,"d","x",null,0,"d",null,null,null,null,null,null,null,null,null,null,0]
[null,null,null,null,null,0,null,null,1,null,1,null,1,null,1,null,1,null,1,null,1,null,1,null,1,null,"d","x",null,0,"d",null,null,null,null,null,null,null,null,null,null,0]
[null,null,null,null,null,0,null,null,{"$f":"COUNTBLANK(H198)","v":1},null,{"$f":"COUNTBLANK(J198)","v":1},null,{"$f":"COUNTBLANK(L198)","v":1},null,{"$f":"COUNTBLANK(N198)","v":1},null,{"$f":"COUNTBLANK(P198)","v":1},null,{"$f":"COUNTBLANK(R198)","v":1},null,{"$f":"COUNTBLANK(T198)","v":1},null,{"$f":"COUNTBLANK(V198)","v":1},null,{"$f":"COUNTBLANK(X198)","v":1},null,"d","x",null,0,"d",null,null,null,null,null,null,null,null,null,null,0]
[null,null,null,null,null,0,null,null,1,null,1,null,1,null,1,null,1,null,1,null,1,null,1,null,1,null,"d","x",null,0,"d",null,null,null,null,null,null,null,null,null,null,0]
[null,null,null,null,null,0,null,null,1,null,1,null,1,null,1,null,1,null,1,null,1,null,1,null,1,null,"d","x",null,0,"d",null,null,null,null,null,null,null,null,null,null,0]
[null,null,null,null,null,0,null,null,1,null,1,null,1,null,1,null,1,null,1,null,1,null,1,null,1,null,"d","x",null,0,"d",null,null,null,null,null,null,null,null,null,null,0]
[null,null,null,null,null,0,null,null,1,null,1,null,1,null,1,null,1,null,1,null,1,null,1,null,1,null,"d","x",null,0,"d",null,null,null,null,null,null,null,null,null,null,0]
[null,null,null,null,null,0,null,null,1,null,1,null,1,null,1,null,1,null,1,null,1,null,1,null,1,null,"d","x",null,0,"d",null,null,null,null,null,null,null,null,null,null,0]
[null,null,null,null,null,0,null,null,1,null,1,null,1,null,1,null,1,null,1,null,1,null,1,null,1,null,"d","x",null,0,"d",null,null,null,null,null,null,null,null,null,null,0]
[null,null,null,null,null,0,null,null,1,null,1,null,1,null,1,null,1,null,1,null,1,null,1,null,1,null,"d","x",null,0,"d",null,null,null,null,null,null,null,null,null,null,0]
[null,null,null,null,null,0,null,null,1,null,1,null,1,null,1,null,1,null,1,null,1,null,1,null,1,null,"d","x",null,0,"d",null,null,null,null,null,null,null,null,null,null,0]
[null,null,null,null,null,0,null,null,1,null,1,null,1,null,1,null,1,null,1,null,1,null,1,null,1,null,"d","x",null,0,"d",null,null,null,null,null,null,null,null,null,null,0]
[null,null,null,null,null,0,null,null,1,null,1,null,1,null,1,null,1,null,1,null,1,null,1,null,1,null,"d","x",null,0,"d",null,null,null,null,null,null,null,null,null,null,0]
[null,null,null,null,null,0,null,null,1,null,1,null,1,null,1,null,1,null,1,null,1,null,1,null,1,null,"d","x",null,0,"d",null,null,null,null,null,null,null,null,null,null,0]
[null,null,null,null,null,0,null,null,1,null,1,null,1,null,1,null,1,null,1,null,1,null,1,null,1,null,"d","x",null,0,"d",null,null,null,null,null,null,null,null,null,null,0]
[null,null,null,null,null,0,null,null,1,null,1,null,1,null,1,null,1,null,1,null,1,null,1,null,1,null,"d","x",null,0,"d",null,null,null,null,null,null,null,null,null,null,0]
[null,null,null,null,null,0,null,null,1,null,1,null,1,null,1,null,1,null,1,null,1,null,1,null,1,null,"d","x",null,0,"d",null,null,null,null,null,null,null,null,null,null,0]
[null,null,null,null,null,0,null,null,1,null,1,null,1,null,1,null,1,null,1,null,1,null,1,null,1,null,"d","x",null,0,"d",null,null,null,null,null,null,null,null,null,null,0]
[null,null,null,null,null,{"$f":"9-(I214+K214+M214+O214+Q214+S214+U214++Y214+W214)","v":0},null,null,1,null,1,null,1,null,1,null,1,null,1,null,1,null,1,null,1,null,"d","x",null,{"$f":"D214","v":0},"d",null,null,null,null,null,null,null,null,null,null,0]
[null,null,null,null,null,0,null,null,1,null,1,null,1,null,1,null,1,null,1,null,1,null,1,null,1,null,"d","x",null,0,"d",null,null,null,null,null,null,null,null,null,null,0]
[null,null,null,null,null,0,null,null,1,null,1,null,1,null,1,null,1,null,1,null,1,null,1,null,1,null,"d","x",null,0,"d",null,null,null,null,null,null,null,null,null,null,0]
[null,null,null,null,null,0,null,null,1,null,1,null,1,null,1,null,1,null,1,null,1,null,1,null,1,null,"d","x",null,0,"d",null,null,null,null,null,null,null,null,null,null,0]
[null,null,null,null,null,0,null,null,1,null,1,null,1,null,1,null,1,null,1,null,1,null,1,null,1,null,"d","x",null,0,"d",null,null,null,null,null,null,null,null,null,null,0]
[null,null,null,null,null,0,null,null,1,null,1,null,1,null,1,null,1,null,1,null,1,null,1,null,1,null,"d","x",null,0,"d",null,null,null,null,null,null,null,null,null,null,0]
[null,null,null,null,null,0,null,null,1,null,1,null,1,null,1,null,1,null,1,null,1,null,1,null,1,null,"d","x",null,0,"d",null,null,null,null,null,null,null,null,null,null,0]
[null,null,null,null,null,0,null,null,1,null,1,null,1,null,1,null,1,null,1,null,1,null,1,null,1,null,"d","x",null,0,"d",null,null,null,null,null,null,null,null,null,null,0]
[null,null,null,null,null,0,null,null,1,null,1,null,1,null,1,null,1,null,1,null,1,null,1,null,1,null,"d","x",null,0,"d",null,null,null,null,null,null,null,null,null,null,0]
[null,null,null,null,null,0,null,null,1,null,1,null,1,null,1,null,1,null,1,null,1,null,1,null,1,null,"d","x",null,0,"d",null,null,null,null,null,null,null,null,null,null,0]
[null,null,null,null,null,0,null,null,1,null,1,null,1,null,1,null,1,null,1,null,1,null,1,null,1,null,"d","x",null,0,"d",null,null,null,null,null,null,null,null,null,null,0]
[null,null,null,null,null,0,null,null,1,null,1,null,1,null,1,null,1,null,1,null,1,null,1,null,1,null,"d","x",null,0,"d",null,null,null,null,null,null,null,null,null,null,0]
[null,null,null,null,null,0,null,null,1,null,1,null,1,null,1,null,1,null,1,null,1,null,1,null,1,null,"d","x",null,0,"d",null,null,null,null,null,null,null,null,null,null,0]
[null,null,null,null,null,0,null,null,1,null,1,null,1,null,1,null,1,null,1,null,1,null,1,null,1,null,"d","x",null,0,"d",null,null,null,null,null,null,null,null,null,null,0]
[null,null,null,null,null,0,null,null,1,null,1,null,1,null,1,null,1,null,1,null,1,null,1,null,1,null,"d","x",null,0,"d",null,null,null,null,null,null,null,null,null,null,0]
[null,null,null,null,null,0,null,null,1,null,1,null,1,null,1,null,1,null,1,null,1,null,1,null,1,null,"d","x",null,0,"d",null,null,null,null,null,null,null,null,null,null,0]
[null,null,null,null,null,0,null,null,1,null,1,null,1,null,1,null,1,null,1,null,1,null,1,null,1,null,"d","x",null,0,"d",null,null,null,null,null,null,null,null,null,null,0]
[null,null,null,null,null,0,null,null,1,null,1,null,1,null,1,null,1,null,1,null,1,null,1,null,1,null,"d","x",null,0,"d",null,null,null,null,null,null,null,null,null,null,0]
[null,null,null,null,null,0,null,null,1,null,1,null,1,null,1,null,1,null,1,null,1,null,1,null,1,null,"d","x",null,0,"d",null,null,null,null,null,null,null,null,null,null,0]
[null,null,null,null,null,0,null,null,1,null,1,null,1,null,1,null,1,null,1,null,1,null,1,null,1,null,"d","x",null,0,"d",null,null,null,null,null,null,null,null,null,null,0]
[null,null,null,null,null,0,null,null,1,null,1,null,1,null,1,null,1,null,1,null,1,null,1,null,1,null,"d","x",null,0,"d",null,null,null,null,null,null,null,null,null,null,0]
[null,null,null,null,null,0,null,null,1,null,1,null,1,null,1,null,1,null,1,null,1,null,1,null,1,null,"d","x",null,0,"d",null,null,null,null,null,null,null,null,null,null,0]
[null,null,null,null,null,0,null,null,1,null,1,null,1,null,1,null,1,null,1,null,1,null,1,null,1,null,"d","x",null,0,"d",null,null,null,null,null,null,null,null,null,null,0]
[null,null,null,null,null,0,null,null,1,null,1,null,1,null,1,null,1,null,1,null,1,null,1,null,1,null,"d","x",null,0,"d",null,null,null,null,null,null,null,null,null,null,0]
[null,null,null,null,null,0,null,null,1,null,1,null,1,null,1,null,1,null,1,null,1,null,1,null,1,null,"d","x",null,0,"d",null,null,null,null,null,null,null,null,null,null,0]
[null,null,null,null,null,0,null,null,1,null,1,null,1,null,1,null,1,null,1,null,1,null,1,null,1,null,"d","x",null,0,"d",null,null,null,null,null,null,null,null,null,null,0]
[null,null,null,null,null,0,null,null,1,null,1,null,1,null,1,null,1,null,1,null,1,null,1,null,1,null,"d","x",null,0,"d",null,null,null,null,null,null,null,null,null,null,0]
[null,null,null,null,null,0,null,null,1,null,1,null,1,null,1,null,1,null,1,null,1,null,1,null,1,null,"d","x",null,0,"d",null,null,null,null,null,null,null,null,null,null,0]
[null,null,null,null,null,0,null,null,1,null,1,null,1,null,1,null,1,null,1,null,1,null,1,null,1,null,"d","x",null,0,"d",null,null,null,null,null,null,null,null,null,null,0]
[null,null,null,null,null,0,null,null,1,null,1,null,1,null,1,null,1,null,1,null,1,null,1,null,1,null,"d","x",null,0,"d",null,null,null,null,null,null,null,null,null,null,0]
[null,null,null,null,null,0,null,null,1,null,1,null,1,null,1,null,1,null,1,null,1,null,1,null,1,null,"d","x",null,0,"d",null,null,null,null,null,null,null,null,null,null,0]
[null,null,null,null,null,0,null,null,1,null,1,null,1,null,1,null,1,null,1,null,1,null,1,null,1,null,"d","x",null,0,"d",null,null,null,null,null,null,null,null,null,null,0]
[null,null,null,null,null,0,null,null,1,null,1,null,1,null,1,null,1,null,1,null,1,null,1,null,1,null,"d","x",null,0,"d",null,null,null,null,null,null,null,null,null,null,0]
[null,null,null,null,null,0,null,null,1,null,1,null,1,null,1,null,1,null,1,null,1,null,1,null,1,null,"d","x",null,0,"d",null,null,null,null,null,null,null,null,null,null,0]
[null,null,null,null,null,0,null,null,1,null,1,null,1,null,1,null,1,null,1,null,1,null,1,null,1,null,"d","x",null,0,"d",null,null,null,null,null,null,null,null,null,null,0]
[null,null,null,null,null,0,null,null,1,null,1,null,1,null,1,null,1,null,1,null,1,null,1,null,1,null,"d","x",null,0,"d",null,null,null,null,null,null,null,null,null,null,0]
[null,null,null,null,null,0,null,null,1,null,1,null,1,null,1,null,1,null,1,null,1,null,1,null,1,null,"d","x",null,0,"d",null,null,null,null,null,null,null,null,null,null,0]
[null,null,null,null,null,0,null,null,1,null,1,null,1,null,1,null,1,null,1,null,1,null,1,null,1,null,"d","x",null,0,"d",null,null,null,null,null,null,null,null,null,null,0]
[null,null,null,null,null,0,null,null,1,null,1,null,1,null,1,null,1,null,1,null,1,null,1,null,1,null,"d","x",null,0,"d",null,null,null,null,null,null,null,null,null,null,0]
[null,null,null,null,null,0,null,null,1,null,1,null,1,null,1,null,1,null,1,null,1,null,1,null,1,null,"d","x",null,0,"d",null,null,null,null,null,null,null,null,null,null,0]
[null,null,null,null,null,0,null,null,1,null,1,null,1,null,1,null,1,null,1,null,1,null,1,null,1,null,"d","x",null,0,"d",null,null,null,null,null,null,null,null,null,null,0]
[null,null,null,null,null,0,null,null,1,null,1,null,1,null,1,null,1,null,1,null,1,null,1,null,1,null,"d","x",null,0,"d",null,null,null,null,null,null,null,null,null,null,0]
[null,null,null,null,null,0,null,null,1,null,1,null,1,null,1,null,1,null,1,null,1,null,1,null,1,null,"d","x",null,0,"d",null,null,null,null,null,null,null,null,null,null,0]
[null,null,null,null,null,0,null,null,1,null,1,null,1,null,1,null,1,null,1,null,1,null,1,null,1,null,"d","x",null,0,"d",null,null,null,null,null,null,null,null,null,null,0]
[null,null,null,null,null,0,null,null,1,null,1,null,1,null,1,null,1,null,1,null,1,null,1,null,1,null,"d","x",null,0,"d",null,null,null,null,null,null,null,null,null,null,0]
[null,null,null,null,null,0,null,null,1,null,1,null,1,null,1,null,1,null,1,null,1,null,1,null,1,null,"d","x",null,0,"d",null,null,null,null,null,null,null,null,null,null,0]
[null,null,null,null,null,0,null,null,1,null,1,null,1,null,1,null,1,null,1,null,1,null,1,null,1,null,"d","x",null,0,"d",null,null,null,null,null,null,null,null,null,null,0]
[null,null,null,null,null,0,null,null,1,null,1,null,1,null,1,null,1,null,1,null,1,null,1,null,1,null,"d","x",null,0,"d",null,null,null,null,null,null,null,null,null,null,0]
[null,null,null,null,null,0,null,null,{"$f":"COUNTBLANK(H262)","v":1},null,{"$f":"COUNTBLANK(J262)","v":1},null,{"$f":"COUNTBLANK(L262)","v":1},null,{"$f":"COUNTBLANK(N262)","v":1},null,{"$f":"COUNTBLANK(P262)","v":1},null,{"$f":"COUNTBLANK(R262)","v":1},null,{"$f":"COUNTBLANK(T262)","v":1},null,{"$f":"COUNTBLANK(V262)","v":1},null,{"$f":"COUNTBLANK(X262)","v":1},null,"d","x",null,0,"d",null,null,null,null,null,null,null,null,null,null,0]
[null,null,null,null,null,0,null,null,1,null,1,null,1,null,1,null,1,null,1,null,1,null,1,null,1,null,"d","x",null,0,"d",null,null,null,null,null,null,null,null,null,null,0]
[null,null,null,null,null,0,null,null,1,null,1,null,1,null,1,null,1,null,1,null,1,null,1,null,1,null,"d","x",null,0,"d",null,null,null,null,null,null,null,null,null,null,0]
[null,null,null,null,null,0,null,null,1,null,1,null,1,null,1,null,1,null,1,null,1,null,1,null,1,null,"d","x",null,0,"d",null,null,null,null,null,null,null,null,null,null,0]
[null,null,null,null,null,0,null,null,1,null,1,null,1,null,1,null,1,null,1,null,1,null,1,null,1,null,"d","x",null,0,"d",null,null,null,null,null,null,null,null,null,null,0]
[null,null,null,null,null,0,null,null,1,null,1,null,1,null,1,null,1,null,1,null,1,null,1,null,1,null,"d","x",null,0,"d",null,null,null,null,null,null,null,null,null,null,0]
[null,null,null,null,null,0,null,null,1,null,1,null,1,null,1,null,1,null,1,null,1,null,1,null,1,null,"d","x",null,0,"d",null,null,null,null,null,null,null,null,null,null,0]
[null,null,null,null,null,0,null,null,1,null,1,null,1,null,1,null,1,null,1,null,1,null,1,null,1,null,"d","x",null,0,"d",null,null,null,null,null,null,null,null,null,null,0]
[null,null,null,null,null,0,null,null,1,null,1,null,1,null,1,null,1,null,1,null,1,null,1,null,1,null,"d","x",null,0,"d",null,null,null,null,null,null,null,null,null,null,0]
[null,null,null,null,null,0,null,null,1,null,1,null,1,null,1,null,1,null,1,null,1,null,1,null,1,null,"d","x",null,0,"d",null,null,null,null,null,null,null,null,null,null,0]
[null,null,null,null,null,0,null,null,1,null,1,null,1,null,1,null,1,null,1,null,1,null,1,null,1,null,"d","x",null,0,"d",null,null,null,null,null,null,null,null,null,null,0]
[null,null,null,null,null,0,null,null,1,null,1,null,1,null,1,null,1,null,1,null,1,null,1,null,1,null,"d","x",null,0,"d",null,null,null,null,null,null,null,null,null,null,0]
[null,null,null,null,null,0,null,null,1,null,1,null,1,null,1,null,1,null,1,null,1,null,1,null,1,null,"d","x",null,0,"d",null,null,null,null,null,null,null,null,null,null,0]
[null,null,null,null,null,0,null,null,1,null,1,null,1,null,1,null,1,null,1,null,1,null,1,null,1,null,"d","x",null,0,"d",null,null,null,null,null,null,null,null,null,null,0]
[null,null,null,null,null,0,null,null,1,null,1,null,1,null,1,null,1,null,1,null,1,null,1,null,1,null,"d","x",null,0,"d",null,null,null,null,null,null,null,null,null,null,0]
[null,null,null,null,null,0,null,null,1,null,1,null,1,null,1,null,1,null,1,null,1,null,1,null,1,null,"d","x",null,0,"d",null,null,null,null,null,null,null,null,null,null,0]
[null,null,null,null,null,{"$f":"9-(I278+K278+M278+O278+Q278+S278+U278++Y278+W278)","v":0},null,null,1,null,1,null,1,null,1,null,1,null,1,null,1,null,1,null,1,null,"d","x",null,{"$f":"D278","v":0},"d",null,null,null,null,null,null,null,null,null,null,0]
[null,null,null,null,null,0,null,null,1,null,1,null,1,null,1,null,1,null,1,null,1,null,1,null,1,null,"d","x",null,0,"d",null,null,null,null,null,null,null,null,null,null,0]
[null,null,null,null,null,0,null,null,1,null,1,null,1,null,1,null,1,null,1,null,1,null,1,null,1,null,"d","x",null,0,"d",null,null,null,null,null,null,null,null,null,null,0]
[null,null,null,null,null,0,null,null,1,null,1,null,1,null,1,null,1,null,1,null,1,null,1,null,1,null,"d","x",null,0,"d",null,null,null,null,null,null,null,null,null,null,0]
[null,null,null,null,null,0,null,null,1,null,1,null,1,null,1,null,1,null,1,null,1,null,1,null,1,null,"d","x",null,0,"d",null,null,null,null,null,null,null,null,null,null,0]
[null,null,null,null,null,0,null,null,1,null,1,null,1,null,1,null,1,null,1,null,1,null,1,null,1,null,"d","x",null,0,"d",null,null,null,null,null,null,null,null,null,null,0]
[null,null,null,null,null,0,null,null,1,null,1,null,1,null,1,null,1,null,1,null,1,null,1,null,1,null,"d","x",null,0,"d",null,null,null,null,null,null,null,null,null,null,0]
[null,null,null,null,null,0,null,null,1,null,1,null,1,null,1,null,1,null,1,null,1,null,1,null,1,null,"d","x",null,0,"d",null,null,null,null,null,null,null,null,null,null,0]
[null,null,null,null,null,0,null,null,1,null,1,null,1,null,1,null,1,null,1,null,1,null,1,null,1,null,"d","x",null,0,"d",null,null,null,null,null,null,null,null,null,null,0]
[null,null,null,null,null,0,null,null,1,null,1,null,1,null,1,null,1,null,1,null,1,null,1,null,1,null,"d","x",null,0,"d",null,null,null,null,null,null,null,null,null,null,0]
[null,null,null,null,null,0,null,null,1,null,1,null,1,null,1,null,1,null,1,null,1,null,1,null,1,null,"d","x",null,0,"d",null,null,null,null,null,null,null,null,null,null,0]
[null,null,null,null,null,0,null,null,1,null,1,null,1,null,1,null,1,null,1,null,1,null,1,null,1,null,"d","x",null,0,"d",null,null,null,null,null,null,null,null,null,null,0]
[null,null,null,null,null,0,null,null,1,null,1,null,1,null,1,null,1,null,1,null,1,null,1,null,1,null,"d","x",null,0,"d",null,null,null,null,null,null,null,null,null,null,0]
[null,null,null,null,null,0,null,null,1,null,1,null,1,null,1,null,1,null,1,null,1,null,1,null,1,null,"d","x",null,0,"d",null,null,null,null,null,null,null,null,null,null,0]
[null,null,null,null,null,0,null,null,1,null,1,null,1,null,1,null,1,null,1,null,1,null,1,null,1,null,"d","x",null,0,"d",null,null,null,null,null,null,null,null,null,null,0]
[null,null,null,null,null,0,null,null,1,null,1,null,1,null,1,null,1,null,1,null,1,null,1,null,1,null,"d","x",null,0,"d",null,null,null,null,null,null,null,null,null,null,0]
[null,null,null,null,null,0,null,null,1,null,1,null,1,null,1,null,1,null,1,null,1,null,1,null,1,null,"d","x",null,0,"d",null,null,null,null,null,null,null,null,null,null,0]
[null,null,null,null,null,0,null,null,1,null,1,null,1,null,1,null,1,null,1,null,1,null,1,null,1,null,"d","x",null,0,"d",null,null,null,null,null,null,null,null,null,null,0]
[null,null,null,null,null,0,null,null,1,null,1,null,1,null,1,null,1,null,1,null,1,null,1,null,1,null,"d","x",null,0,"d",null,null,null,null,null,null,null,null,null,null,0]
[null,null,null,null,null,0,null,null,1,null,1,null,1,null,1,null,1,null,1,null,1,null,1,null,1,null,"d","x",null,0,"d",null,null,null,null,null,null,null,null,null,null,0]
[null,null,null,null,null,0,null,null,1,null,1,null,1,null,1,null,1,null,1,null,1,null,1,null,1,null,"d","x",null,0,"d",null,null,null,null,null,null,null,null,null,null,0]
[null,null,null,null,null,0,null,null,1,null,1,null,1,null,1,null,1,null,1,null,1,null,1,null,1,null,"d","x",null,0,"d",null,null,null,null,null,null,null,null,null,null,0]
[null,null,null,null,null,0,null,null,1,null,1,null,1,null,1,null,1,null,1,null,1,null,1,null,1,null,"d","x",null,0,"d",null,null,null,null,null,null,null,null,null,null,0]
[null,null,null,null,null,0,null,null,1,null,1,null,1,null,1,null,1,null,1,null,1,null,1,null,1,null,"d","x",null,0,"d",null,null,null,null,null,null,null,null,null,null,0]
[null,null,null,null,null,0,null,null,1,null,1,null,1,null,1,null,1,null,1,null,1,null,1,null,1,null,"d","x",null,0,"d",null,null,null,null,null,null,null,null,null,null,0]
[null,null,null,null,null,0,null,null,1,null,1,null,1,null,1,null,1,null,1,null,1,null,1,null,1,null,"d","x",null,0,"d",null,null,null,null,null,null,null,null,null,null,0]
[null,null,null,null,null,0,null,null,1,null,1,null,1,null,1,null,1,null,1,null,1,null,1,null,1,null,"d","x",null,0,"d",null,null,null,null,null,null,null,null,null,null,0]
[null,null,null,null,null,0,null,null,1,null,1,null,1,null,1,null,1,null,1,null,1,null,1,null,1,null,"d","x",null,0,"d",null,null,null,null,null,null,null,null,null,null,0]
[null,null,null,null,null,0,null,null,1,null,1,null,1,null,1,null,1,null,1,null,1,null,1,null,1,null,"d","x",null,0,"d",null,null,null,null,null,null,null,null,null,null,0]
[null,null,null,null,null,0,null,null,1,null,1,null,1,null,1,null,1,null,1,null,1,null,1,null,1,null,"d","x",null,0,"d",null,null,null,null,null,null,null,null,null,null,0]
[null,null,null,null,null,0,null,null,1,null,1,null,1,null,1,null,1,null,1,null,1,null,1,null,1,null,"d","x",null,0,"d",null,null,null,null,null,null,null,null,null,null,0]
[null,null,null,null,null,0,null,null,1,null,1,null,1,null,1,null,1,null,1,null,1,null,1,null,1,null,"d","x",null,0,"d",null,null,null,null,null,null,null,null,null,null,0]
[null,null,null,null,null,0,null,null,1,null,1,null,1,null,1,null,1,null,1,null,1,null,1,null,1,null,"d","x",null,0,"d",null,null,null,null,null,null,null,null,null,null,0]
[null,null,null,null,null,0,null,null,1,null,1,null,1,null,1,null,1,null,1,null,1,null,1,null,1,null,"d","x",null,0,"d",null,null,null,null,null,null,null,null,null,null,0]
[null,null,null,null,null,0,null,null,1,null,1,null,1,null,1,null,1,null,1,null,1,null,1,null,1,null,"d","x",null,0,"d",null,null,null,null,null,null,null,null,null,null,0]
[null,null,null,null,null,0,null,null,1,null,1,null,1,null,1,null,1,null,1,null,1,null,1,null,1,null,"d","x",null,0,"d",null,null,null,null,null,null,null,null,null,null,0]
[null,null,null,null,null,0,null,null,1,null,1,null,1,null,1,null,1,null,1,null,1,null,1,null,1,null,"d","x",null,0,"d",null,null,null,null,null,null,null,null,null,null,0]
[null,null,null,null,null,0,null,null,1,null,1,null,1,null,1,null,1,null,1,null,1,null,1,null,1,null,"d","x",null,0,"d",null,null,null,null,null,null,null,null,null,null,0]
[null,null,null,null,null,0,null,null,1,null,1,null,1,null,1,null,1,null,1,null,1,null,1,null,1,null,"d","x",null,0,"d",null,null,null,null,null,null,null,null,null,null,0]
[null,null,null,null,null,0,null,null,1,null,1,null,1,null,1,null,1,null,1,null,1,null,1,null,1,null,"d","x",null,0,"d",null,null,null,null,null,null,null,null,null,null,0]
[null,null,null,null,null,0,null,null,1,null,1,null,1,null,1,null,1,null,1,null,1,null,1,null,1,null,"d","x",null,0,"d",null,null,null,null,null,null,null,null,null,null,0]
[null,null,null,null,null,0,null,null,1,null,1,null,1,null,1,null,1,null,1,null,1,null,1,null,1,null,"d","x",null,0,"d",null,null,null,null,null,null,null,null,null,null,0]
[null,null,null,null,null,0,null,null,1,null,1,null,1,null,1,null,1,null,1,null,1,null,1,null,1,null,"d","x",null,0,"d",null,null,null,null,null,null,null,null,null,null,0]
[null,null,null,null,null,0,null,null,1,null,1,null,1,null,1,null,1,null,1,null,1,null,1,null,1,null,"d","x",null,0,"d",null,null,null,null,null,null,null,null,null,null,0]
[null,null,null,null,null,0,null,null,1,null,1,null,1,null,1,null,1,null,1,null,1,null,1,null,1,null,"d","x",null,0,"d",null,null,null,null,null,null,null,null,null,null,0]
[null,null,null,null,null,0,null,null,1,null,1,null,1,null,1,null,1,null,1,null,1,null,1,null,1,null,"d","x",null,0,"d",null,null,null,null,null,null,null,null,null,null,0]
[null,null,null,null,null,0,null,null,1,null,1,null,1,null,1,null,1,null,1,null,1,null,1,null,1,null,"d","x",null,0,"d",null,null,null,null,null,null,null,null,null,null,0]
[null,null,null,null,null,0,null,null,1,null,1,null,1,null,1,null,1,null,1,null,1,null,1,null,1,null,"d","x",null,0,"d",null,null,null,null,null,null,null,null,null,null,0]
[null,null,null,null,null,0,null,null,{"$f":"COUNTBLANK(H326)","v":1},null,{"$f":"COUNTBLANK(J326)","v":1},null,{"$f":"COUNTBLANK(L326)","v":1},null,{"$f":"COUNTBLANK(N326)","v":1},null,{"$f":"COUNTBLANK(P326)","v":1},null,{"$f":"COUNTBLANK(R326)","v":1},null,{"$f":"COUNTBLANK(T326)","v":1},null,{"$f":"COUNTBLANK(V326)","v":1},null,{"$f":"COUNTBLANK(X326)","v":1},null,"d","x",null,0,"d",null,null,null,null,null,null,null,null,null,null,0]
[null,null,null,null,null,0,null,null,1,null,1,null,1,null,1,null,1,null,1,null,1,null,1,null,1,null,"d","x",null,0,"d",null,null,null,null,null,null,null,null,null,null,0]
[null,null,null,null,null,0,null,null,1,null,1,null,1,null,1,null,1,null,1,null,1,null,1,null,1,null,"d","x",null,0,"d",null,null,null,null,null,null,null,null,null,null,0]
[null,null,null,null,null,0,null,null,1,null,1,null,1,null,1,null,1,null,1,null,1,null,1,null,1,null,"d","x",null,0,"d",null,null,null,null,null,null,null,null,null,null,0]
[null,null,null,null,null,0,null,null,1,null,1,null,1,null,1,null,1,null,1,null,1,null,1,null,1,null,"d","x",null,0,"d",null,null,null,null,null,null,null,null,null,null,0]
[null,null,null,null,null,0,null,null,1,null,1,null,1,null,1,null,1,null,1,null,1,null,1,null,1,null,"d","x",null,0,"d",null,null,null,null,null,null,null,null,null,null,0]
[null,null,null,null,null,0,null,null,1,null,1,null,1,null,1,null,1,null,1,null,1,null,1,null,1,null,"d","x",null,0,"d",null,null,null,null,null,null,null,null,null,null,0]
[null,null,null,null,null,0,null,null,1,null,1,null,1,null,1,null,1,null,1,null,1,null,1,null,1,null,"d","x",null,0,"d",null,null,null,null,null,null,null,null,null,null,0]
[null,null,null,null,null,0,null,null,1,null,1,null,1,null,1,null,1,null,1,null,1,null,1,null,1,null,"d","x",null,0,"d",null,null,null,null,null,null,null,null,null,null,0]
[null,null,null,null,null,0,null,null,1,null,1,null,1,null,1,null,1,null,1,null,1,null,1,null,1,null,"d","x",null,0,"d",null,null,null,null,null,null,null,null,null,null,0]
[null,null,null,null,null,0,null,null,1,null,1,null,1,null,1,null,1,null,1,null,1,null,1,null,1,null,"d","x",null,0,"d",null,null,null,null,null,null,null,null,null,null,0]
[null,null,null,null,null,0,null,null,1,null,1,null,1,null,1,null,1,null,1,null,1,null,1,null,1,null,"d","x",null,0,"d",null,null,null,null,null,null,null,null,null,null,0]
[null,null,null,null,null,0,null,null,1,null,1,null,1,null,1,null,1,null,1,null,1,null,1,null,1,null,"d","x",null,0,"d",null,null,null,null,null,null,null,null,null,null,0]
[null,null,null,null,null,0,null,null,1,null,1,null,1,null,1,null,1,null,1,null,1,null,1,null,1,null,"d","x",null,0,"d",null,null,null,null,null,null,null,null,null,null,0]
[null,null,null,null,null,0,null,null,1,null,1,null,1,null,1,null,1,null,1,null,1,null,1,null,1,null,"d","x",null,0,"d",null,null,null,null,null,null,null,null,null,null,0]
[null,null,null,null,null,0,null,null,1,null,1,null,1,null,1,null,1,null,1,null,1,null,1,null,1,null,"d","x",null,0,"d",null,null,null,null,null,null,null,null,null,null,0]
[null,null,null,null,null,{"$f":"9-(I342+K342+M342+O342+Q342+S342+U342++Y342+W342)","v":0},null,null,1,null,1,null,1,null,1,null,1,null,1,null,1,null,1,null,1,null,"d","x",null,{"$f":"D342","v":0},"d",null,null,null,null,null,null,null,null,null,null,0]
[null,null,null,null,null,0,null,null,1,null,1,null,1,null,1,null,1,null,1,null,1,null,1,null,1,null,"d","x",null,0,"d",null,null,null,null,null,null,null,null,null,null,0]
[null,null,null,null,null,0,null,null,1,null,1,null,1,null,1,null,1,null,1,null,1,null,1,null,1,null,"d","x",null,0,"d",null,null,null,null,null,null,null,null,null,null,0]
[null,null,null,null,null,0,null,null,1,null,1,null,1,null,1,null,1,null,1,null,1,null,1,null,1,null,"d","x",null,0,"d",null,null,null,null,null,null,null,null,null,null,0]
[null,null,null,null,null,0,null,null,1,null,1,null,1,null,1,null,1,null,1,null,1,null,1,null,1,null,"d","x",null,0,"d",null,null,null,null,null,null,null,null,null,null,0]
[null,null,null,null,null,0,null,null,1,null,1,null,1,null,1,null,1,null,1,null,1,null,1,null,1,null,"d","x",null,0,"d",null,null,null,null,null,null,null,null,null,null,0]
[null,null,null,null,null,0,null,null,1,null,1,null,1,null,1,null,1,null,1,null,1,null,1,null,1,null,"d","x",null,0,"d",null,null,null,null,null,null,null,null,null,null,0]
[null,null,null,null,null,0,null,null,1,null,1,null,1,null,1,null,1,null,1,null,1,null,1,null,1,null,"d","x",null,0,"d",null,null,null,null,null,null,null,null,null,null,0]
[null,null,null,null,null,0,null,null,1,null,1,null,1,null,1,null,1,null,1,null,1,null,1,null,1,null,"d","x",null,0,"d",null,null,null,null,null,null,null,null,null,null,0]
[null,null,null,null,null,0,null,null,1,null,1,null,1,null,1,null,1,null,1,null,1,null,1,null,1,null,"d","x",null,0,"d",null,null,null,null,null,null,null,null,null,null,0]
[null,null,null,null,null,0,null,null,1,null,1,null,1,null,1,null,1,null,1,null,1,null,1,null,1,null,"d","x",null,0,"d",null,null,null,null,null,null,null,null,null,null,0]
[null,null,null,null,null,0,null,null,1,null,1,null,1,null,1,null,1,null,1,null,1,null,1,null,1,null,"d","x",null,0,"d",null,null,null,null,null,null,null,null,null,null,0]
[null,null,null,null,null,0,null,null,1,null,1,null,1,null,1,null,1,null,1,null,1,null,1,null,1,null,"d","x",null,0,"d",null,null,null,null,null,null,null,null,null,null,0]
[null,null,null,null,null,0,null,null,1,null,1,null,1,null,1,null,1,null,1,null,1,null,1,null,1,null,"d","x",null,0,"d",null,null,null,null,null,null,null,null,null,null,0]
[null,null,null,null,null,0,null,null,1,null,1,null,1,null,1,null,1,null,1,null,1,null,1,null,1,null,"d","x",null,0,"d",null,null,null,null,null,null,null,null,null,null,0]
[null,null,null,null,null,0,null,null,1,null,1,null,1,null,1,null,1,null,1,null,1,null,1,null,1,null,"d","x",null,0,"d",null,null,null,null,null,null,null,null,null,null,0]
[null,null,null,null,null,0,null,null,1,null,1,null,1,null,1,null,1,null,1,null,1,null,1,null,1,null,"d","x",null,0,"d",null,null,null,null,null,null,null,null,null,null,0]
[null,null,null,null,null,0,null,null,1,null,1,null,1,null,1,null,1,null,1,null,1,null,1,null,1,null,"d","x",null,0,"d",null,null,null,null,null,null,null,null,null,null,0]
[null,null,null,null,null,0,null,null,1,null,1,null,1,null,1,null,1,null,1,null,1,null,1,null,1,null,"d","x",null,0,"d",null,null,null,null,null,null,null,null,null,null,0]
[null,null,null,null,null,0,null,null,1,null,1,null,1,null,1,null,1,null,1,null,1,null,1,null,1,null,"d","x",null,0,"d",null,null,null,null,null,null,null,null,null,null,0]
[null,null,null,null,null,0,null,null,1,null,1,null,1,null,1,null,1,null,1,null,1,null,1,null,1,null,"d","x",null,0,"d",null,null,null,null,null,null,null,null,null,null,0]
[null,null,null,null,null,0,null,null,1,null,1,null,1,null,1,null,1,null,1,null,1,null,1,null,1,null,"d","x",null,0,"d",null,null,null,null,null,null,null,null,null,null,0]
[null,null,null,null,null,0,null,null,1,null,1,null,1,null,1,null,1,null,1,null,1,null,1,null,1,null,"d","x",null,0,"d",null,null,null,null,null,null,null,null,null,null,0]
[null,null,null,null,null,0,null,null,1,null,1,null,1,null,1,null,1,null,1,null,1,null,1,null,1,null,"d","x",null,0,"d",null,null,null,null,null,null,null,null,null,null,0]
[null,null,null,null,null,0,null,null,1,null,1,null,1,null,1,null,1,null,1,null,1,null,1,null,1,null,"d","x",null,0,"d",null,null,null,null,null,null,null,null,null,null,0]
[null,null,null,null,null,0,null,null,1,null,1,null,1,null,1,null,1,null,1,null,1,null,1,null,1,null,"d","x",null,0,"d",null,null,null,null,null,null,null,null,null,null,0]
[null,null,null,null,null,0,null,null,1,null,1,null,1,null,1,null,1,null,1,null,1,null,1,null,1,null,"d","x",null,0,"d",null,null,null,null,null,null,null,null,null,null,0]
[null,null,null,null,null,0,null,null,1,null,1,null,1,null,1,null,1,null,1,null,1,null,1,null,1,null,"d","x",null,0,"d",null,null,null,null,null,null,null,null,null,null,0]
[null,null,null,null,null,0,null,null,1,null,1,null,1,null,1,null,1,null,1,null,1,null,1,null,1,null,"d","x",null,0,"d",null,null,null,null,null,null,null,null,null,null,0]
[null,null,null,null,null,0,null,null,1,null,1,null,1,null,1,null,1,null,1,null,1,null,1,null,1,null,"d","x",null,0,"d",null,null,null,null,null,null,null,null,null,null,0]
[null,null,null,null,null,0,null,null,1,null,1,null,1,null,1,null,1,null,1,null,1,null,1,null,1,null,"d","x",null,0,"d",null,null,null,null,null,null,null,null,null,null,0]
[null,null,null,null,null,0,null,null,1,null,1,null,1,null,1,null,1,null,1,null,1,null,1,null,1,null,"d","x",null,0,"d",null,null,null,null,null,null,null,null,null,null,0]
[null,null,null,null,null,0,null,null,1,null,1,null,1,null,1,null,1,null,1,null,1,null,1,null,1,null,"d","x",null,0,"d",null,null,null,null,null,null,null,null,null,null,0]
[null,null,null,null,null,0,null,null,1,null,1,null,1,null,1,null,1,null,1,null,1,null,1,null,1,null,"d","x",null,0,"d",null,null,null,null,null,null,null,null,null,null,0]
[null,null,null,null,null,0,null,null,1,null,1,null,1,null,1,null,1,null,1,null,1,null,1,null,1,null,"d","x",null,0,"d",null,null,null,null,null,null,null,null,null,null,0]
[null,null,null,null,null,0,null,null,1,null,1,null,1,null,1,null,1,null,1,null,1,null,1,null,1,null,"d","x",null,0,"d",null,null,null,null,null,null,null,null,null,null,0]
[null,null,null,null,null,0,null,null,1,null,1,null,1,null,1,null,1,null,1,null,1,null,1,null,1,null,"d","x",null,0,"d",null,null,null,null,null,null,null,null,null,null,0]
[null,null,null,null,null,0,null,null,1,null,1,null,1,null,1,null,1,null,1,null,1,null,1,null,1,null,"d","x",null,0,"d",null,null,null,null,null,null,null,null,null,null,0]
[null,null,null,null,null,0,null,null,1,null,1,null,1,null,1,null,1,null,1,null,1,null,1,null,1,null,"d","x",null,0,"d",null,null,null,null,null,null,null,null,null,null,0]
[null,null,null,null,null,0,null,null,1,null,1,null,1,null,1,null,1,null,1,null,1,null,1,null,1,null,"d","x",null,0,"d",null,null,null,null,null,null,null,null,null,null,0]
[null,null,null,null,null,0,null,null,1,null,1,null,1,null,1,null,1,null,1,null,1,null,1,null,1,null,"d","x",null,0,"d",null,null,null,null,null,null,null,null,null,null,0]
[null,null,null,null,null,0,null,null,1,null,1,null,1,null,1,null,1,null,1,null,1,null,1,null,1,null,"d","x",null,0,"d",null,null,null,null,null,null,null,null,null,null,0]
[null,null,null,null,null,0,null,null,1,null,1,null,1,null,1,null,1,null,1,null,1,null,1,null,1,null,"d","x",null,0,"d",null,null,null,null,null,null,null,null,null,null,0]
[null,null,null,null,null,0,null,null,1,null,1,null,1,null,1,null,1,null,1,null,1,null,1,null,1,null,"d","x",null,0,"d",null,null,null,null,null,null,null,null,null,null,0]
[null,null,null,null,null,0,null,null,1,null,1,null,1,null,1,null,1,null,1,null,1,null,1,null,1,null,"d","x",null,0,"d",null,null,null,null,null,null,null,null,null,null,0]
[null,null,null,null,null,0,null,null,1,null,1,null,1,null,1,null,1,null,1,null,1,null,1,null,1,null,"d","x",null,0,"d",null,null,null,null,null,null,null,null,null,null,0]
[null,null,null,null,null,0,null,null,1,null,1,null,1,null,1,null,1,null,1,null,1,null,1,null,1,null,"d","x",null,0,"d",null,null,null,null,null,null,null,null,null,null,0]
[null,null,null,null,null,0,null,null,1,null,1,null,1,null,1,null,1,null,1,null,1,null,1,null,1,null,"d","x",null,0,"d",null,null,null,null,null,null,null,null,null,null,0]
[null,null,null,null,null,0,null,null,{"$f":"COUNTBLANK(H390)","v":1},null,{"$f":"COUNTBLANK(J390)","v":1},null,{"$f":"COUNTBLANK(L390)","v":1},null,{"$f":"COUNTBLANK(N390)","v":1},null,{"$f":"COUNTBLANK(P390)","v":1},null,{"$f":"COUNTBLANK(R390)","v":1},null,{"$f":"COUNTBLANK(T390)","v":1},null,{"$f":"COUNTBLANK(V390)","v":1},null,{"$f":"COUNTBLANK(X390)","v":1},null,"d","x",null,0,"d",null,null,null,null,null,null,null,null,null,null,0]
[null,null,null,null,null,0,null,null,1,null,1,null,1,null,1,null,1,null,1,null,1,null,1,null,1,null,"d","x",null,0,"d",null,null,null,null,null,null,null,null,null,null,0]
[null,null,null,null,null,0,null,null,1,null,1,null,1,null,1,null,1,null,1,null,1,null,1,null,1,null,"d","x",null,0,"d",null,null,null,null,null,null,null,null,null,null,0]
[null,null,null,null,null,0,null,null,1,null,1,null,1,null,1,null,1,null,1,null,1,null,1,null,1,null,"d","x",null,0,"d",null,null,null,null,null,null,null,null,null,null,0]
[null,null,null,null,null,0,null,null,1,null,1,null,1,null,1,null,1,null,1,null,1,null,1,null,1,null,"d","x",null,0,"d",null,null,null,null,null,null,null,null,null,null,0]
[null,null,null,null,null,0,null,null,1,null,1,null,1,null,1,null,1,null,1,null,1,null,1,null,1,null,"d","x",null,0,"d",null,null,null,null,null,null,null,null,null,null,0]
[null,null,null,null,null,0,null,null,1,null,1,null,1,null,1,null,1,null,1,null,1,null,1,null,1,null,"d","x",null,0,"d",null,null,null,null,null,null,null,null,null,null,0]
[null,null,null,null,null,0,null,null,1,null,1,null,1,null,1,null,1,null,1,null,1,null,1,null,1,null,"d","x",null,0,"d",null,null,null,null,null,null,null,null,null,null,0]
[null,null,null,null,null,0,null,null,1,null,1,null,1,null,1,null,1,null,1,null,1,null,1,null,1,null,"d","x",null,0,"d",null,null,null,null,null,null,null,null,null,null,0]
[null,null,null,null,null,0,null,null,1,null,1,null,1,null,1,null,1,null,1,null,1,null,1,null,1,null,"d","x",null,0,"d",null,null,null,null,null,null,null,null,null,null,0]
[null,null,null,null,null,0,null,null,1,null,1,null,1,null,1,null,1,null,1,null,1,null,1,null,1,null,"d","x",null,0,"d",null,null,null,null,null,null,null,null,null,null,0]
[null,null,null,null,null,0,null,null,1,null,1,null,1,null,1,null,1,null,1,null,1,null,1,null,1,null,"d","x",null,0,"d",null,null,null,null,null,null,null,null,null,null,0]
[null,null,null,null,null,0,null,null,1,null,1,null,1,null,1,null,1,null,1,null,1,null,1,null,1,null,"d","x",null,0,"d",null,null,null,null,null,null,null,null,null,null,0]
[null,null,null,null,null,0,null,null,1,null,1,null,1,null,1,null,1,null,1,null,1,null,1,null,1,null,"d","x",null,0,"d",null,null,null,null,null,null,null,null,null,null,0]
[null,null,null,null,null,0,null,null,1,null,1,null,1,null,1,null,1,null,1,null,1,null,1,null,1,null,"d","x",null,0,"d",null,null,null,null,null,null,null,null,null,null,0]
[null,null,null,null,null,0,null,null,1,null,1,null,1,null,1,null,1,null,1,null,1,null,1,null,1,null,"d","x",null,0,"d",null,null,null,null,null,null,null,null,null,null,0]
[null,null,null,null,null,{"$f":"9-(I406+K406+M406+O406+Q406+S406+U406++Y406+W406)","v":0},null,null,1,null,1,null,1,null,1,null,1,null,1,null,1,null,1,null,1,null,"d","x",null,{"$f":"D406","v":0},"d",null,null,null,null,null,null,null,null,null,null,0]
[null,null,null,null,null,0,null,null,1,null,1,null,1,null,1,null,1,null,1,null,1,null,1,null,1,null,"d","x",null,0,"d",null,null,null,null,null,null,null,null,null,null,0]
[null,null,null,null,null,0,null,null,1,null,1,null,1,null,1,null,1,null,1,null,1,null,1,null,1,null,"d","x",null,0,"d",null,null,null,null,null,null,null,null,null,null,0]
[null,null,null,null,null,0,null,null,1,null,1,null,1,null,1,null,1,null,1,null,1,null,1,null,1,null,"d","x",null,0,"d",null,null,null,null,null,null,null,null,null,null,0]
[null,null,null,null,null,0,null,null,1,null,1,null,1,null,1,null,1,null,1,null,1,null,1,null,1,null,"d","x",null,0,"d",null,null,null,null,null,null,null,null,null,null,0]
[null,null,null,null,null,0,null,null,1,null,1,null,1,null,1,null,1,null,1,null,1,null,1,null,1,null,"d","x",null,0,"d",null,null,null,null,null,null,null,null,null,null,0]
[null,null,null,null,null,0,null,null,1,null,1,null,1,null,1,null,1,null,1,null,1,null,1,null,1,null,"d","x",null,0,"d",null,null,null,null,null,null,null,null,null,null,0]
[null,null,null,null,null,0,null,null,1,null,1,null,1,null,1,null,1,null,1,null,1,null,1,null,1,null,"d","x",null,0,"d",null,null,null,null,null,null,null,null,null,null,0]
[null,null,null,null,null,0,null,null,1,null,1,null,1,null,1,null,1,null,1,null,1,null,1,null,1,null,"d","x",null,0,"d",null,null,null,null,null,null,null,null,null,null,0]
[null,null,null,null,null,0,null,null,1,null,1,null,1,null,1,null,1,null,1,null,1,null,1,null,1,null,"d","x",null,0,"d",null,null,null,null,null,null,null,null,null,null,0]
[null,null,null,null,null,0,null,null,1,null,1,null,1,null,1,null,1,null,1,null,1,null,1,null,1,null,"d","x",null,0,"d",null,null,null,null,null,null,null,null,null,null,0]
[null,null,null,null,null,0,null,null,1,null,1,null,1,null,1,null,1,null,1,null,1,null,1,null,1,null,"d","x",null,0,"d",null,null,null,null,null,null,null,null,null,null,0]
[null,null,null,null,null,0,null,null,1,null,1,null,1,null,1,null,1,null,1,null,1,null,1,null,1,null,"d","x",null,0,"d",null,null,null,null,null,null,null,null,null,null,0]
[null,null,null,null,null,0,null,null,1,null,1,null,1,null,1,null,1,null,1,null,1,null,1,null,1,null,"d","x",null,0,"d",null,null,null,null,null,null,null,null,null,null,0]
[null,null,null,null,null,0,null,null,1,null,1,null,1,null,1,null,1,null,1,null,1,null,1,null,1,null,"d","x",null,0,"d",null,null,null,null,null,null,null,null,null,null,0]
[null,null,null,null,null,0,null,null,1,null,1,null,1,null,1,null,1,null,1,null,1,null,1,null,1,null,"d","x",null,0,"d",null,null,null,null,null,null,null,null,null,null,0]
[null,null,null,null,null,0,null,null,1,null,1,null,1,null,1,null,1,null,1,null,1,null,1,null,1,null,"d","x",null,0,"d",null,null,null,null,null,null,null,null,null,null,0]
[null,null,null,null,null,0,null,null,1,null,1,null,1,null,1,null,1,null,1,null,1,null,1,null,1,null,"d","x",null,0,"d",null,null,null,null,null,null,null,null,null,null,0]
[null,null,null,null,null,0,null,null,1,null,1,null,1,null,1,null,1,null,1,null,1,null,1,null,1,null,"d","x",null,0,"d",null,null,null,null,null,null,null,null,null,null,0]
[null,null,null,null,null,0,null,null,1,null,1,null,1,null,1,null,1,null,1,null,1,null,1,null,1,null,"d","x",null,0,"d",null,null,null,null,null,null,null,null,null,null,0]
[null,null,null,null,null,0,null,null,1,null,1,null,1,null,1,null,1,null,1,null,1,null,1,null,1,null,"d","x",null,0,"d",null,null,null,null,null,null,null,null,null,null,0]
[null,null,null,null,null,0,null,null,1,null,1,null,1,null,1,null,1,null,1,null,1,null,1,null,1,null,"d","x",null,0,"d",null,null,null,null,null,null,null,null,null,null,0]
[null,null,null,null,null,0,null,null,1,null,1,null,1,null,1,null,1,null,1,null,1,null,1,null,1,null,"d","x",null,0,"d",null,null,null,null,null,null,null,null,null,null,0]
[null,null,null,null,null,0,null,null,1,null,1,null,1,null,1,null,1,null,1,null,1,null,1,null,1,null,"d","x",null,0,"d",null,null,null,null,null,null,null,null,null,null,0]
[null,null,null,null,null,0,null,null,1,null,1,null,1,null,1,null,1,null,1,null,1,null,1,null,1,null,"d","x",null,0,"d",null,null,null,null,null,null,null,null,null,null,0]
[null,null,null,null,null,0,null,null,1,null,1,null,1,null,1,null,1,null,1,null,1,null,1,null,1,null,"d","x",null,0,"d",null,null,null,null,null,null,null,null,null,null,0]
[null,null,null,null,null,0,null,null,1,null,1,null,1,null,1,null,1,null,1,null,1,null,1,null,1,null,"d","x",null,0,"d",null,null,null,null,null,null,null,null,null,null,0]
[null,null,null,null,null,0,null,null,1,null,1,null,1,null,1,null,1,null,1,null,1,null,1,null,1,null,"d","x",null,0,"d",null,null,null,null,null,null,null,null,null,null,0]
[null,null,null,null,null,0,null,null,1,null,1,null,1,null,1,null,1,null,1,null,1,null,1,null,1,null,"d","x",null,0,"d",null,null,null,null,null,null,null,null,null,null,0]
[null,null,null,null,null,0,null,null,1,null,1,null,1,null,1,null,1,null,1,null,1,null,1,null,1,null,"d","x",null,0,"d",null,null,null,null,null,null,null,null,null,null,0]
[null,null,null,null,null,0,null,null,1,null,1,null,1,null,1,null,1,null,1,null,1,null,1,null,1,null,"d","x",null,0,"d",null,null,null,null,null,null,null,null,null,null,0]
[null,null,null,null,null,0,null,null,1,null,1,null,1,null,1,null,1,null,1,null,1,null,1,null,1,null,"d","x",null,0,"d",null,null,null,null,null,null,null,null,null,null,0]
[null,null,null,null,null,0,null,null,1,null,1,null,1,null,1,null,1,null,1,null,1,null,1,null,1,null,"d","x",null,0,"d",null,null,null,null,null,null,null,null,null,null,0]
[null,null,null,null,null,0,null,null,1,null,1,null,1,null,1,null,1,null,1,null,1,null,1,null,1,null,"d","x",null,0,"d",null,null,null,null,null,null,null,null,null,null,0]
[null,null,null,null,null,0,null,null,1,null,1,null,1,null,1,null,1,null,1,null,1,null,1,null,1,null,"d","x",null,0,"d",null,null,null,null,null,null,null,null,null,null,0]
[null,null,null,null,null,0,null,null,1,null,1,null,1,null,1,null,1,null,1,null,1,null,1,null,1,null,"d","x",null,0,"d",null,null,null,null,null,null,null,null,null,null,0]
[null,null,null,null,null,0,null,null,1,null,1,null,1,null,1,null,1,null,1,null,1,null,1,null,1,null,"d","x",null,0,"d",null,null,null,null,null,null,null,null,null,null,0]
[null,null,null,null,null,0,null,null,1,null,1,null,1,null,1,null,1,null,1,null,1,null,1,null,1,null,"d","x",null,0,"d",null,null,null,null,null,null,null,null,null,null,0]
[null,null,null,null,null,0,null,null,1,null,1,null,1,null,1,null,1,null,1,null,1,null,1,null,1,null,"d","x",null,0,"d",null,null,null,null,null,null,null,null,null,null,0]
[null,null,null,null,null,0,null,null,1,null,1,null,1,null,1,null,1,null,1,null,1,null,1,null,1,null,"d","x",null,0,"d",null,null,null,null,null,null,null,null,null,null,0]
[null,null,null,null,null,0,null,null,1,null,1,null,1,null,1,null,1,null,1,null,1,null,1,null,1,null,"d","x",null,0,"d",null,null,null,null,null,null,null,null,null,null,0]
[null,null,null,null,null,0,null,null,1,null,1,null,1,null,1,null,1,null,1,null,1,null,1,null,1,null,"d","x",null,0,"d",null,null,null,null,null,null,null,null,null,null,0]
[null,null,null,null,null,0,null,null,1,null,1,null,1,null,1,null,1,null,1,null,1,null,1,null,1,null,"d","x",null,0,"d",null,null,null,null,null,null,null,null,null,null,0]
[null,null,null,null,null,0,null,null,1,null,1,null,1,null,1,null,1,null,1,null,1,null,1,null,1,null,"d","x",null,0,"d",null,null,null,null,null,null,null,null,null,null,0]
[null,null,null,null,null,0,null,null,1,null,1,null,1,null,1,null,1,null,1,null,1,null,1,null,1,null,"d","x",null,0,"d",null,null,null,null,null,null,null,null,null,null,0]
[null,null,null,null,null,0,null,null,1,null,1,null,1,null,1,null,1,null,1,null,1,null,1,null,1,null,"d","x",null,0,"d",null,null,null,null,null,null,null,null,null,null,0]
[null,null,null,null,null,0,null,null,1,null,1,null,1,null,1,null,1,null,1,null,1,null,1,null,1,null,"d","x",null,0,"d",null,null,null,null,null,null,null,null,null,null,0]
[null,null,null,null,null,0,null,null,1,null,1,null,1,null,1,null,1,null,1,null,1,null,1,null,1,null,"d","x",null,0,"d",null,null,null,null,null,null,null,null,null,null,0]
[null,null,null,null,null,0,null,null,{"$f":"COUNTBLANK(H454)","v":1},null,{"$f":"COUNTBLANK(J454)","v":1},null,{"$f":"COUNTBLANK(L454)","v":1},null,{"$f":"COUNTBLANK(N454)","v":1},null,{"$f":"COUNTBLANK(P454)","v":1},null,{"$f":"COUNTBLANK(R454)","v":1},null,{"$f":"COUNTBLANK(T454)","v":1},null,{"$f":"COUNTBLANK(V454)","v":1},null,{"$f":"COUNTBLANK(X454)","v":1},null,"d","x",null,0,"d",null,null,null,null,null,null,null,null,null,null,0]
[null,null,null,null,null,0,null,null,1,null,1,null,1,null,1,null,1,null,1,null,1,null,1,null,1,null,"d","x",null,0,"d",null,null,null,null,null,null,null,null,null,null,0]
[null,null,null,null,null,0,null,null,1,null,1,null,1,null,1,null,1,null,1,null,1,null,1,null,1,null,"d","x",null,0,"d",null,null,null,null,null,null,null,null,null,null,0]
[null,null,null,null,null,0,null,null,1,null,1,null,1,null,1,null,1,null,1,null,1,null,1,null,1,null,"d","x",null,0,"d",null,null,null,null,null,null,null,null,null,null,0]
[null,null,null,null,null,0,null,null,1,null,1,null,1,null,1,null,1,null,1,null,1,null,1,null,1,null,"d","x",null,0,"d",null,null,null,null,null,null,null,null,null,null,0]
[null,null,null,null,null,0,null,null,1,null,1,null,1,null,1,null,1,null,1,null,1,null,1,null,1,null,"d","x",null,0,"d",null,null,null,null,null,null,null,null,null,null,0]
[null,null,null,null,null,0,null,null,1,null,1,null,1,null,1,null,1,null,1,null,1,null,1,null,1,null,"d","x",null,0,"d",null,null,null,null,null,null,null,null,null,null,0]
[null,null,null,null,null,0,null,null,1,null,1,null,1,null,1,null,1,null,1,null,1,null,1,null,1,null,"d","x",null,0,"d",null,null,null,null,null,null,null,null,null,null,0]
[null,null,null,null,null,0,null,null,1,null,1,null,1,null,1,null,1,null,1,null,1,null,1,null,1,null,"d","x",null,0,"d",null,null,null,null,null,null,null,null,null,null,0]
[null,null,null,null,null,0,null,null,1,null,1,null,1,null,1,null,1,null,1,null,1,null,1,null,1,null,"d","x",null,0,"d",null,null,null,null,null,null,null,null,null,null,0]
[null,null,null,null,null,0,null,null,1,null,1,null,1,null,1,null,1,null,1,null,1,null,1,null,1,null,"d","x",null,0,"d",null,null,null,null,null,null,null,null,null,null,0]
[null,null,null,null,null,0,null,null,1,null,1,null,1,null,1,null,1,null,1,null,1,null,1,null,1,null,"d","x",null,0,"d",null,null,null,null,null,null,null,null,null,null,0]
[null,null,null,null,null,0,null,null,1,null,1,null,1,null,1,null,1,null,1,null,1,null,1,null,1,null,"d","x",null,0,"d",null,null,null,null,null,null,null,null,null,null,0]
[null,null,null,null,null,0,null,null,1,null,1,null,1,null,1,null,1,null,1,null,1,null,1,null,1,null,"d","x",null,0,"d",null,null,null,null,null,null,null,null,null,null,0]
[null,null,null,null,null,0,null,null,1,null,1,null,1,null,1,null,1,null,1,null,1,null,1,null,1,null,"d","x",null,0,"d",null,null,null,null,null,null,null,null,null,null,0]
[null,null,null,null,null,0,null,null,1,null,1,null,1,null,1,null,1,null,1,null,1,null,1,null,1,null,"d","x",null,0,"d",null,null,null,null,null,null,null,null,null,null,0]
[null,null,null,null,null,{"$f":"9-(I470+K470+M470+O470+Q470+S470+U470++Y470+W470)","v":0},null,null,1,null,1,null,1,null,1,null,1,null,1,null,1,null,1,null,1,null,"d","x",null,{"$f":"D470","v":0},"d",null,null,null,null,null,null,null,null,null,null,0]
[null,null,null,null,null,0,null,null,1,null,1,null,1,null,1,null,1,null,1,null,1,null,1,null,1,null,"d","x",null,0,"d",null,null,null,null,null,null,null,null,null,null,0]
[null,null,null,null,null,0,null,null,1,null,1,null,1,null,1,null,1,null,1,null,1,null,1,null,1,null,"d","x",null,0,"d",null,null,null,null,null,null,null,null,null,null,0]
[null,null,null,null,null,0,null,null,1,null,1,null,1,null,1,null,1,null,1,null,1,null,1,null,1,null,"d","x",null,0,"d",null,null,null,null,null,null,null,null,null,null,0]
[null,null,null,null,null,0,null,null,1,null,1,null,1,null,1,null,1,null,1,null,1,null,1,null,1,null,"d","x",null,0,"d",null,null,null,null,null,null,null,null,null,null,0]
[null,null,null,null,null,0,null,null,1,null,1,null,1,null,1,null,1,null,1,null,1,null,1,null,1,null,"d","x",null,0,"d",null,null,null,null,null,null,null,null,null,null,0]
[null,null,null,null,null,0,null,null,1,null,1,null,1,null,1,null,1,null,1,null,1,null,1,null,1,null,"d","x",null,0,"d",null,null,null,null,null,null,null,null,null,null,0]
[null,null,null,null,null,0,null,null,1,null,1,null,1,null,1,null,1,null,1,null,1,null,1,null,1,null,"d","x",null,0,"d",null,null,null,null,null,null,null,null,null,null,0]
[null,null,null,null,null,0,null,null,1,null,1,null,1,null,1,null,1,null,1,null,1,null,1,null,1,null,"d","x",null,0,"d",null,null,null,null,null,null,null,null,null,null,0]
[null,null,null,null,null,0,null,null,1,null,1,null,1,null,1,null,1,null,1,null,1,null,1,null,1,null,"d","x",null,0,"d",null,null,null,null,null,null,null,null,null,null,0]
[null,null,null,null,null,0,null,null,1,null,1,null,1,null,1,null,1,null,1,null,1,null,1,null,1,null,"d","x",null,0,"d",null,null,null,null,null,null,null,null,null,null,0]
[null,null,null,null,null,0,null,null,1,null,1,null,1,null,1,null,1,null,1,null,1,null,1,null,1,null,"d","x",null,0,"d",null,null,null,null,null,null,null,null,null,null,0]
[null,null,null,null,null,0,null,null,1,null,1,null,1,null,1,null,1,null,1,null,1,null,1,null,1,null,"d","x",null,0,"d",null,null,null,null,null,null,null,null,null,null,0]
[null,null,null,null,null,0,null,null,1,null,1,null,1,null,1,null,1,null,1,null,1,null,1,null,1,null,"d","x",null,0,"d",null,null,null,null,null,null,null,null,null,null,0]
[null,null,null,null,null,0,null,null,1,null,1,null,1,null,1,null,1,null,1,null,1,null,1,null,1,null,"d","x",null,0,"d",null,null,null,null,null,null,null,null,null,null,0]
[null,null,null,null,null,0,null,null,1,null,1,null,1,null,1,null,1,null,1,null,1,null,1,null,1,null,"d","x",null,0,"d",null,null,null,null,null,null,null,null,null,null,0]
[null,null,null,null,null,0,null,null,1,null,1,null,1,null,1,null,1,null,1,null,1,null,1,null,1,null,"d","x",null,0,"d",null,null,null,null,null,null,null,null,null,null,0]
[null,null,null,null,null,0,null,null,1,null,1,null,1,null,1,null,1,null,1,null,1,null,1,null,1,null,"d","x",null,0,"d",null,null,null,null,null,null,null,null,null,null,0]
[null,null,null,null,null,0,null,null,1,null,1,null,1,null,1,null,1,null,1,null,1,null,1,null,1,null,"d","x",null,0,"d",null,null,null,null,null,null,null,null,null,null,0]
[null,null,null,null,null,0,null,null,1,null,1,null,1,null,1,null,1,null,1,null,1,null,1,null,1,null,"d","x",null,0,"d",null,null,null,null,null,null,null,null,null,null,0]
[null,null,null,null,null,0,null,null,1,null,1,null,1,null,1,null,1,null,1,null,1,null,1,null,1,null,"d","x",null,0,"d",null,null,null,null,null,null,null,null,null,null,0]
[null,null,null,null,null,0,null,null,1,null,1,null,1,null,1,null,1,null,1,null,1,null,1,null,1,null,"d","x",null,0,"d",null,null,null,null,null,null,null,null,null,null,0]
[null,null,null,null,null,0,null,null,1,null,1,null,1,null,1,null,1,null,1,null,1,null,1,null,1,null,"d","x",null,0,"d",null,null,null,null,null,null,null,null,null,null,0]
[null,null,null,null,null,0,null,null,1,null,1,null,1,null,1,null,1,null,1,null,1,null,1,null,1,null,"d","x",null,0,"d",null,null,null,null,null,null,null,null,null,null,0]
[null,null,null,null,null,0,null,null,1,null,1,null,1,null,1,null,1,null,1,null,1,null,1,null,1,null,"d","x",null,0,"d",null,null,null,null,null,null,null,null,null,null,0]
[null,null,null,null,null,0,null,null,1,null,1,null,1,null,1,null,1,null,1,null,1,null,1,null,1,null,"d","x",null,0,"d",null,null,null,null,null,null,null,null,null,null,0]
[null,null,null,null,null,0,null,null,1,null,1,null,1,null,1,null,1,null,1,null,1,null,1,null,1,null,"d","x",null,0,"d",null,null,null,null,null,null,null,null,null,null,0]
[null,null,null,null,null,0,null,null,1,null,1,null,1,null,1,null,1,null,1,null,1,null,1,null,1,null,"d","x",null,0,"d",null,null,null,null,null,null,null,null,null,null,0]
[null,null,null,null,null,0,null,null,1,null,1,null,1,null,1,null,1,null,1,null,1,null,1,null,1,null,"d","x",null,0,"d",null,null,null,null,null,null,null,null,null,null,0]
[null,null,null,null,null,0,null,null,1,null,1,null,1,null,1,null,1,null,1,null,1,null,1,null,1,null,"d","x",null,0,"d",null,null,null,null,null,null,null,null,null,null,0]
[null,null,null,null,null,0,null,null,1,null,1,null,1,null,1,null,1,null,1,null,1,null,1,null,1,null,"d","x",null,0,"d",null,null,null,null,null,null,null,null,null,null,0]
[null,null,null,null,null,0,null,null,1,null,1,null,1,null,1,null,1,null,1,null,1,null,1,null,1,null,"d","x",null,0,"d",null,null,null,null,null,null,null,null,null,null,0]
[null,null,null,null,null,0,null,null,1,null,1,null,1,null,1,null,1,null,1,null,1,null,1,null,1,null,"d","x",null,0,"d",null,null,null,null,null,null,null,null,null,null,0]
[null,null,null,null,null,0,null,null,1,null,1,null,1,null,1,null,1,null,1,null,1,null,1,null,1,null,"d","x",null,0,"d",null,null,null,null,null,null,null,null,null,null,0]
[null,null,null,null,null,0,null,null,1,null,1,null,1,null,1,null,1,null,1,null,1,null,1,null,1,null,"d","x",null,0,"d",null,null,null,null,null,null,null,null,null,null,0]
[null,null,null,null,null,0,null,null,1,null,1,null,1,null,1,null,1,null,1,null,1,null,1,null,1,null,"d","x",null,0,"d",null,null,null,null,null,null,null,null,null,null,0]
[null,null,null,null,null,0,null,null,1,null,1,null,1,null,1,null,1,null,1,null,1,null,1,null,1,null,"d","x",null,0,"d",null,null,null,null,null,null,null,null,null,null,0]
[null,null,null,null,null,0,null,null,1,null,1,null,1,null,1,null,1,null,1,null,1,null,1,null,1,null,"d","x",null,0,"d",null,null,null,null,null,null,null,null,null,null,0]
[null,null,null,null,null,0,null,null,1,null,1,null,1,null,1,null,1,null,1,null,1,null,1,null,1,null,"d","x",null,0,"d",null,null,null,null,null,null,null,null,null,null,0]
[null,null,null,null,null,0,null,null,1,null,1,null,1,null,1,null,1,null,1,null,1,null,1,null,1,null,"d","x",null,0,"d",null,null,null,null,null,null,null,null,null,null,0]
[null,null,null,null,null,0,null,null,1,null,1,null,1,null,1,null,1,null,1,null,1,null,1,null,1,null,"d","x",null,0,"d",null,null,null,null,null,null,null,null,null,null,0]
[null,null,null,null,null,0,null,null,1,null,1,null,1,null,1,null,1,null,1,null,1,null,1,null,1,null,"d","x",null,0,"d",null,null,null,null,null,null,null,null,null,null,0]
[null,null,null,null,null,0,null,null,1,null,1,null,1,null,1,null,1,null,1,null,1,null,1,null,1,null,"d","x",null,0,"d",null,null,null,null,null,null,null,null,null,null,0]
[null,null,null,null,null,0,null,null,1,null,1,null,1,null,1,null,1,null,1,null,1,null,1,null,1,null,"d","x",null,0,"d",null,null,null,null,null,null,null,null,null,null,0]
[null,null,null,null,null,0,null,null,1,null,1,null,1,null,1,null,1,null,1,null,1,null,1,null,1,null,"d","x",null,0,"d",null,null,null,null,null,null,null,null,null,null,0]
[null,null,null,null,null,0,null,null,1,null,1,null,1,null,1,null,1,null,1,null,1,null,1,null,1,null,"d","x",null,0,"d",null,null,null,null,null,null,null,null,null,null,0]
[null,null,null,null,null,0,null,null,1,null,1,null,1,null,1,null,1,null,1,null,1,null,1,null,1,null,"d","x",null,0,"d",null,null,null,null,null,null,null,null,null,null,0]
[null,null,null,null,null,0,null,null,1,null,1,null,1,null,1,null,1,null,1,null,1,null,1,null,1,null,"d","x",null,0,"d",null,null,null,null,null,null,null,null,null,null,0]
[null,null,null,null,null,0,null,null,{"$f":"COUNTBLANK(H518)","v":1},null,{"$f":"COUNTBLANK(J518)","v":1},null,{"$f":"COUNTBLANK(L518)","v":1},null,{"$f":"COUNTBLANK(N518)","v":1},null,{"$f":"COUNTBLANK(P518)","v":1},null,{"$f":"COUNTBLANK(R518)","v":1},null,{"$f":"COUNTBLANK(T518)","v":1},null,{"$f":"COUNTBLANK(V518)","v":1},null,{"$f":"COUNTBLANK(X518)","v":1},null,"d","x",null,0,"d",null,null,null,null,null,null,null,null,null,null,0]
[null,null,null,null,null,0,null,null,1,null,1,null,1,null,1,null,1,null,1,null,1,null,1,null,1,null,"d","x",null,0,"d",null,null,null,null,null,null,null,null,null,null,0]
[null,null,null,null,null,0,null,null,1,null,1,null,1,null,1,null,1,null,1,null,1,null,1,null,1,null,"d","x",null,0,"d",null,null,null,null,null,null,null,null,null,null,0]
[null,null,null,null,null,0,null,null,1,null,1,null,1,null,1,null,1,null,1,null,1,null,1,null,1,null,"d","x",null,0,"d",null,null,null,null,null,null,null,null,null,null,0]
[null,null,null,null,null,0,null,null,1,null,1,null,1,null,1,null,1,null,1,null,1,null,1,null,1,null,"d","x",null,0,"d",null,null,null,null,null,null,null,null,null,null,0]
[null,null,null,null,null,0,null,null,1,null,1,null,1,null,1,null,1,null,1,null,1,null,1,null,1,null,"d","x",null,0,"d",null,null,null,null,null,null,null,null,null,null,0]
[null,null,null,null,null,0,null,null,1,null,1,null,1,null,1,null,1,null,1,null,1,null,1,null,1,null,"d","x",null,0,"d",null,null,null,null,null,null,null,null,null,null,0]
[null,null,null,null,null,0,null,null,1,null,1,null,1,null,1,null,1,null,1,null,1,null,1,null,1,null,"d","x",null,0,"d",null,null,null,null,null,null,null,null,null,null,0]
[null,null,null,null,null,0,null,null,1,null,1,null,1,null,1,null,1,null,1,null,1,null,1,null,1,null,"d","x",null,0,"d",null,null,null,null,null,null,null,null,null,null,0]
[null,null,null,null,null,0,null,null,1,null,1,null,1,null,1,null,1,null,1,null,1,null,1,null,1,null,"d","x",null,0,"d",null,null,null,null,null,null,null,null,null,null,0]
[null,null,null,null,null,0,null,null,1,null,1,null,1,null,1,null,1,null,1,null,1,null,1,null,1,null,"d","x",null,0,"d",null,null,null,null,null,null,null,null,null,null,0]
[null,null,null,null,null,0,null,null,1,null,1,null,1,null,1,null,1,null,1,null,1,null,1,null,1,null,"d","x",null,0,"d",null,null,null,null,null,null,null,null,null,null,0]
[null,null,null,null,null,0,null,null,1,null,1,null,1,null,1,null,1,null,1,null,1,null,1,null,1,null,"d","x",null,0,"d",null,null,null,null,null,null,null,null,null,null,0]
[null,null,null,null,null,0,null,null,1,null,1,null,1,null,1,null,1,null,1,null,1,null,1,null,1,null,"d","x",null,0,"d",null,null,null,null,null,null,null,null,null,null,0]
[null,null,null,null,null,0,null,null,1,null,1,null,1,null,1,null,1,null,1,null,1,null,1,null,1,null,"d","x",null,0,"d",null,null,null,null,null,null,null,null,null,null,0]
[null,null,null,null,null,0,null,null,1,null,1,null,1,null,1,null,1,null,1,null,1,null,1,null,1,null,"d","x",null,0,"d",null,null,null,null,null,null,null,null,null,null,0]
[null,null,null,null,null,{"$f":"9-(I534+K534+M534+O534+Q534+S534+U534++Y534+W534)","v":0},null,null,1,null,1,null,1,null,1,null,1,null,1,null,1,null,1,null,1,null,"d","x",null,{"$f":"D534","v":0},"d",null,null,null,null,null,null,null,null,null,null,0]
[null,null,null,null,null,0,null,null,1,null,1,null,1,null,1,null,1,null,1,null,1,null,1,null,1,null,"d","x",null,0,"d",null,null,null,null,null,null,null,null,null,null,0]
[null,null,null,null,null,0,null,null,1,null,1,null,1,null,1,null,1,null,1,null,1,null,1,null,1,null,"d","x",null,0,"d",null,null,null,null,null,null,null,null,null,null,0]
[null,null,null,null,null,0,null,null,1,null,1,null,1,null,1,null,1,null,1,null,1,null,1,null,1,null,"d","x",null,0,"d",null,null,null,null,null,null,null,null,null,null,0]
[null,null,null,null,null,0,null,null,1,null,1,null,1,null,1,null,1,null,1,null,1,null,1,null,1,null,"d","x",null,0,"d",null,null,null,null,null,null,null,null,null,null,0]
[null,null,null,null,null,0,null,null,1,null,1,null,1,null,1,null,1,null,1,null,1,null,1,null,1,null,"d","x",null,0,"d",null,null,null,null,null,null,null,null,null,null,0]
[null,null,null,null,null,0,null,null,1,null,1,null,1,null,1,null,1,null,1,null,1,null,1,null,1,null,"d","x",null,0,"d",null,null,null,null,null,null,null,null,null,null,0]
[null,null,null,null,null,0,null,null,1,null,1,null,1,null,1,null,1,null,1,null,1,null,1,null,1,null,"d","x",null,0,"d",null,null,null,null,null,null,null,null,null,null,0]
[null,null,null,null,null,0,null,null,1,null,1,null,1,null,1,null,1,null,1,null,1,null,1,null,1,null,"d","x",null,0,"d",null,null,null,null,null,null,null,null,null,null,0]
[null,null,null,null,null,0,null,null,1,null,1,null,1,null,1,null,1,null,1,null,1,null,1,null,1,null,"d","x",null,0,"d",null,null,null,null,null,null,null,null,null,null,0]
[null,null,null,null,null,0,null,null,1,null,1,null,1,null,1,null,1,null,1,null,1,null,1,null,1,null,"d","x",null,0,"d",null,null,null,null,null,null,null,null,null,null,0]
[null,null,null,null,null,0,null,null,1,null,1,null,1,null,1,null,1,null,1,null,1,null,1,null,1,null,"d","x",null,0,"d",null,null,null,null,null,null,null,null,null,null,0]
[null,null,null,null,null,0,null,null,1,null,1,null,1,null,1,null,1,null,1,null,1,null,1,null,1,null,"d","x",null,0,"d",null,null,null,null,null,null,null,null,null,null,0]
[null,null,null,null,null,0,null,null,1,null,1,null,1,null,1,null,1,null,1,null,1,null,1,null,1,null,"d","x",null,0,"d",null,null,null,null,null,null,null,null,null,null,0]
[null,null,null,null,null,0,null,null,1,null,1,null,1,null,1,null,1,null,1,null,1,null,1,null,1,null,"d","x",null,0,"d",null,null,null,null,null,null,null,null,null,null,0]
[null,null,null,null,null,0,null,null,1,null,1,null,1,null,1,null,1,null,1,null,1,null,1,null,1,null,"d","x",null,0,"d",null,null,null,null,null,null,null,null,null,null,0]
[null,null,null,null,null,0,null,null,1,null,1,null,1,null,1,null,1,null,1,null,1,null,1,null,1,null,"d","x",null,0,"d",null,null,null,null,null,null,null,null,null,null,0]
[null,null,null,null,null,0,null,null,1,null,1,null,1,null,1,null,1,null,1,null,1,null,1,null,1,null,"d","x",null,0,"d",null,null,null,null,null,null,null,null,null,null,0]
[null,null,null,null,null,0,null,null,1,null,1,null,1,null,1,null,1,null,1,null,1,null,1,null,1,null,"d","x",null,0,"d",null,null,null,null,null,null,null,null,null,null,0]
[null,null,null,null,null,0,null,null,1,null,1,null,1,null,1,null,1,null,1,null,1,null,1,null,1,null,"d","x",null,0,"d",null,null,null,null,null,null,null,null,null,null,0]
[null,null,null,null,null,0,null,null,1,null,1,null,1,null,1,null,1,null,1,null,1,null,1,null,1,null,"d","x",null,0,"d",null,null,null,null,null,null,null,null,null,null,0]
[null,null,null,null,null,0,null,null,1,null,1,null,1,null,1,null,1,null,1,null,1,null,1,null,1,null,"d","x",null,0,"d",null,null,null,null,null,null,null,null,null,null,0]
[null,null,null,null,null,0,null,null,1,null,1,null,1,null,1,null,1,null,1,null,1,null,1,null,1,null,"d","x",null,0,"d",null,null,null,null,null,null,null,null,null,null,0]
[null,null,null,null,null,0,null,null,1,null,1,null,1,null,1,null,1,null,1,null,1,null,1,null,1,null,"d","x",null,0,"d",null,null,null,null,null,null,null,null,null,null,0]
[null,null,null,null,null,0,null,null,1,null,1,null,1,null,1,null,1,null,1,null,1,null,1,null,1,null,"d","x",null,0,"d",null,null,null,null,null,null,null,null,null,null,0]
[null,null,null,null,null,0,null,null,1,null,1,null,1,null,1,null,1,null,1,null,1,null,1,null,1,null,"d","x",null,0,"d",null,null,null,null,null,null,null,null,null,null,0]
[null,null,null,null,null,0,null,null,1,null,1,null,1,null,1,null,1,null,1,null,1,null,1,null,1,null,"d","x",null,0,"d",null,null,null,null,null,null,null,null,null,null,0]
[null,null,null,null,null,0,null,null,1,null,1,null,1,null,1,null,1,null,1,null,1,null,1,null,1,null,"d","x",null,0,"d",null,null,null,null,null,null,null,null,null,null,0]
[null,null,null,null,null,0,null,null,1,null,1,null,1,null,1,null,1,null,1,null,1,null,1,null,1,null,"d","x",null,0,"d",null,null,null,null,null,null,null,null,null,null,0]
[null,null,null,null,null,0,null,null,1,null,1,null,1,null,1,null,1,null,1,null,1,null,1,null,1,null,"d","x",null,0,"d",null,null,null,null,null,null,null,null,null,null,0]
[null,null,null,null,null,0,null,null,1,null,1,null,1,null,1,null,1,null,1,null,1,null,1,null,1,null,"d","x",null,0,"d",null,null,null,null,null,null,null,null,null,null,0]
[null,null,null,null,null,0,null,null,1,null,1,null,1,null,1,null,1,null,1,null,1,null,1,null,1,null,"d","x",null,0,"d",null,null,null,null,null,null,null,null,null,null,0]
[null,null,null,null,null,0,null,null,1,null,1,null,1,null,1,null,1,null,1,null,1,null,1,null,1,null,"d","x",null,0,"d",null,null,null,null,null,null,null,null,null,null,0]
[null,null,null,null,null,0,null,null,1,null,1,null,1,null,1,null,1,null,1,null,1,null,1,null,1,null,"d","x",null,0,"d",null,null,null,null,null,null,null,null,null,null,0]
[null,null,null,null,null,0,null,null,1,null,1,null,1,null,1,null,1,null,1,null,1,null,1,null,1,null,"d","x",null,0,"d",null,null,null,null,null,null,null,null,null,null,0]
[null,null,null,null,null,0,null,null,1,null,1,null,1,null,1,null,1,null,1,null,1,null,1,null,1,null,"d","x",null,0,"d",null,null,null,null,null,null,null,null,null,null,0]
[null,null,null,null,null,0,null,null,1,null,1,null,1,null,1,null,1,null,1,null,1,null,1,null,1,null,"d","x",null,0,"d",null,null,null,null,null,null,null,null,null,null,0]
[null,null,null,null,null,0,null,null,1,null,1,null,1,null,1,null,1,null,1,null,1,null,1,null,1,null,"d","x",null,0,"d",null,null,null,null,null,null,null,null,null,null,0]
[null,null,null,null,null,0,null,null,1,null,1,null,1,null,1,null,1,null,1,null,1,null,1,null,1,null,"d","x",null,0,"d",null,null,null,null,null,null,null,null,null,null,0]
[null,null,null,null,null,0,null,null,1,null,1,null,1,null,1,null,1,null,1,null,1,null,1,null,1,null,"d","x",null,0,"d",null,null,null,null,null,null,null,null,null,null,0]
[null,null,null,null,null,0,null,null,1,null,1,null,1,null,1,null,1,null,1,null,1,null,1,null,1,null,"d","x",null,0,"d",null,null,null,null,null,null,null,null,null,null,0]
[null,null,null,null,null,0,null,null,1,null,1,null,1,null,1,null,1,null,1,null,1,null,1,null,1,null,"d","x",null,0,"d",null,null,null,null,null,null,null,null,null,null,0]
[null,null,null,null,null,0,null,null,1,null,1,null,1,null,1,null,1,null,1,null,1,null,1,null,1,null,"d","x",null,0,"d",null,null,null,null,null,null,null,null,null,null,0]
[null,null,null,null,null,0,null,null,1,null,1,null,1,null,1,null,1,null,1,null,1,null,1,null,1,null,"d","x",null,0,"d",null,null,null,null,null,null,null,null,null,null,0]
[null,null,null,null,null,0,null,null,1,null,1,null,1,null,1,null,1,null,1,null,1,null,1,null,1,null,"d","x",null,0,"d",null,null,null,null,null,null,null,null,null,null,0]
[null,null,null,null,null,0,null,null,1,null,1,null,1,null,1,null,1,null,1,null,1,null,1,null,1,null,"d","x",null,0,"d",null,null,null,null,null,null,null,null,null,null,0]
[null,null,null,null,null,0,null,null,1,null,1,null,1,null,1,null,1,null,1,null,1,null,1,null,1,null,"d","x",null,0,"d",null,null,null,null,null,null,null,null,null,null,0]
[null,null,null,null,null,0,null,null,1,null,1,null,1,null,1,null,1,null,1,null,1,null,1,null,1,null,"d","x",null,0,"d",null,null,null,null,null,null,null,null,null,null,0]
[null,null,null,null,null,0,null,null,{"$f":"COUNTBLANK(H582)","v":1},null,{"$f":"COUNTBLANK(J582)","v":1},null,{"$f":"COUNTBLANK(L582)","v":1},null,{"$f":"COUNTBLANK(N582)","v":1},null,{"$f":"COUNTBLANK(P582)","v":1},null,{"$f":"COUNTBLANK(R582)","v":1},null,{"$f":"COUNTBLANK(T582)","v":1},null,{"$f":"COUNTBLANK(V582)","v":1},null,{"$f":"COUNTBLANK(X582)","v":1},null,"d","x",null,0,"d",null,null,null,null,null,null,null,null,null,null,0]
[null,null,null,null,null,0,null,null,1,null,1,null,1,null,1,null,1,null,1,null,1,null,1,null,1,null,"d","x",null,0,"d",null,null,null,null,null,null,null,null,null,null,0]
[null,null,null,null,null,0,null,null,1,null,1,null,1,null,1,null,1,null,1,null,1,null,1,null,1,null,"d","x",null,0,"d",null,null,null,null,null,null,null,null,null,null,0]
[null,null,null,null,null,0,null,null,1,null,1,null,1,null,1,null,1,null,1,null,1,null,1,null,1,null,"d","x",null,0,"d",null,null,null,null,null,null,null,null,null,null,0]
[null,null,null,null,null,0,null,null,1,null,1,null,1,null,1,null,1,null,1,null,1,null,1,null,1,null,"d","x",null,0,"d",null,null,null,null,null,null,null,null,null,null,0]
[null,null,null,null,null,0,null,null,1,null,1,null,1,null,1,null,1,null,1,null,1,null,1,null,1,null,"d","x",null,0,"d",null,null,null,null,null,null,null,null,null,null,0]
[null,null,null,null,null,0,null,null,1,null,1,null,1,null,1,null,1,null,1,null,1,null,1,null,1,null,"d","x",null,0,"d",null,null,null,null,null,null,null,null,null,null,0]
[null,null,null,null,null,0,null,null,1,null,1,null,1,null,1,null,1,null,1,null,1,null,1,null,1,null,"d","x",null,0,"d",null,null,null,null,null,null,null,null,null,null,0]
[null,null,null,null,null,0,null,null,1,null,1,null,1,null,1,null,1,null,1,null,1,null,1,null,1,null,"d","x",null,0,"d",null,null,null,null,null,null,null,null,null,null,0]
[null,null,null,null,null,0,null,null,1,null,1,null,1,null,1,null,1,null,1,null,1,null,1,null,1,null,"d","x",null,0,"d",null,null,null,null,null,null,null,null,null,null,0]
[null,null,null,null,null,0,null,null,1,null,1,null,1,null,1,null,1,null,1,null,1,null,1,null,1,null,"d","x",null,0,"d",null,null,null,null,null,null,null,null,null,null,0]
[null,null,null,null,null,0,null,null,1,null,1,null,1,null,1,null,1,null,1,null,1,null,1,null,1,null,"d","x",null,0,"d",null,null,null,null,null,null,null,null,null,null,0]
[null,null,null,null,null,0,null,null,1,null,1,null,1,null,1,null,1,null,1,null,1,null,1,null,1,null,"d","x",null,0,"d",null,null,null,null,null,null,null,null,null,null,0]
[null,null,null,null,null,0,null,null,1,null,1,null,1,null,1,null,1,null,1,null,1,null,1,null,1,null,"d","x",null,0,"d",null,null,null,null,null,null,null,null,null,null,0]
[null,null,null,null,null,0,null,null,1,null,1,null,1,null,1,null,1,null,1,null,1,null,1,null,1,null,"d","x",null,0,"d",null,null,null,null,null,null,null,null,null,null,0]
[null,null,null,null,null,0,null,null,1,null,1,null,1,null,1,null,1,null,1,null,1,null,1,null,1,null,"d","x",null,0,"d",null,null,null,null,null,null,null,null,null,null,0]
[null,null,null,null,null,{"$f":"9-(I598+K598+M598+O598+Q598+S598+U598++Y598+W598)","v":0},null,null,1,null,1,null,1,null,1,null,1,null,1,null,1,null,1,null,1,null,"d","x",null,{"$f":"D598","v":0},"d",null,null,null,null,null,null,null,null,null,null,0]
[null,null,null,null,null,0,null,null,1,null,1,null,1,null,1,null,1,null,1,null,1,null,1,null,1,null,"d","x",null,0,"d",null,null,null,null,null,null,null,null,null,null,0]
[null,null,null,null,null,0,null,null,1,null,1,null,1,null,1,null,1,null,1,null,1,null,1,null,1,null,"d","x",null,0,"d",null,null,null,null,null,null,null,null,null,null,0]
[null,null,null,null,null,0,null,null,1,null,1,null,1,null,1,null,1,null,1,null,1,null,1,null,1,null,"d","x",null,0,"d",null,null,null,null,null,null,null,null,null,null,0]
[null,null,null,null,null,0,null,null,1,null,1,null,1,null,1,null,1,null,1,null,1,null,1,null,1,null,"d","x",null,0,"d",null,null,null,null,null,null,null,null,null,null,0]
[null,null,null,null,null,0,null,null,1,null,1,null,1,null,1,null,1,null,1,null,1,null,1,null,1,null,"d","x",null,0,"d",null,null,null,null,null,null,null,null,null,null,0]
[null,null,null,null,null,0,null,null,1,null,1,null,1,null,1,null,1,null,1,null,1,null,1,null,1,null,"d","x",null,0,"d",null,null,null,null,null,null,null,null,null,null,0]
[null,null,null,null,null,0,null,null,1,null,1,null,1,null,1,null,1,null,1,null,1,null,1,null,1,null,"d","x",null,0,"d",null,null,null,null,null,null,null,null,null,null,0]
[null,null,null,null,null,0,null,null,1,null,1,null,1,null,1,null,1,null,1,null,1,null,1,null,1,null,"d","x",null,0,"d",null,null,null,null,null,null,null,null,null,null,0]
[null,null,null,null,null,0,null,null,1,null,1,null,1,null,1,null,1,null,1,null,1,null,1,null,1,null,"d","x",null,0,"d",null,null,null,null,null,null,null,null,null,null,0]
[null,null,null,null,null,0,null,null,1,null,1,null,1,null,1,null,1,null,1,null,1,null,1,null,1,null,"d","x",null,0,"d",null,null,null,null,null,null,null,null,null,null,0]
[null,null,null,null,null,0,null,null,1,null,1,null,1,null,1,null,1,null,1,null,1,null,1,null,1,null,"d","x",null,0,"d",null,null,null,null,null,null,null,null,null,null,0]
[null,null,null,null,null,0,null,null,1,null,1,null,1,null,1,null,1,null,1,null,1,null,1,null,1,null,"d","x",null,0,"d",null,null,null,null,null,null,null,null,null,null,0]
[null,null,null,null,null,0,null,null,1,null,1,null,1,null,1,null,1,null,1,null,1,null,1,null,1,null,"d","x",null,0,"d",null,null,null,null,null,null,null,null,null,null,0]
[null,null,null,null,null,0,null,null,1,null,1,null,1,null,1,null,1,null,1,null,1,null,1,null,1,null,"d","x",null,0,"d",null,null,null,null,null,null,null,null,null,null,0]
[null,null,null,null,null,0,null,null,1,null,1,null,1,null,1,null,1,null,1,null,1,null,1,null,1,null,"d","x",null,0,"d",null,null,null,null,null,null,null,null,null,null,0]
[null,null,null,null,null,0,null,null,1,null,1,null,1,null,1,null,1,null,1,null,1,null,1,null,1,null,"d","x",null,0,"d",null,null,null,null,null,null,null,null,null,null,0]
[null,null,null,null,null,0,null,null,1,null,1,null,1,null,1,null,1,null,1,null,1,null,1,null,1,null,"d","x",null,0,"d",null,null,null,null,null,null,null,null,null,null,0]
[null,null,null,null,null,0,null,null,1,null,1,null,1,null,1,null,1,null,1,null,1,null,1,null,1,null,"d","x",null,0,"d",null,null,null,null,null,null,null,null,null,null,0]
[null,null,null,null,null,0,null,null,1,null,1,null,1,null,1,null,1,null,1,null,1,null,1,null,1,null,"d","x",null,0,"d",null,null,null,null,null,null,null,null,null,null,0]
[null,null,null,null,null,0,null,null,1,null,1,null,1,null,1,null,1,null,1,null,1,null,1,null,1,null,"d","x",null,0,"d",null,null,null,null,null,null,null,null,null,null,0]
[null,null,null,null,null,0,null,null,1,null,1,null,1,null,1,null,1,null,1,null,1,null,1,null,1,null,"d","x",null,0,"d",null,null,null,null,null,null,null,null,null,null,0]
[null,null,null,null,null,0,null,null,1,null,1,null,1,null,1,null,1,null,1,null,1,null,1,null,1,null,"d","x",null,0,"d",null,null,null,null,null,null,null,null,null,null,0]
[null,null,null,null,null,0,null,null,1,null,1,null,1,null,1,null,1,null,1,null,1,null,1,null,1,null,"d","x",null,0,"d",null,null,null,null,null,null,null,null,null,null,0]
[null,null,null,null,null,0,null,null,1,null,1,null,1,null,1,null,1,null,1,null,1,null,1,null,1,null,"d","x",null,0,"d",null,null,null,null,null,null,null,null,null,null,0]
[null,null,null,null,null,0,null,null,1,null,1,null,1,null,1,null,1,null,1,null,1,null,1,null,1,null,"d","x",null,0,"d",null,null,null,null,null,null,null,null,null,null,0]
[null,null,null,null,null,0,null,null,1,null,1,null,1,null,1,null,1,null,1,null,1,null,1,null,1,null,"d","x",null,0,"d",null,null,null,null,null,null,null,null,null,null,0]
[null,null,null,null,null,0,null,null,1,null,1,null,1,null,1,null,1,null,1,null,1,null,1,null,1,null,"d","x",null,0,"d",null,null,null,null,null,null,null,null,null,null,0]
[null,null,null,null,null,0,null,null,1,null,1,null,1,null,1,null,1,null,1,null,1,null,1,null,1,null,"d","x",null,0,"d",null,null,null,null,null,null,null,null,null,null,0]
[null,null,null,null,null,0,null,null,1,null,1,null,1,null,1,null,1,null,1,null,1,null,1,null,1,null,"d","x",null,0,"d",null,null,null,null,null,null,null,null,null,null,0]
[null,null,null,null,null,0,null,null,1,null,1,null,1,null,1,null,1,null,1,null,1,null,1,null,1,null,"d","x",null,0,"d",null,null,null,null,null,null,null,null,null,null,0]
[null,null,null,null,null,0,null,null,1,null,1,null,1,null,1,null,1,null,1,null,1,null,1,null,1,null,"d","x",null,0,"d",null,null,null,null,null,null,null,null,null,null,0]
[null,null,null,null,null,0,null,null,1,null,1,null,1,null,1,null,1,null,1,null,1,null,1,null,1,null,"d","x",null,0,"d",null,null,null,null,null,null,null,null,null,null,0]
[null,null,null,null,null,0,null,null,1,null,1,null,1,null,1,null,1,null,1,null,1,null,1,null,1,null,"d","x",null,0,"d",null,null,null,null,null,null,null,null,null,null,0]
[null,null,null,null,null,0,null,null,1,null,1,null,1,null,1,null,1,null,1,null,1,null,1,null,1,null,"d","x",null,0,"d",null,null,null,null,null,null,null,null,null,null,0]
[null,null,null,null,null,0,null,null,1,null,1,null,1,null,1,null,1,null,1,null,1,null,1,null,1,null,"d","x",null,0,"d",null,null,null,null,null,null,null,null,null,null,0]
[null,null,null,null,null,0,null,null,1,null,1,null,1,null,1,null,1,null,1,null,1,null,1,null,1,null,"d","x",null,0,"d",null,null,null,null,null,null,null,null,null,null,0]
[null,null,null,null,null,0,null,null,1,null,1,null,1,null,1,null,1,null,1,null,1,null,1,null,1,null,"d","x",null,0,"d",null,null,null,null,null,null,null,null,null,null,0]
[null,null,null,null,null,0,null,null,1,null,1,null,1,null,1,null,1,null,1,null,1,null,1,null,1,null,"d","x",null,0,"d",null,null,null,null,null,null,null,null,null,null,0]
[null,null,null,null,null,0,null,null,1,null,1,null,1,null,1,null,1,null,1,null,1,null,1,null,1,null,"d","x",null,0,"d",null,null,null,null,null,null,null,null,null,null,0]
[null,null,null,null,null,0,null,null,1,null,1,null,1,null,1,null,1,null,1,null,1,null,1,null,1,null,"d","x",null,0,"d",null,null,null,null,null,null,null,null,null,null,0]
[null,null,null,null,null,0,null,null,1,null,1,null,1,null,1,null,1,null,1,null,1,null,1,null,1,null,"d","x",null,0,"d",null,null,null,null,null,null,null,null,null,null,0]
[null,null,null,null,null,0,null,null,1,null,1,null,1,null,1,null,1,null,1,null,1,null,1,null,1,null,"d","x",null,0,"d",null,null,null,null,null,null,null,null,null,null,0]
[null,null,null,null,null,0,null,null,1,null,1,null,1,null,1,null,1,null,1,null,1,null,1,null,1,null,"d","x",null,0,"d",null,null,null,null,null,null,null,null,null,null,0]
[null,null,null,null,null,0,null,null,1,null,1,null,1,null,1,null,1,null,1,null,1,null,1,null,1,null,"d","x",null,0,"d",null,null,null,null,null,null,null,null,null,null,0]
[null,null,null,null,null,0,null,null,1,null,1,null,1,null,1,null,1,null,1,null,1,null,1,null,1,null,"d","x",null,0,"d",null,null,null,null,null,null,null,null,null,null,0]
[null,null,null,null,null,0,null,null,1,null,1,null,1,null,1,null,1,null,1,null,1,null,1,null,1,null,"d","x",null,0,"d",null,null,null,null,null,null,null,null,null,null,0]
[null,null,null,null,null,0,null,null,1,null,1,null,1,null,1,null,1,null,1,null,1,null,1,null,1,null,"d","x",null,0,"d",null,null,null,null,null,null,null,null,null,null,0]
[null,null,null,null,null,0,null,null,{"$f":"COUNTBLANK(H646)","v":1},null,{"$f":"COUNTBLANK(J646)","v":1},null,{"$f":"COUNTBLANK(L646)","v":1},null,{"$f":"COUNTBLANK(N646)","v":1},null,{"$f":"COUNTBLANK(P646)","v":1},null,{"$f":"COUNTBLANK(R646)","v":1},null,{"$f":"COUNTBLANK(T646)","v":1},null,{"$f":"COUNTBLANK(V646)","v":1},null,{"$f":"COUNTBLANK(X646)","v":1},null,"d","x",null,0,"d",null,null,null,null,null,null,null,null,null,null,0]
[null,null,null,null,null,0,null,null,1,null,1,null,1,null,1,null,1,null,1,null,1,null,1,null,1,null,"d","x",null,0,"d",null,null,null,null,null,null,null,null,null,null,0]
[null,null,null,null,null,0,null,null,1,null,1,null,1,null,1,null,1,null,1,null,1,null,1,null,1,null,"d","x",null,0,"d",null,null,null,null,null,null,null,null,null,null,0]
[null,null,null,null,null,0,null,null,1,null,1,null,1,null,1,null,1,null,1,null,1,null,1,null,1,null,"d","x",null,0,"d",null,null,null,null,null,null,null,null,null,null,0]
[null,null,null,null,null,0,null,null,1,null,1,null,1,null,1,null,1,null,1,null,1,null,1,null,1,null,"d","x",null,0,"d",null,null,null,null,null,null,null,null,null,null,0]
[null,null,null,null,null,0,null,null,1,null,1,null,1,null,1,null,1,null,1,null,1,null,1,null,1,null,"d","x",null,0,"d",null,null,null,null,null,null,null,null,null,null,0]
[null,null,null,null,null,0,null,null,1,null,1,null,1,null,1,null,1,null,1,null,1,null,1,null,1,null,"d","x",null,0,"d",null,null,null,null,null,null,null,null,null,null,0]
[null,null,null,null,null,0,null,null,1,null,1,null,1,null,1,null,1,null,1,null,1,null,1,null,1,null,"d","x",null,0,"d",null,null,null,null,null,null,null,null,null,null,0]
[null,null,null,null,null,0,null,null,1,null,1,null,1,null,1,null,1,null,1,null,1,null,1,null,1,null,"d","x",null,0,"d",null,null,null,null,null,null,null,null,null,null,0]
[null,null,null,null,null,0,null,null,1,null,1,null,1,null,1,null,1,null,1,null,1,null,1,null,1,null,"d","x",null,0,"d",null,null,null,null,null,null,null,null,null,null,0]
[null,null,null,null,null,0,null,null,1,null,1,null,1,null,1,null,1,null,1,null,1,null,1,null,1,null,"d","x",null,0,"d",null,null,null,null,null,null,null,null,null,null,0]
[null,null,null,null,null,0,null,null,1,null,1,null,1,null,1,null,1,null,1,null,1,null,1,null,1,null,"d","x",null,0,"d",null,null,null,null,null,null,null,null,null,null,0]
[null,null,null,null,null,0,null,null,1,null,1,null,1,null,1,null,1,null,1,null,1,null,1,null,1,null,"d","x",null,0,"d",null,null,null,null,null,null,null,null,null,null,0]
[null,null,null,null,null,0,null,null,1,null,1,null,1,null,1,null,1,null,1,null,1,null,1,null,1,null,"d","x",null,0,"d",null,null,null,null,null,null,null,null,null,null,0]
[null,null,null,null,null,0,null,null,1,null,1,null,1,null,1,null,1,null,1,null,1,null,1,null,1,null,"d","x",null,0,"d",null,null,null,null,null,null,null,null,null,null,0]
[null,null,null,null,null,0,null,null,1,null,1,null,1,null,1,null,1,null,1,null,1,null,1,null,1,null,"d","x",null,0,"d",null,null,null,null,null,null,null,null,null,null,0]
[null,null,null,null,null,{"$f":"9-(I662+K662+M662+O662+Q662+S662+U662++Y662+W662)","v":0},null,null,1,null,1,null,1,null,1,null,1,null,1,null,1,null,1,null,1,null,"d","x",null,{"$f":"D662","v":0},"d",null,null,null,null,null,null,null,null,null,null,0]
[null,null,null,null,null,0,null,null,1,null,1,null,1,null,1,null,1,null,1,null,1,null,1,null,1,null,"d","x",null,0,"d",null,null,null,null,null,null,null,null,null,null,0]
[null,null,null,null,null,0,null,null,1,null,1,null,1,null,1,null,1,null,1,null,1,null,1,null,1,null,"d","x",null,0,"d",null,null,null,null,null,null,null,null,null,null,0]
[null,null,null,null,null,0,null,null,1,null,1,null,1,null,1,null,1,null,1,null,1,null,1,null,1,null,"d","x",null,0,"d",null,null,null,null,null,null,null,null,null,null,0]
[null,null,null,null,null,0,null,null,1,null,1,null,1,null,1,null,1,null,1,null,1,null,1,null,1,null,"d","x",null,0,"d",null,null,null,null,null,null,null,null,null,null,0]
[null,null,null,null,null,0,null,null,1,null,1,null,1,null,1,null,1,null,1,null,1,null,1,null,1,null,"d","x",null,0,"d",null,null,null,null,null,null,null,null,null,null,0]
[null,null,null,null,null,0,null,null,1,null,1,null,1,null,1,null,1,null,1,null,1,null,1,null,1,null,"d","x",null,0,"d",null,null,null,null,null,null,null,null,null,null,0]
[null,null,null,null,null,0,null,null,1,null,1,null,1,null,1,null,1,null,1,null,1,null,1,null,1,null,"d","x",null,0,"d",null,null,null,null,null,null,null,null,null,null,0]
[null,null,null,null,null,0,null,null,1,null,1,null,1,null,1,null,1,null,1,null,1,null,1,null,1,null,"d","x",null,0,"d",null,null,null,null,null,null,null,null,null,null,0]
[null,null,null,null,null,0,null,null,1,null,1,null,1,null,1,null,1,null,1,null,1,null,1,null,1,null,"d","x",null,0,"d",null,null,null,null,null,null,null,null,null,null,0]
[null,null,null,null,null,0,null,null,1,null,1,null,1,null,1,null,1,null,1,null,1,null,1,null,1,null,"d","x",null,0,"d",null,null,null,null,null,null,null,null,null,null,0]
[null,null,null,null,null,0,null,null,1,null,1,null,1,null,1,null,1,null,1,null,1,null,1,null,1,null,"d","x",null,0,"d",null,null,null,null,null,null,null,null,null,null,0]
[null,null,null,null,null,0,null,null,1,null,1,null,1,null,1,null,1,null,1,null,1,null,1,null,1,null,"d","x",null,0,"d",null,null,null,null,null,null,null,null,null,null,0]
[null,null,null,null,null,0,null,null,1,null,1,null,1,null,1,null,1,null,1,null,1,null,1,null,1,null,"d","x",null,0,"d",null,null,null,null,null,null,null,null,null,null,0]
[null,null,null,null,null,0,null,null,1,null,1,null,1,null,1,null,1,null,1,null,1,null,1,null,1,null,"d","x",null,0,"d",null,null,null,null,null,null,null,null,null,null,0]
[null,null,null,null,null,0,null,null,1,null,1,null,1,null,1,null,1,null,1,null,1,null,1,null,1,null,"d","x",null,0,"d",null,null,null,null,null,null,null,null,null,null,0]
[null,null,null,null,null,0,null,null,1,null,1,null,1,null,1,null,1,null,1,null,1,null,1,null,1,null,"d","x",null,0,"d",null,null,null,null,null,null,null,null,null,null,0]
[null,null,null,null,null,0,null,null,1,null,1,null,1,null,1,null,1,null,1,null,1,null,1,null,1,null,"d","x",null,0,"d",null,null,null,null,null,null,null,null,null,null,0]
[null,null,null,null,null,0,null,null,1,null,1,null,1,null,1,null,1,null,1,null,1,null,1,null,1,null,"d","x",null,0,"d",null,null,null,null,null,null,null,null,null,null,0]
[null,null,null,null,null,0,null,null,1,null,1,null,1,null,1,null,1,null,1,null,1,null,1,null,1,null,"d","x",null,0,"d",null,null,null,null,null,null,null,null,null,null,0]
[null,null,null,null,null,0,null,null,1,null,1,null,1,null,1,null,1,null,1,null,1,null,1,null,1,null,"d","x",null,0,"d",null,null,null,null,null,null,null,null,null,null,0]
[null,null,null,null,null,0,null,null,1,null,1,null,1,null,1,null,1,null,1,null,1,null,1,null,1,null,"d","x",null,0,"d",null,null,null,null,null,null,null,null,null,null,0]
[null,null,null,null,null,0,null,null,1,null,1,null,1,null,1,null,1,null,1,null,1,null,1,null,1,null,"d","x",null,0,"d",null,null,null,null,null,null,null,null,null,null,0]
[null,null,null,null,null,0,null,null,1,null,1,null,1,null,1,null,1,null,1,null,1,null,1,null,1,null,"d","x",null,0,"d",null,null,null,null,null,null,null,null,null,null,0]
[null,null,null,null,null,0,null,null,1,null,1,null,1,null,1,null,1,null,1,null,1,null,1,null,1,null,"d","x",null,0,"d",null,null,null,null,null,null,null,null,null,null,0]
[null,null,null,null,null,0,null,null,1,null,1,null,1,null,1,null,1,null,1,null,1,null,1,null,1,null,"d","x",null,0,"d",null,null,null,null,null,null,null,null,null,null,0]
[null,null,null,null,null,0,null,null,1,null,1,null,1,null,1,null,1,null,1,null,1,null,1,null,1,null,"d","x",null,0,"d",null,null,null,null,null,null,null,null,null,null,0]
[null,null,null,null,null,0,null,null,1,null,1,null,1,null,1,null,1,null,1,null,1,null,1,null,1,null,"d","x",null,0,"d",null,null,null,null,null,null,null,null,null,null,0]
[null,null,null,null,null,0,null,null,1,null,1,null,1,null,1,null,1,null,1,null,1,null,1,null,1,null,"d","x",null,0,"d",null,null,null,null,null,null,null,null,null,null,0]
[null,null,null,null,null,0,null,null,1,null,1,null,1,null,1,null,1,null,1,null,1,null,1,null,1,null,"d","x",null,0,"d",null,null,null,null,null,null,null,null,null,null,0]
[null,null,null,null,null,0,null,null,1,null,1,null,1,null,1,null,1,null,1,null,1,null,1,null,1,null,"d","x",null,0,"d",null,null,null,null,null,null,null,null,null,null,0]
[null,null,null,null,null,0,null,null,1,null,1,null,1,null,1,null,1,null,1,null,1,null,1,null,1,null,"d","x",null,0,"d",null,null,null,null,null,null,null,null,null,null,0]
[null,null,null,null,null,0,null,null,1,null,1,null,1,null,1,null,1,null,1,null,1,null,1,null,1,null,"d","x",null,0,"d",null,null,null,null,null,null,null,null,null,null,0]
[null,null,null,null,null,0,null,null,1,null,1,null,1,null,1,null,1,null,1,null,1,null,1,null,1,null,"d","x",null,0,"d",null,null,null,null,null,null,null,null,null,null,0]
[null,null,null,null,null,0,null,null,1,null,1,null,1,null,1,null,1,null,1,null,1,null,1,null,1,null,"d","x",null,0,"d",null,null,null,null,null,null,null,null,null,null,0]
[null,null,null,null,null,0,null,null,1,null,1,null,1,null,1,null,1,null,1,null,1,null,1,null,1,null,"d","x",null,0,"d",null,null,null,null,null,null,null,null,null,null,0]
[null,null,null,null,null,0,null,null,1,null,1,null,1,null,1,null,1,null,1,null,1,null,1,null,1,null,"d","x",null,0,"d",null,null,null,null,null,null,null,null,null,null,0]
[null,null,null,null,null,0,null,null,1,null,1,null,1,null,1,null,1,null,1,null,1,null,1,null,1,null,"d","x",null,0,"d",null,null,null,null,null,null,null,null,null,null,0]
[null,null,null,null,null,0,null,null,1,null,1,null,1,null,1,null,1,null,1,null,1,null,1,null,1,null,"d","x",null,0,"d",null,null,null,null,null,null,null,null,null,null,0]
[null,null,null,null,null,0,null,null,1,null,1,null,1,null,1,null,1,null,1,null,1,null,1,null,1,null,"d","x",null,0,"d",null,null,null,null,null,null,null,null,null,null,0]
[null,null,null,null,null,0,null,null,1,null,1,null,1,null,1,null,1,null,1,null,1,null,1,null,1,null,"d","x",null,0,"d",null,null,null,null,null,null,null,null,null,null,0]
[null,null,null,null,null,0,null,null,1,null,1,null,1,null,1,null,1,null,1,null,1,null,1,null,1,null,"d","x",null,0,"d",null,null,null,null,null,null,null,null,null,null,0]
[null,null,null,null,null,0,null,null,1,null,1,null,1,null,1,null,1,null,1,null,1,null,1,null,1,null,"d","x",null,0,"d",null,null,null,null,null,null,null,null,null,null,0]
[null,null,null,null,null,0,null,null,1,null,1,null,1,null,1,null,1,null,1,null,1,null,1,null,1,null,"d","x",null,0,"d",null,null,null,null,null,null,null,null,null,null,0]
[null,null,null,null,null,0,null,null,1,null,1,null,1,null,1,null,1,null,1,null,1,null,1,null,1,null,"d","x",null,0,"d",null,null,null,null,null,null,null,null,null,null,0]
[null,null,null,null,null,0,null,null,1,null,1,null,1,null,1,null,1,null,1,null,1,null,1,null,1,null,"d","x",null,0,"d",null,null,null,null,null,null,null,null,null,null,0]
[null,null,null,null,null,0,null,null,1,null,1,null,1,null,1,null,1,null,1,null,1,null,1,null,1,null,"d","x",null,0,"d",null,null,null,null,null,null,null,null,null,null,0]
[null,null,null,null,null,0,null,null,1,null,1,null,1,null,1,null,1,null,1,null,1,null,1,null,1,null,"d","x",null,0,"d",null,null,null,null,null,null,null,null,null,null,0]
[null,null,null,null,null,0,null,null,{"$f":"COUNTBLANK(H710)","v":1},null,{"$f":"COUNTBLANK(J710)","v":1},null,{"$f":"COUNTBLANK(L710)","v":1},null,{"$f":"COUNTBLANK(N710)","v":1},null,{"$f":"COUNTBLANK(P710)","v":1},null,{"$f":"COUNTBLANK(R710)","v":1},null,{"$f":"COUNTBLANK(T710)","v":1},null,{"$f":"COUNTBLANK(V710)","v":1},null,{"$f":"COUNTBLANK(X710)","v":1},null,"d","x",null,0,"d",null,null,null,null,null,null,null,null,null,null,0]
[null,null,null,null,null,0,null,null,1,null,1,null,1,null,1,null,1,null,1,null,1,null,1,null,1,null,"d","x",null,0,"d",null,null,null,null,null,null,null,null,null,null,0]
[null,null,null,null,null,0,null,null,1,null,1,null,1,null,1,null,1,null,1,null,1,null,1,null,1,null,"d","x",null,0,"d",null,null,null,null,null,null,null,null,null,null,0]
[null,null,null,null,null,0,null,null,1,null,1,null,1,null,1,null,1,null,1,null,1,null,1,null,1,null,"d","x",null,0,"d",null,null,null,null,null,null,null,null,null,null,0]
[null,null,null,null,null,0,null,null,1,null,1,null,1,null,1,null,1,null,1,null,1,null,1,null,1,null,"d","x",null,0,"d",null,null,null,null,null,null,null,null,null,null,0]
[null,null,null,null,null,0,null,null,1,null,1,null,1,null,1,null,1,null,1,null,1,null,1,null,1,null,"d","x",null,0,"d",null,null,null,null,null,null,null,null,null,null,0]
[null,null,null,null,null,0,null,null,1,null,1,null,1,null,1,null,1,null,1,null,1,null,1,null,1,null,"d","x",null,0,"d",null,null,null,null,null,null,null,null,null,null,0]
[null,null,null,null,null,0,null,null,1,null,1,null,1,null,1,null,1,null,1,null,1,null,1,null,1,null,"d","x",null,0,"d",null,null,null,null,null,null,null,null,null,null,0]
[null,null,null,null,null,0,null,null,1,null,1,null,1,null,1,null,1,null,1,null,1,null,1,null,1,null,"d","x",null,0,"d",null,null,null,null,null,null,null,null,null,null,0]
[null,null,null,null,null,0,null,null,1,null,1,null,1,null,1,null,1,null,1,null,1,null,1,null,1,null,"d","x",null,0,"d",null,null,null,null,null,null,null,null,null,null,0]
[null,null,null,null,null,0,null,null,1,null,1,null,1,null,1,null,1,null,1,null,1,null,1,null,1,null,"d","x",null,0,"d",null,null,null,null,null,null,null,null,null,null,0]
[null,null,null,null,null,0,null,null,1,null,1,null,1,null,1,null,1,null,1,null,1,null,1,null,1,null,"d","x",null,0,"d",null,null,null,null,null,null,null,null,null,null,0]
[null,null,null,null,null,0,null,null,1,null,1,null,1,null,1,null,1,null,1,null,1,null,1,null,1,null,"d","x",null,0,"d",null,null,null,null,null,null,null,null,null,null,0]
[null,null,null,null,null,0,null,null,1,null,1,null,1,null,1,null,1,null,1,null,1,null,1,null,1,null,"d","x",null,0,"d",null,null,null,null,null,null,null,null,null,null,0]
[null,null,null,null,null,0,null,null,1,null,1,null,1,null,1,null,1,null,1,null,1,null,1,null,1,null,"d","x",null,0,"d",null,null,null,null,null,null,null,null,null,null,0]
[null,null,null,null,null,0,null,null,1,null,1,null,1,null,1,null,1,null,1,null,1,null,1,null,1,null,"d","x",null,0,"d",null,null,null,null,null,null,null,null,null,null,0]
[null,null,null,null,null,{"$f":"9-(I726+K726+M726+O726+Q726+S726+U726++Y726+W726)","v":0},null,null,1,null,1,null,1,null,1,null,1,null,1,null,1,null,1,null,1,null,"d","x",null,{"$f":"D726","v":0},"d",null,null,null,null,null,null,null,null,null,null,0]
[null,null,null,null,null,0,null,null,1,null,1,null,1,null,1,null,1,null,1,null,1,null,1,null,1,null,"d","x",null,0,"d",null,null,null,null,null,null,null,null,null,null,0]
[null,null,null,null,null,0,null,null,1,null,1,null,1,null,1,null,1,null,1,null,1,null,1,null,1,null,"d","x",null,0,"d",null,null,null,null,null,null,null,null,null,null,0]
[null,null,null,null,null,0,null,null,1,null,1,null,1,null,1,null,1,null,1,null,1,null,1,null,1,null,"d","x",null,0,"d",null,null,null,null,null,null,null,null,null,null,0]
[null,null,null,null,null,0,null,null,1,null,1,null,1,null,1,null,1,null,1,null,1,null,1,null,1,null,"d","x",null,0,"d",null,null,null,null,null,null,null,null,null,null,0]
[null,null,null,null,null,0,null,null,1,null,1,null,1,null,1,null,1,null,1,null,1,null,1,null,1,null,"d","x",null,0,"d",null,null,null,null,null,null,null,null,null,null,0]
[null,null,null,null,null,0,null,null,1,null,1,null,1,null,1,null,1,null,1,null,1,null,1,null,1,null,"d","x",null,0,"d",null,null,null,null,null,null,null,null,null,null,0]
[null,null,null,null,null,0,null,null,1,null,1,null,1,null,1,null,1,null,1,null,1,null,1,null,1,null,"d","x",null,0,"d",null,null,null,null,null,null,null,null,null,null,0]
[null,null,null,null,null,0,null,null,1,null,1,null,1,null,1,null,1,null,1,null,1,null,1,null,1,null,"d","x",null,0,"d",null,null,null,null,null,null,null,null,null,null,0]
[null,null,null,null,null,0,null,null,1,null,1,null,1,null,1,null,1,null,1,null,1,null,1,null,1,null,"d","x",null,0,"d",null,null,null,null,null,null,null,null,null,null,0]
[null,null,null,null,null,0,null,null,1,null,1,null,1,null,1,null,1,null,1,null,1,null,1,null,1,null,"d","x",null,0,"d",null,null,null,null,null,null,null,null,null,null,0]
[null,null,null,null,null,0,null,null,1,null,1,null,1,null,1,null,1,null,1,null,1,null,1,null,1,null,"d","x",null,0,"d",null,null,null,null,null,null,null,null,null,null,0]
[null,null,null,null,null,0,null,null,1,null,1,null,1,null,1,null,1,null,1,null,1,null,1,null,1,null,"d","x",null,0,"d",null,null,null,null,null,null,null,null,null,null,0]
[null,null,null,null,null,0,null,null,1,null,1,null,1,null,1,null,1,null,1,null,1,null,1,null,1,null,"d","x",null,0,"d",null,null,null,null,null,null,null,null,null,null,0]
[null,null,null,null,null,0,null,null,1,null,1,null,1,null,1,null,1,null,1,null,1,null,1,null,1,null,"d","x",null,0,"d",null,null,null,null,null,null,null,null,null,null,0]
[null,null,null,null,null,0,null,null,1,null,1,null,1,null,1,null,1,null,1,null,1,null,1,null,1,null,"d","x",null,0,"d",null,null,null,null,null,null,null,null,null,null,0]
[null,null,null,null,null,0,null,null,1,null,1,null,1,null,1,null,1,null,1,null,1,null,1,null,1,null,"d","x",null,0,"d",null,null,null,null,null,null,null,null,null,null,0]
[null,null,null,null,null,0,null,null,1,null,1,null,1,null,1,null,1,null,1,null,1,null,1,null,1,null,"d","x",null,0,"d",null,null,null,null,null,null,null,null,null,null,0]
[null,null,null,null,null,0,null,null,1,null,1,null,1,null,1,null,1,null,1,null,1,null,1,null,1,null,"d","x",null,0,"d",null,null,null,null,null,null,null,null,null,null,0]
[null,null,null,null,null,0,null,null,1,null,1,null,1,null,1,null,1,null,1,null,1,null,1,null,1,null,"d","x",null,0,"d",null,null,null,null,null,null,null,null,null,null,0]
[null,null,null,null,null,0,null,null,1,null,1,null,1,null,1,null,1,null,1,null,1,null,1,null,1,null,"d","x",null,0,"d",null,null,null,null,null,null,null,null,null,null,0]
[null,null,null,null,null,0,null,null,1,null,1,null,1,null,1,null,1,null,1,null,1,null,1,null,1,null,"d","x",null,0,"d",null,null,null,null,null,null,null,null,null,null,0]
[null,null,null,null,null,0,null,null,1,null,1,null,1,null,1,null,1,null,1,null,1,null,1,null,1,null,"d","x",null,0,"d",null,null,null,null,null,null,null,null,null,null,0]
[null,null,null,null,null,0,null,null,1,null,1,null,1,null,1,null,1,null,1,null,1,null,1,null,1,null,"d","x",null,0,"d",null,null,null,null,null,null,null,null,null,null,0]
[null,null,null,null,null,0,null,null,1,null,1,null,1,null,1,null,1,null,1,null,1,null,1,null,1,null,"d","x",null,0,"d",null,null,null,null,null,null,null,null,null,null,0]
[null,null,null,null,null,0,null,null,1,null,1,null,1,null,1,null,1,null,1,null,1,null,1,null,1,null,"d","x",null,0,"d",null,null,null,null,null,null,null,null,null,null,0]
[null,null,null,null,null,0,null,null,1,null,1,null,1,null,1,null,1,null,1,null,1,null,1,null,1,null,"d","x",null,0,"d",null,null,null,null,null,null,null,null,null,null,0]
[null,null,null,null,null,0,null,null,1,null,1,null,1,null,1,null,1,null,1,null,1,null,1,null,1,null,"d","x",null,0,"d",null,null,null,null,null,null,null,null,null,null,0]
[null,null,null,null,null,0,null,null,1,null,1,null,1,null,1,null,1,null,1,null,1,null,1,null,1,null,"d","x",null,0,"d",null,null,null,null,null,null,null,null,null,null,0]
[null,null,null,null,null,0,null,null,1,null,1,null,1,null,1,null,1,null,1,null,1,null,1,null,1,null,"d","x",null,0,"d",null,null,null,null,null,null,null,null,null,null,0]
[null,null,null,null,null,0,null,null,1,null,1,null,1,null,1,null,1,null,1,null,1,null,1,null,1,null,"d","x",null,0,"d",null,null,null,null,null,null,null,null,null,null,0]
[null,null,null,null,null,0,null,null,1,null,1,null,1,null,1,null,1,null,1,null,1,null,1,null,1,null,"d","x",null,0,"d",null,null,null,null,null,null,null,null,null,null,0]
[null,null,null,null,null,0,null,null,1,null,1,null,1,null,1,null,1,null,1,null,1,null,1,null,1,null,"d","x",null,0,"d",null,null,null,null,null,null,null,null,null,null,0]
[null,null,null,null,null,0,null,null,1,null,1,null,1,null,1,null,1,null,1,null,1,null,1,null,1,null,"d","x",null,0,"d",null,null,null,null,null,null,null,null,null,null,0]
[null,null,null,null,null,0,null,null,1,null,1,null,1,null,1,null,1,null,1,null,1,null,1,null,1,null,"d","x",null,0,"d",null,null,null,null,null,null,null,null,null,null,0]
[null,null,null,null,null,0,null,null,1,null,1,null,1,null,1,null,1,null,1,null,1,null,1,null,1,null,"d","x",null,0,"d",null,null,null,null,null,null,null,null,null,null,0]
[null,null,null,null,null,0,null,null,1,null,1,null,1,null,1,null,1,null,1,null,1,null,1,null,1,null,"d","x",null,0,"d",null,null,null,null,null,null,null,null,null,null,0]
[null,null,null,null,null,0,null,null,1,null,1,null,1,null,1,null,1,null,1,null,1,null,1,null,1,null,"d","x",null,0,"d",null,null,null,null,null,null,null,null,null,null,0]
[null,null,null,null,null,0,null,null,1,null,1,null,1,null,1,null,1,null,1,null,1,null,1,null,1,null,"d","x",null,0,"d",null,null,null,null,null,null,null,null,null,null,0]
[null,null,null,null,null,0,null,null,1,null,1,null,1,null,1,null,1,null,1,null,1,null,1,null,1,null,"d","x",null,0,"d",null,null,null,null,null,null,null,null,null,null,0]
[null,null,null,null,null,0,null,null,1,null,1,null,1,null,1,null,1,null,1,null,1,null,1,null,1,null,"d","x",null,0,"d",null,null,null,null,null,null,null,null,null,null,0]
[null,null,null,null,null,0,null,null,1,null,1,null,1,null,1,null,1,null,1,null,1,null,1,null,1,null,"d","x",null,0,"d",null,null,null,null,null,null,null,null,null,null,0]
[null,null,null,null,null,0,null,null,1,null,1,null,1,null,1,null,1,null,1,null,1,null,1,null,1,null,"d","x",null,0,"d",null,null,null,null,null,null,null,null,null,null,0]
[null,null,null,null,null,0,null,null,1,null,1,null,1,null,1,null,1,null,1,null,1,null,1,null,1,null,"d","x",null,0,"d",null,null,null,null,null,null,null,null,null,null,0]
[null,null,null,null,null,0,null,null,1,null,1,null,1,null,1,null,1,null,1,null,1,null,1,null,1,null,"d","x",null,0,"d",null,null,null,null,null,null,null,null,null,null,0]
[null,null,null,null,null,0,null,null,1,null,1,null,1,null,1,null,1,null,1,null,1,null,1,null,1,null,"d","x",null,0,"d",null,null,null,null,null,null,null,null,null,null,0]
[null,null,null,null,null,0,null,null,1,null,1,null,1,null,1,null,1,null,1,null,1,null,1,null,1,null,"d","x",null,0,"d",null,null,null,null,null,null,null,null,null,null,0]
[null,null,null,null,null,0,null,null,1,null,1,null,1,null,1,null,1,null,1,null,1,null,1,null,1,null,"d","x",null,0,"d",null,null,null,null,null,null,null,null,null,null,0]
[null,null,null,null,null,0,null,null,{"$f":"COUNTBLANK(H774)","v":1},null,{"$f":"COUNTBLANK(J774)","v":1},null,{"$f":"COUNTBLANK(L774)","v":1},null,{"$f":"COUNTBLANK(N774)","v":1},null,{"$f":"COUNTBLANK(P774)","v":1},null,{"$f":"COUNTBLANK(R774)","v":1},null,{"$f":"COUNTBLANK(T774)","v":1},null,{"$f":"COUNTBLANK(V774)","v":1},null,{"$f":"COUNTBLANK(X774)","v":1},null,"d","x",null,0,"d",null,null,null,null,null,null,null,null,null,null,0]
[null,null,null,null,null,0,null,null,1,null,1,null,1,null,1,null,1,null,1,null,1,null,1,null,1,null,"d","x",null,0,"d",null,null,null,null,null,null,null,null,null,null,0]
[null,null,null,null,null,0,null,null,1,null,1,null,1,null,1,null,1,null,1,null,1,null,1,null,1,null,"d","x",null,0,"d",null,null,null,null,null,null,null,null,null,null,0]
[null,null,null,null,null,0,null,null,1,null,1,null,1,null,1,null,1,null,1,null,1,null,1,null,1,null,"d","x",null,0,"d",null,null,null,null,null,null,null,null,null,null,0]
[null,null,null,null,null,0,null,null,1,null,1,null,1,null,1,null,1,null,1,null,1,null,1,null,1,null,"d","x",null,0,"d",null,null,null,null,null,null,null,null,null,null,0]
[null,null,null,null,null,0,null,null,1,null,1,null,1,null,1,null,1,null,1,null,1,null,1,null,1,null,"d","x",null,0,"d",null,null,null,null,null,null,null,null,null,null,0]
[null,null,null,null,null,0,null,null,1,null,1,null,1,null,1,null,1,null,1,null,1,null,1,null,1,null,"d","x",null,0,"d",null,null,null,null,null,null,null,null,null,null,0]
[null,null,null,null,null,0,null,null,1,null,1,null,1,null,1,null,1,null,1,null,1,null,1,null,1,null,"d","x",null,0,"d",null,null,null,null,null,null,null,null,null,null,0]
[null,null,null,null,null,0,null,null,1,null,1,null,1,null,1,null,1,null,1,null,1,null,1,null,1,null,"d","x",null,0,"d",null,null,null,null,null,null,null,null,null,null,0]
[null,null,null,null,null,0,null,null,1,null,1,null,1,null,1,null,1,null,1,null,1,null,1,null,1,null,"d","x",null,0,"d",null,null,null,null,null,null,null,null,null,null,0]
[null,null,null,null,null,0,null,null,1,null,1,null,1,null,1,null,1,null,1,null,1,null,1,null,1,null,"d","x",null,0,"d",null,null,null,null,null,null,null,null,null,null,0]
[null,null,null,null,null,0,null,null,1,null,1,null,1,null,1,null,1,null,1,null,1,null,1,null,1,null,"d","x",null,0,"d",null,null,null,null,null,null,null,null,null,null,0]
[null,null,null,null,null,0,null,null,1,null,1,null,1,null,1,null,1,null,1,null,1,null,1,null,1,null,"d","x",null,0,"d",null,null,null,null,null,null,null,null,null,null,0]
[null,null,null,null,null,0,null,null,1,null,1,null,1,null,1,null,1,null,1,null,1,null,1,null,1,null,"d","x",null,0,"d",null,null,null,null,null,null,null,null,null,null,0]
[null,null,null,null,null,0,null,null,1,null,1,null,1,null,1,null,1,null,1,null,1,null,1,null,1,null,"d","x",null,0,"d",null,null,null,null,null,null,null,null,null,null,0]
[null,null,null,null,null,0,null,null,1,null,1,null,1,null,1,null,1,null,1,null,1,null,1,null,1,null,"d","x",null,0,"d",null,null,null,null,null,null,null,null,null,null,0]
[null,null,null,null,null,{"$f":"9-(I790+K790+M790+O790+Q790+S790+U790++Y790+W790)","v":0},null,null,1,null,1,null,1,null,1,null,1,null,1,null,1,null,1,null,1,null,"d","x",null,{"$f":"D790","v":0},"d",null,null,null,null,null,null,null,null,null,null,0]
[null,null,null,null,null,0,null,null,1,null,1,null,1,null,1,null,1,null,1,null,1,null,1,null,1,null,"d","x",null,0,"d",null,null,null,null,null,null,null,null,null,null,0]
[null,null,null,null,null,0,null,null,1,null,1,null,1,null,1,null,1,null,1,null,1,null,1,null,1,null,"d","x",null,0,"d",null,null,null,null,null,null,null,null,null,null,0]
[null,null,null,null,null,0,null,null,1,null,1,null,1,null,1,null,1,null,1,null,1,null,1,null,1,null,"d","x",null,0,"d",null,null,null,null,null,null,null,null,null,null,0]
[null,null,null,null,null,0,null,null,1,null,1,null,1,null,1,null,1,null,1,null,1,null,1,null,1,null,"d","x",null,0,"d",null,null,null,null,null,null,null,null,null,null,0]
[null,null,null,null,null,0,null,null,1,null,1,null,1,null,1,null,1,null,1,null,1,null,1,null,1,null,"d","x",null,0,"d",null,null,null,null,null,null,null,null,null,null,0]
[null,null,null,null,null,0,null,null,1,null,1,null,1,null,1,null,1,null,1,null,1,null,1,null,1,null,"d","x",null,0,"d",null,null,null,null,null,null,null,null,null,null,0]
[null,null,null,null,null,0,null,null,1,null,1,null,1,null,1,null,1,null,1,null,1,null,1,null,1,null,"d","x",null,0,"d",null,null,null,null,null,null,null,null,null,null,0]
[null,null,null,null,null,0,null,null,1,null,1,null,1,null,1,null,1,null,1,null,1,null,1,null,1,null,"d","x",null,0,"d",null,null,null,null,null,null,null,null,null,null,0]
[null,null,null,null,null,0,null,null,1,null,1,null,1,null,1,null,1,null,1,null,1,null,1,null,1,null,"d","x",null,0,"d",null,null,null,null,null,null,null,null,null,null,0]
[null,null,null,null,null,0,null,null,1,null,1,null,1,null,1,null,1,null,1,null,1,null,1,null,1,null,"d","x",null,0,"d",null,null,null,null,null,null,null,null,null,null,0]
[null,null,null,null,null,0,null,null,1,null,1,null,1,null,1,null,1,null,1,null,1,null,1,null,1,null,"d","x",null,0,"d",null,null,null,null,null,null,null,null,null,null,0]
[null,null,null,null,null,0,null,null,1,null,1,null,1,null,1,null,1,null,1,null,1,null,1,null,1,null,"d","x",null,0,"d",null,null,null,null,null,null,null,null,null,null,0]
[null,null,null,null,null,0,null,null,1,null,1,null,1,null,1,null,1,null,1,null,1,null,1,null,1,null,"d","x",null,0,"d",null,null,null,null,null,null,null,null,null,null,0]
[null,null,null,null,null,0,null,null,1,null,1,null,1,null,1,null,1,null,1,null,1,null,1,null,1,null,"d","x",null,0,"d",null,null,null,null,null,null,null,null,null,null,0]
[null,null,null,null,null,0,null,null,1,null,1,null,1,null,1,null,1,null,1,null,1,null,1,null,1,null,"d","x",null,0,"d",null,null,null,null,null,null,null,null,null,null,0]
[null,null,null,null,null,0,null,null,1,null,1,null,1,null,1,null,1,null,1,null,1,null,1,null,1,null,"d","x",null,0,"d",null,null,null,null,null,null,null,null,null,null,0]
[null,null,null,null,null,0,null,null,1,null,1,null,1,null,1,null,1,null,1,null,1,null,1,null,1,null,"d","x",null,0,"d",null,null,null,null,null,null,null,null,null,null,0]
[null,null,null,null,null,0,null,null,1,null,1,null,1,null,1,null,1,null,1,null,1,null,1,null,1,null,"d","x",null,0,"d",null,null,null,null,null,null,null,null,null,null,0]
[null,null,null,null,null,0,null,null,1,null,1,null,1,null,1,null,1,null,1,null,1,null,1,null,1,null,"d","x",null,0,"d",null,null,null,null,null,null,null,null,null,null,0]
[null,null,null,null,null,0,null,null,1,null,1,null,1,null,1,null,1,null,1,null,1,null,1,null,1,null,"d","x",null,0,"d",null,null,null,null,null,null,null,null,null,null,0]
[null,null,null,null,null,0,null,null,1,null,1,null,1,null,1,null,1,null,1,null,1,null,1,null,1,null,"d","x",null,0,"d",null,null,null,null,null,null,null,null,null,null,0]
[null,null,null,null,null,0,null,null,1,null,1,null,1,null,1,null,1,null,1,null,1,null,1,null,1,null,"d","x",null,0,"d",null,null,null,null,null,null,null,null,null,null,0]
[null,null,null,null,null,0,null,null,1,null,1,null,1,null,1,null,1,null,1,null,1,null,1,null,1,null,"d","x",null,0,"d",null,null,null,null,null,null,null,null,null,null,0]
[null,null,null,null,null,0,null,null,1,null,1,null,1,null,1,null,1,null,1,null,1,null,1,null,1,null,"d","x",null,0,"d",null,null,null,null,null,null,null,null,null,null,0]
[null,null,null,null,null,0,null,null,1,null,1,null,1,null,1,null,1,null,1,null,1,null,1,null,1,null,"d","x",null,0,"d",null,null,null,null,null,null,null,null,null,null,0]
[null,null,null,null,null,0,null,null,1,null,1,null,1,null,1,null,1,null,1,null,1,null,1,null,1,null,"d","x",null,0,"d",null,null,null,null,null,null,null,null,null,null,0]
[null,null,null,null,null,0,null,null,1,null,1,null,1,null,1,null,1,null,1,null,1,null,1,null,1,null,"d","x",null,0,"d",null,null,null,null,null,null,null,null,null,null,0]
[null,null,null,null,null,0,null,null,1,null,1,null,1,null,1,null,1,null,1,null,1,null,1,null,1,null,"d","x",null,0,"d",null,null,null,null,null,null,null,null,null,null,0]
[null,null,null,null,null,0,null,null,1,null,1,null,1,null,1,null,1,null,1,null,1,null,1,null,1,null,"d","x",null,0,"d",null,null,null,null,null,null,null,null,null,null,0]
[null,null,null,null,null,0,null,null,1,null,1,null,1,null,1,null,1,null,1,null,1,null,1,null,1,null,"d","x",null,0,"d",null,null,null,null,null,null,null,null,null,null,0]
[null,null,null,null,null,0,null,null,1,null,1,null,1,null,1,null,1,null,1,null,1,null,1,null,1,null,"d","x",null,0,"d",null,null,null,null,null,null,null,null,null,null,0]
[null,null,null,null,null,0,null,null,1,null,1,null,1,null,1,null,1,null,1,null,1,null,1,null,1,null,"d","x",null,0,"d",null,null,null,null,null,null,null,null,null,null,0]
[null,null,null,null,null,0,null,null,1,null,1,null,1,null,1,null,1,null,1,null,1,null,1,null,1,null,"d","x",null,0,"d",null,null,null,null,null,null,null,null,null,null,0]
[null,null,null,null,null,0,null,null,1,null,1,null,1,null,1,null,1,null,1,null,1,null,1,null,1,null,"d","x",null,0,"d",null,null,null,null,null,null,null,null,null,null,0]
[null,null,null,null,null,0,null,null,1,null,1,null,1,null,1,null,1,null,1,null,1,null,1,null,1,null,"d","x",null,0,"d",null,null,null,null,null,null,null,null,null,null,0]
[null,null,null,null,null,0,null,null,1,null,1,null,1,null,1,null,1,null,1,null,1,null,1,null,1,null,"d","x",null,0,"d",null,null,null,null,null,null,null,null,null,null,0]
[null,null,null,null,null,0,null,null,1,null,1,null,1,null,1,null,1,null,1,null,1,null,1,null,1,null,"d","x",null,0,"d",null,null,null,null,null,null,null,null,null,null,0]
[null,null,null,null,null,0,null,null,1,null,1,null,1,null,1,null,1,null,1,null,1,null,1,null,1,null,"d","x",null,0,"d",null,null,null,null,null,null,null,null,null,null,0]
[null,null,null,null,null,0,null,null,1,null,1,null,1,null,1,null,1,null,1,null,1,null,1,null,1,null,"d","x",null,0,"d",null,null,null,null,null,null,null,null,null,null,0]
[null,null,null,null,null,0,null,null,1,null,1,null,1,null,1,null,1,null,1,null,1,null,1,null,1,null,"d","x",null,0,"d",null,null,null,null,null,null,null,null,null,null,0]
[null,null,null,null,null,0,null,null,1,null,1,null,1,null,1,null,1,null,1,null,1,null,1,null,1,null,"d","x",null,0,"d",null,null,null,null,null,null,null,null,null,null,0]
[null,null,null,null,null,0,null,null,1,null,1,null,1,null,1,null,1,null,1,null,1,null,1,null,1,null,"d","x",null,0,"d",null,null,null,null,null,null,null,null,null,null,0]
[null,null,null,null,null,0,null,null,1,null,1,null,1,null,1,null,1,null,1,null,1,null,1,null,1,null,"d","x",null,0,"d",null,null,null,null,null,null,null,null,null,null,0]
[null,null,null,null,null,0,null,null,1,null,1,null,1,null,1,null,1,null,1,null,1,null,1,null,1,null,"d","x",null,0,"d",null,null,null,null,null,null,null,null,null,null,0]
[null,null,null,null,null,0,null,null,1,null,1,null,1,null,1,null,1,null,1,null,1,null,1,null,1,null,"d","x",null,0,"d",null,null,null,null,null,null,null,null,null,null,0]
[null,null,null,null,null,0,null,null,1,null,1,null,1,null,1,null,1,null,1,null,1,null,1,null,1,null,"d","x",null,0,"d",null,null,null,null,null,null,null,null,null,null,0]
[null,null,null,null,null,0,null,null,1,null,1,null,1,null,1,null,1,null,1,null,1,null,1,null,1,null,"d","x",null,0,"d",null,null,null,null,null,null,null,null,null,null,0]
[null,null,null,null,null,0,null,null,{"$f":"COUNTBLANK(H838)","v":1},null,{"$f":"COUNTBLANK(J838)","v":1},null,{"$f":"COUNTBLANK(L838)","v":1},null,{"$f":"COUNTBLANK(N838)","v":1},null,{"$f":"COUNTBLANK(P838)","v":1},null,{"$f":"COUNTBLANK(R838)","v":1},null,{"$f":"COUNTBLANK(T838)","v":1},null,{"$f":"COUNTBLANK(V838)","v":1},null,{"$f":"COUNTBLANK(X838)","v":1},null,"d","x",null,0,"d",null,null,null,null,null,null,null,null,null,null,0]
[null,null,null,null,null,0,null,null,1,null,1,null,1,null,1,null,1,null,1,null,1,null,1,null,1,null,"d","x",null,0,"d",null,null,null,null,null,null,null,null,null,null,0]
[null,null,null,null,null,0,null,null,1,null,1,null,1,null,1,null,1,null,1,null,1,null,1,null,1,null,"d","x",null,0,"d",null,null,null,null,null,null,null,null,null,null,0]
[null,null,null,null,null,0,null,null,1,null,1,null,1,null,1,null,1,null,1,null,1,null,1,null,1,null,"d","x",null,0,"d",null,null,null,null,null,null,null,null,null,null,0]
[null,null,null,null,null,0,null,null,1,null,1,null,1,null,1,null,1,null,1,null,1,null,1,null,1,null,"d","x",null,0,"d",null,null,null,null,null,null,null,null,null,null,0]
[null,null,null,null,null,0,null,null,1,null,1,null,1,null,1,null,1,null,1,null,1,null,1,null,1,null,"d","x",null,0,"d",null,null,null,null,null,null,null,null,null,null,0]
[null,null,null,null,null,0,null,null,1,null,1,null,1,null,1,null,1,null,1,null,1,null,1,null,1,null,"d","x",null,0,"d",null,null,null,null,null,null,null,null,null,null,0]
[null,null,null,null,null,0,null,null,1,null,1,null,1,null,1,null,1,null,1,null,1,null,1,null,1,null,"d","x",null,0,"d",null,null,null,null,null,null,null,null,null,null,0]
[null,null,null,null,null,0,null,null,1,null,1,null,1,null,1,null,1,null,1,null,1,null,1,null,1,null,"d","x",null,0,"d",null,null,null,null,null,null,null,null,null,null,0]
[null,null,null,null,null,0,null,null,1,null,1,null,1,null,1,null,1,null,1,null,1,null,1,null,1,null,"d","x",null,0,"d",null,null,null,null,null,null,null,null,null,null,0]
[null,null,null,null,null,0,null,null,1,null,1,null,1,null,1,null,1,null,1,null,1,null,1,null,1,null,"d","x",null,0,"d",null,null,null,null,null,null,null,null,null,null,0]
[null,null,null,null,null,0,null,null,1,null,1,null,1,null,1,null,1,null,1,null,1,null,1,null,1,null,"d","x",null,0,"d",null,null,null,null,null,null,null,null,null,null,0]
[null,null,null,null,null,0,null,null,1,null,1,null,1,null,1,null,1,null,1,null,1,null,1,null,1,null,"d","x",null,0,"d",null,null,null,null,null,null,null,null,null,null,0]
[null,null,null,null,null,0,null,null,1,null,1,null,1,null,1,null,1,null,1,null,1,null,1,null,1,null,"d","x",null,0,"d",null,null,null,null,null,null,null,null,null,null,0]
[null,null,null,null,null,0,null,null,1,null,1,null,1,null,1,null,1,null,1,null,1,null,1,null,1,null,"d","x",null,0,"d",null,null,null,null,null,null,null,null,null,null,0]
[null,null,null,null,null,0,null,null,1,null,1,null,1,null,1,null,1,null,1,null,1,null,1,null,1,null,"d","x",null,0,"d",null,null,null,null,null,null,null,null,null,null,0]
[null,null,null,null,null,{"$f":"9-(I854+K854+M854+O854+Q854+S854+U854++Y854+W854)","v":0},null,null,1,null,1,null,1,null,1,null,1,null,1,null,1,null,1,null,1,null,"d","x",null,{"$f":"D854","v":0},"d",null,null,null,null,null,null,null,null,null,null,0]
[null,null,null,null,null,0,null,null,1,null,1,null,1,null,1,null,1,null,1,null,1,null,1,null,1,null,"d","x",null,0,"d",null,null,null,null,null,null,null,null,null,null,0]
[null,null,null,null,null,0,null,null,1,null,1,null,1,null,1,null,1,null,1,null,1,null,1,null,1,null,"d","x",null,0,"d",null,null,null,null,null,null,null,null,null,null,0]
[null,null,null,null,null,0,null,null,1,null,1,null,1,null,1,null,1,null,1,null,1,null,1,null,1,null,"d","x",null,0,"d",null,null,null,null,null,null,null,null,null,null,0]
[null,null,null,null,null,0,null,null,1,null,1,null,1,null,1,null,1,null,1,null,1,null,1,null,1,null,"d","x",null,0,"d",null,null,null,null,null,null,null,null,null,null,0]
[null,null,null,null,null,0,null,null,1,null,1,null,1,null,1,null,1,null,1,null,1,null,1,null,1,null,"d","x",null,0,"d",null,null,null,null,null,null,null,null,null,null,0]
[null,null,null,null,null,0,null,null,1,null,1,null,1,null,1,null,1,null,1,null,1,null,1,null,1,null,"d","x",null,0,"d",null,null,null,null,null,null,null,null,null,null,0]
[null,null,null,null,null,0,null,null,1,null,1,null,1,null,1,null,1,null,1,null,1,null,1,null,1,null,"d","x",null,0,"d",null,null,null,null,null,null,null,null,null,null,0]
[null,null,null,null,null,0,null,null,1,null,1,null,1,null,1,null,1,null,1,null,1,null,1,null,1,null,"d","x",null,0,"d",null,null,null,null,null,null,null,null,null,null,0]
[null,null,null,null,null,0,null,null,1,null,1,null,1,null,1,null,1,null,1,null,1,null,1,null,1,null,"d","x",null,0,"d",null,null,null,null,null,null,null,null,null,null,0]
[null,null,null,null,null,0,null,null,1,null,1,null,1,null,1,null,1,null,1,null,1,null,1,null,1,null,"d","x",null,0,"d",null,null,null,null,null,null,null,null,null,null,0]
[null,null,null,null,null,0,null,null,1,null,1,null,1,null,1,null,1,null,1,null,1,null,1,null,1,null,"d","x",null,0,"d",null,null,null,null,null,null,null,null,null,null,0]
[null,null,null,null,null,0,null,null,1,null,1,null,1,null,1,null,1,null,1,null,1,null,1,null,1,null,"d","x",null,0,"d",null,null,null,null,null,null,null,null,null,null,0]
[null,null,null,null,null,0,null,null,1,null,1,null,1,null,1,null,1,null,1,null,1,null,1,null,1,null,"d","x",null,0,"d",null,null,null,null,null,null,null,null,null,null,0]
[null,null,null,null,null,0,null,null,1,null,1,null,1,null,1,null,1,null,1,null,1,null,1,null,1,null,"d","x",null,0,"d",null,null,null,null,null,null,null,null,null,null,0]
[null,null,null,null,null,0,null,null,1,null,1,null,1,null,1,null,1,null,1,null,1,null,1,null,1,null,"d","x",null,0,"d",null,null,null,null,null,null,null,null,null,null,0]
[null,null,null,null,null,0,null,null,1,null,1,null,1,null,1,null,1,null,1,null,1,null,1,null,1,null,"d","x",null,0,"d",null,null,null,null,null,null,null,null,null,null,0]
[null,null,null,null,null,0,null,null,1,null,1,null,1,null,1,null,1,null,1,null,1,null,1,null,1,null,"d","x",null,0,"d",null,null,null,null,null,null,null,null,null,null,0]
[null,null,null,null,null,0,null,null,1,null,1,null,1,null,1,null,1,null,1,null,1,null,1,null,1,null,"d","x",null,0,"d",null,null,null,null,null,null,null,null,null,null,0]
[null,null,null,null,null,0,null,null,1,null,1,null,1,null,1,null,1,null,1,null,1,null,1,null,1,null,"d","x",null,0,"d",null,null,null,null,null,null,null,null,null,null,0]
[null,null,null,null,null,0,null,null,1,null,1,null,1,null,1,null,1,null,1,null,1,null,1,null,1,null,"d","x",null,0,"d",null,null,null,null,null,null,null,null,null,null,0]
[null,null,null,null,null,0,null,null,1,null,1,null,1,null,1,null,1,null,1,null,1,null,1,null,1,null,"d","x",null,0,"d",null,null,null,null,null,null,null,null,null,null,0]
[null,null,null,null,null,0,null,null,1,null,1,null,1,null,1,null,1,null,1,null,1,null,1,null,1,null,"d","x",null,0,"d",null,null,null,null,null,null,null,null,null,null,0]
[null,null,null,null,null,0,null,null,1,null,1,null,1,null,1,null,1,null,1,null,1,null,1,null,1,null,"d","x",null,0,"d",null,null,null,null,null,null,null,null,null,null,0]
[null,null,null,null,null,0,null,null,1,null,1,null,1,null,1,null,1,null,1,null,1,null,1,null,1,null,"d","x",null,0,"d",null,null,null,null,null,null,null,null,null,null,0]
[null,null,null,null,null,0,null,null,1,null,1,null,1,null,1,null,1,null,1,null,1,null,1,null,1,null,"d","x",null,0,"d",null,null,null,null,null,null,null,null,null,null,0]
[null,null,null,null,null,0,null,null,1,null,1,null,1,null,1,null,1,null,1,null,1,null,1,null,1,null,"d","x",null,0,"d",null,null,null,null,null,null,null,null,null,null,0]
[null,null,null,null,null,0,null,null,1,null,1,null,1,null,1,null,1,null,1,null,1,null,1,null,1,null,"d","x",null,0,"d",null,null,null,null,null,null,null,null,null,null,0]
[null,null,null,null,null,0,null,null,1,null,1,null,1,null,1,null,1,null,1,null,1,null,1,null,1,null,"d","x",null,0,"d",null,null,null,null,null,null,null,null,null,null,0]
[null,null,null,null,null,0,null,null,1,null,1,null,1,null,1,null,1,null,1,null,1,null,1,null,1,null,"d","x",null,0,"d",null,null,null,null,null,null,null,null,null,null,0]
[null,null,null,null,null,0,null,null,1,null,1,null,1,null,1,null,1,null,1,null,1,null,1,null,1,null,"d","x",null,0,"d",null,null,null,null,null,null,null,null,null,null,0]
[null,null,null,null,null,0,null,null,1,null,1,null,1,null,1,null,1,null,1,null,1,null,1,null,1,null,"d","x",null,0,"d",null,null,null,null,null,null,null,null,null,null,0]
[null,null,null,null,null,0,null,null,1,null,1,null,1,null,1,null,1,null,1,null,1,null,1,null,1,null,"d","x",null,0,"d",null,null,null,null,null,null,null,null,null,null,0]
[null,null,null,null,null,0,null,null,1,null,1,null,1,null,1,null,1,null,1,null,1,null,1,null,1,null,"d","x",null,0,"d",null,null,null,null,null,null,null,null,null,null,0]
[null,null,null,null,null,0,null,null,1,null,1,null,1,null,1,null,1,null,1,null,1,null,1,null,1,null,"d","x",null,0,"d",null,null,null,null,null,null,null,null,null,null,0]
[null,null,null,null,null,0,null,null,1,null,1,null,1,null,1,null,1,null,1,null,1,null,1,null,1,null,"d","x",null,0,"d",null,null,null,null,null,null,null,null,null,null,0]
[null,null,null,null,null,0,null,null,1,null,1,null,1,null,1,null,1,null,1,null,1,null,1,null,1,null,"d","x",null,0,"d",null,null,null,null,null,null,null,null,null,null,0]
[null,null,null,null,null,0,null,null,1,null,1,null,1,null,1,null,1,null,1,null,1,null,1,null,1,null,"d","x",null,0,"d",null,null,null,null,null,null,null,null,null,null,0]
[null,null,null,null,null,0,null,null,1,null,1,null,1,null,1,null,1,null,1,null,1,null,1,null,1,null,"d","x",null,0,"d",null,null,null,null,null,null,null,null,null,null,0]
[null,null,null,null,null,0,null,null,1,null,1,null,1,null,1,null,1,null,1,null,1,null,1,null,1,null,"d","x",null,0,"d",null,null,null,null,null,null,null,null,null,null,0]
[null,null,null,null,null,0,null,null,1,null,1,null,1,null,1,null,1,null,1,null,1,null,1,null,1,null,"d","x",null,0,"d",null,null,null,null,null,null,null,null,null,null,0]
[null,null,null,null,null,0,null,null,1,null,1,null,1,null,1,null,1,null,1,null,1,null,1,null,1,null,"d","x",null,0,"d",null,null,null,null,null,null,null,null,null,null,0]
[null,null,null,null,null,0,null,null,1,null,1,null,1,null,1,null,1,null,1,null,1,null,1,null,1,null,"d","x",null,0,"d",null,null,null,null,null,null,null,null,null,null,0]
[null,null,null,null,null,0,null,null,1,null,1,null,1,null,1,null,1,null,1,null,1,null,1,null,1,null,"d","x",null,0,"d",null,null,null,null,null,null,null,null,null,null,0]
[null,null,null,null,null,0,null,null,1,null,1,null,1,null,1,null,1,null,1,null,1,null,1,null,1,null,"d","x",null,0,"d",null,null,null,null,null,null,null,null,null,null,0]
[null,null,null,null,null,0,null,null,1,null,1,null,1,null,1,null,1,null,1,null,1,null,1,null,1,null,"d","x",null,0,"d",null,null,null,null,null,null,null,null,null,null,0]
[null,null,null,null,null,0,null,null,1,null,1,null,1,null,1,null,1,null,1,null,1,null,1,null,1,null,"d","x",null,0,"d",null,null,null,null,null,null,null,null,null,null,0]
[null,null,null,null,null,0,null,null,1,null,1,null,1,null,1,null,1,null,1,null,1,null,1,null,1,null,"d","x",null,0,"d",null,null,null,null,null,null,null,null,null,null,0]
[null,null,null,null,null,0,null,null,{"$f":"COUNTBLANK(H902)","v":1},null,{"$f":"COUNTBLANK(J902)","v":1},null,{"$f":"COUNTBLANK(L902)","v":1},null,{"$f":"COUNTBLANK(N902)","v":1},null,{"$f":"COUNTBLANK(P902)","v":1},null,{"$f":"COUNTBLANK(R902)","v":1},null,{"$f":"COUNTBLANK(T902)","v":1},null,{"$f":"COUNTBLANK(V902)","v":1},null,{"$f":"COUNTBLANK(X902)","v":1},null,"d","x",null,0,"d",null,null,null,null,null,null,null,null,null,null,0]
[null,null,null,null,null,0,null,null,1,null,1,null,1,null,1,null,1,null,1,null,1,null,1,null,1,null,"d","x",null,0,"d",null,null,null,null,null,null,null,null,null,null,0]
[null,null,null,null,null,0,null,null,1,null,1,null,1,null,1,null,1,null,1,null,1,null,1,null,1,null,"d","x",null,0,"d",null,null,null,null,null,null,null,null,null,null,0]
[null,null,null,null,null,0,null,null,1,null,1,null,1,null,1,null,1,null,1,null,1,null,1,null,1,null,"d","x",null,0,"d",null,null,null,null,null,null,null,null,null,null,0]
[null,null,null,null,null,0,null,null,1,null,1,null,1,null,1,null,1,null,1,null,1,null,1,null,1,null,"d","x",null,0,"d",null,null,null,null,null,null,null,null,null,null,0]
[null,null,null,null,null,0,null,null,1,null,1,null,1,null,1,null,1,null,1,null,1,null,1,null,1,null,"d","x",null,0,"d",null,null,null,null,null,null,null,null,null,null,0]
[null,null,null,null,null,0,null,null,1,null,1,null,1,null,1,null,1,null,1,null,1,null,1,null,1,null,"d","x",null,0,"d",null,null,null,null,null,null,null,null,null,null,0]
[null,null,null,null,null,0,null,null,1,null,1,null,1,null,1,null,1,null,1,null,1,null,1,null,1,null,"d","x",null,0,"d",null,null,null,null,null,null,null,null,null,null,0]
[null,null,null,null,null,0,null,null,1,null,1,null,1,null,1,null,1,null,1,null,1,null,1,null,1,null,"d","x",null,0,"d",null,null,null,null,null,null,null,null,null,null,0]
[null,null,null,null,null,0,null,null,1,null,1,null,1,null,1,null,1,null,1,null,1,null,1,null,1,null,"d","x",null,0,"d",null,null,null,null,null,null,null,null,null,null,0]
[null,null,null,null,null,0,null,null,1,null,1,null,1,null,1,null,1,null,1,null,1,null,1,null,1,null,"d","x",null,0,"d",null,null,null,null,null,null,null,null,null,null,0]
[null,null,null,null,null,0,null,null,1,null,1,null,1,null,1,null,1,null,1,null,1,null,1,null,1,null,"d","x",null,0,"d",null,null,null,null,null,null,null,null,null,null,0]
[null,null,null,null,null,0,null,null,1,null,1,null,1,null,1,null,1,null,1,null,1,null,1,null,1,null,"d","x",null,0,"d",null,null,null,null,null,null,null,null,null,null,0]
[null,null,null,null,null,0,null,null,1,null,1,null,1,null,1,null,1,null,1,null,1,null,1,null,1,null,"d","x",null,0,"d",null,null,null,null,null,null,null,null,null,null,0]
[null,null,null,null,null,0,null,null,1,null,1,null,1,null,1,null,1,null,1,null,1,null,1,null,1,null,"d","x",null,0,"d",null,null,null,null,null,null,null,null,null,null,0]
[null,null,null,null,null,0,null,null,1,null,1,null,1,null,1,null,1,null,1,null,1,null,1,null,1,null,"d","x",null,0,"d",null,null,null,null,null,null,null,null,null,null,0]
[null,null,null,null,null,{"$f":"9-(I918+K918+M918+O918+Q918+S918+U918++Y918+W918)","v":0},null,null,1,null,1,null,1,null,1,null,1,null,1,null,1,null,1,null,1,null,"d","x",null,{"$f":"D918","v":0},"d",null,null,null,null,null,null,null,null,null,null,0]
[null,null,null,null,null,0,null,null,1,null,1,null,1,null,1,null,1,null,1,null,1,null,1,null,1,null,"d","x",null,0,"d",null,null,null,null,null,null,null,null,null,null,0]
[null,null,null,null,null,0,null,null,1,null,1,null,1,null,1,null,1,null,1,null,1,null,1,null,1,null,"d","x",null,0,"d",null,null,null,null,null,null,null,null,null,null,0]
[null,null,null,null,null,0,null,null,1,null,1,null,1,null,1,null,1,null,1,null,1,null,1,null,1,null,"d","x",null,0,"d",null,null,null,null,null,null,null,null,null,null,0]
[null,null,null,null,null,0,null,null,1,null,1,null,1,null,1,null,1,null,1,null,1,null,1,null,1,null,"d","x",null,0,"d",null,null,null,null,null,null,null,null,null,null,0]
[null,null,null,null,null,0,null,null,1,null,1,null,1,null,1,null,1,null,1,null,1,null,1,null,1,null,"d","x",null,0,"d",null,null,null,null,null,null,null,null,null,null,0]
[null,null,null,null,null,0,null,null,1,null,1,null,1,null,1,null,1,null,1,null,1,null,1,null,1,null,"d","x",null,0,"d",null,null,null,null,null,null,null,null,null,null,0]
[null,null,null,null,null,0,null,null,1,null,1,null,1,null,1,null,1,null,1,null,1,null,1,null,1,null,"d","x",null,0,"d",null,null,null,null,null,null,null,null,null,null,0]
[null,null,null,null,null,0,null,null,1,null,1,null,1,null,1,null,1,null,1,null,1,null,1,null,1,null,"d","x",null,0,"d",null,null,null,null,null,null,null,null,null,null,0]
[null,null,null,null,null,0,null,null,1,null,1,null,1,null,1,null,1,null,1,null,1,null,1,null,1,null,"d","x",null,0,"d",null,null,null,null,null,null,null,null,null,null,0]
[null,null,null,null,null,0,null,null,1,null,1,null,1,null,1,null,1,null,1,null,1,null,1,null,1,null,"d","x",null,0,"d",null,null,null,null,null,null,null,null,null,null,0]
[null,null,null,null,null,0,null,null,1,null,1,null,1,null,1,null,1,null,1,null,1,null,1,null,1,null,"d","x",null,0,"d",null,null,null,null,null,null,null,null,null,null,0]
[null,null,null,null,null,0,null,null,1,null,1,null,1,null,1,null,1,null,1,null,1,null,1,null,1,null,"d","x",null,0,"d",null,null,null,null,null,null,null,null,null,null,0]
[null,null,null,null,null,0,null,null,1,null,1,null,1,null,1,null,1,null,1,null,1,null,1,null,1,null,"d","x",null,0,"d",null,null,null,null,null,null,null,null,null,null,0]
[null,null,null,null,null,0,null,null,1,null,1,null,1,null,1,null,1,null,1,null,1,null,1,null,1,null,"d","x",null,0,"d",null,null,null,null,null,null,null,null,null,null,0]
[null,null,null,null,null,0,null,null,1,null,1,null,1,null,1,null,1,null,1,null,1,null,1,null,1,null,"d","x",null,0,"d",null,null,null,null,null,null,null,null,null,null,0]
[null,null,null,null,null,0,null,null,1,null,1,null,1,null,1,null,1,null,1,null,1,null,1,null,1,null,"d","x",null,0,"d",null,null,null,null,null,null,null,null,null,null,0]
[null,null,null,null,null,0,null,null,1,null,1,null,1,null,1,null,1,null,1,null,1,null,1,null,1,null,"d","x",null,0,"d",null,null,null,null,null,null,null,null,null,null,0]
[null,null,null,null,null,0,null,null,1,null,1,null,1,null,1,null,1,null,1,null,1,null,1,null,1,null,"d","x",null,0,"d",null,null,null,null,null,null,null,null,null,null,0]
[null,null,null,null,null,0,null,null,1,null,1,null,1,null,1,null,1,null,1,null,1,null,1,null,1,null,"d","x",null,0,"d",null,null,null,null,null,null,null,null,null,null,0]
[null,null,null,null,null,0,null,null,1,null,1,null,1,null,1,null,1,null,1,null,1,null,1,null,1,null,"d","x",null,0,"d",null,null,null,null,null,null,null,null,null,null,0]
[null,null,null,null,null,0,null,null,1,null,1,null,1,null,1,null,1,null,1,null,1,null,1,null,1,null,"d","x",null,0,"d",null,null,null,null,null,null,null,null,null,null,0]
[null,null,null,null,null,0,null,null,1,null,1,null,1,null,1,null,1,null,1,null,1,null,1,null,1,null,"d","x",null,0,"d",null,null,null,null,null,null,null,null,null,null,0]
[null,null,null,null,null,0,null,null,1,null,1,null,1,null,1,null,1,null,1,null,1,null,1,null,1,null,"d","x",null,0,"d",null,null,null,null,null,null,null,null,null,null,0]
[null,null,null,null,null,0,null,null,1,null,1,null,1,null,1,null,1,null,1,null,1,null,1,null,1,null,"d","x",null,0,"d",null,null,null,null,null,null,null,null,null,null,0]
[null,null,null,null,null,0,null,null,1,null,1,null,1,null,1,null,1,null,1,null,1,null,1,null,1,null,"d","x",null,0,"d",null,null,null,null,null,null,null,null,null,null,0]
[null,null,null,null,null,0,null,null,1,null,1,null,1,null,1,null,1,null,1,null,1,null,1,null,1,null,"d","x",null,0,"d",null,null,null,null,null,null,null,null,null,null,0]
[null,null,null,null,null,0,null,null,1,null,1,null,1,null,1,null,1,null,1,null,1,null,1,null,1,null,"d","x",null,0,"d",null,null,null,null,null,null,null,null,null,null,0]
[null,null,null,null,null,0,null,null,1,null,1,null,1,null,1,null,1,null,1,null,1,null,1,null,1,null,"d","x",null,0,"d",null,null,null,null,null,null,null,null,null,null,0]
[null,null,null,null,null,0,null,null,1,null,1,null,1,null,1,null,1,null,1,null,1,null,1,null,1,null,"d","x",null,0,"d",null,null,null,null,null,null,null,null,null,null,0]
[null,null,null,null,null,0,null,null,1,null,1,null,1,null,1,null,1,null,1,null,1,null,1,null,1,null,"d","x",null,0,"d",null,null,null,null,null,null,null,null,null,null,0]
[null,null,null,null,null,0,null,null,1,null,1,null,1,null,1,null,1,null,1,null,1,null,1,null,1,null,"d","x",null,0,"d",null,null,null,null,null,null,null,null,null,null,0]
[null,null,null,null,null,0,null,null,1,null,1,null,1,null,1,null,1,null,1,null,1,null,1,null,1,null,"d","x",null,0,"d",null,null,null,null,null,null,null,null,null,null,0]
[null,null,null,null,null,0,null,null,1,null,1,null,1,null,1,null,1,null,1,null,1,null,1,null,1,null,"d","x",null,0,"d",null,null,null,null,null,null,null,null,null,null,0]
[null,null,null,null,null,0,null,null,1,null,1,null,1,null,1,null,1,null,1,null,1,null,1,null,1,null,"d","x",null,0,"d",null,null,null,null,null,null,null,null,null,null,0]
[null,null,null,null,null,0,null,null,1,null,1,null,1,null,1,null,1,null,1,null,1,null,1,null,1,null,"d","x",null,0,"d",null,null,null,null,null,null,null,null,null,null,0]
[null,null,null,null,null,0,null,null,1,null,1,null,1,null,1,null,1,null,1,null,1,null,1,null,1,null,"d","x",null,0,"d",null,null,null,null,null,null,null,null,null,null,0]
[null,null,null,null,null,0,null,null,1,null,1,null,1,null,1,null,1,null,1,null,1,null,1,null,1,null,"d","x",null,0,"d",null,null,null,null,null,null,null,null,null,null,0]
[null,null,null,null,null,0,null,null,1,null,1,null,1,null,1,null,1,null,1,null,1,null,1,null,1,null,"d","x",null,0,"d",null,null,null,null,null,null,null,null,null,null,0]
[null,null,null,null,null,0,null,null,1,null,1,null,1,null,1,null,1,null,1,null,1,null,1,null,1,null,"d","x",null,0,"d",null,null,null,null,null,null,null,null,null,null,0]
[null,null,null,null,null,0,null,null,1,null,1,null,1,null,1,null,1,null,1,null,1,null,1,null,1,null,"d","x",null,0,"d",null,null,null,null,null,null,null,null,null,null,0]
[null,null,null,null,null,0,null,null,1,null,1,null,1,null,1,null,1,null,1,null,1,null,1,null,1,null,"d","x",null,0,"d",null,null,null,null,null,null,null,null,null,null,0]
[null,null,null,null,null,0,null,null,1,null,1,null,1,null,1,null,1,null,1,null,1,null,1,null,1,null,"d","x",null,0,"d",null,null,null,null,null,null,null,null,null,null,0]
[null,null,null,null,null,0,null,null,1,null,1,null,1,null,1,null,1,null,1,null,1,null,1,null,1,null,"d","x",null,0,"d",null,null,null,null,null,null,null,null,null,null,0]
[null,null,null,null,null,0,null,null,1,null,1,null,1,null,1,null,1,null,1,null,1,null,1,null,1,null,"d","x",null,0,"d",null,null,null,null,null,null,null,null,null,null,0]
[null,null,null,null,null,0,null,null,1,null,1,null,1,null,1,null,1,null,1,null,1,null,1,null,1,null,"d","x",null,0,"d",null,null,null,null,null,null,null,null,null,null,0]
[null,null,null,null,null,0,null,null,1,null,1,null,1,null,1,null,1,null,1,null,1,null,1,null,1,null,"d","x",null,0,"d",null,null,null,null,null,null,null,null,null,null,0]
[null,null,null,null,null,0,null,null,1,null,1,null,1,null,1,null,1,null,1,null,1,null,1,null,1,null,"d","x",null,0,"d",null,null,null,null,null,null,null,null,null,null,0]
[null,null,null,null,null,0,null,null,{"$f":"COUNTBLANK(H966)","v":1},null,{"$f":"COUNTBLANK(J966)","v":1},null,{"$f":"COUNTBLANK(L966)","v":1},null,{"$f":"COUNTBLANK(N966)","v":1},null,{"$f":"COUNTBLANK(P966)","v":1},null,{"$f":"COUNTBLANK(R966)","v":1},null,{"$f":"COUNTBLANK(T966)","v":1},null,{"$f":"COUNTBLANK(V966)","v":1},null,{"$f":"COUNTBLANK(X966)","v":1},null,"d","x",null,0,"d",null,null,null,null,null,null,null,null,null,null,0]
[null,null,null,null,null,0,null,null,1,null,1,null,1,null,1,null,1,null,1,null,1,null,1,null,1,null,"d","x",null,0,"d",null,null,null,null,null,null,null,null,null,null,0]
[null,null,null,null,null,0,null,null,1,null,1,null,1,null,1,null,1,null,1,null,1,null,1,null,1,null,"d","x",null,0,"d",null,null,null,null,null,null,null,null,null,null,0]
[null,null,null,null,null,0,null,null,1,null,1,null,1,null,1,null,1,null,1,null,1,null,1,null,1,null,"d","x",null,0,"d",null,null,null,null,null,null,null,null,null,null,0]
[null,null,null,null,null,0,null,null,1,null,1,null,1,null,1,null,1,null,1,null,1,null,1,null,1,null,"d","x",null,0,"d",null,null,null,null,null,null,null,null,null,null,0]
[null,null,null,null,null,0,null,null,1,null,1,null,1,null,1,null,1,null,1,null,1,null,1,null,1,null,"d","x",null,0,"d",null,null,null,null,null,null,null,null,null,null,0]
[null,null,null,null,null,0,null,null,1,null,1,null,1,null,1,null,1,null,1,null,1,null,1,null,1,null,"d","x",null,0,"d",null,null,null,null,null,null,null,null,null,null,0]
[null,null,null,null,null,0,null,null,1,null,1,null,1,null,1,null,1,null,1,null,1,null,1,null,1,null,"d","x",null,0,"d",null,null,null,null,null,null,null,null,null,null,0]
[null,null,null,null,null,0,null,null,1,null,1,null,1,null,1,null,1,null,1,null,1,null,1,null,1,null,"d","x",null,0,"d",null,null,null,null,null,null,null,null,null,null,0]
[null,null,null,null,null,0,null,null,1,null,1,null,1,null,1,null,1,null,1,null,1,null,1,null,1,null,"d","x",null,0,"d",null,null,null,null,null,null,null,null,null,null,0]
[null,null,null,null,null,0,null,null,1,null,1,null,1,null,1,null,1,null,1,null,1,null,1,null,1,null,"d","x",null,0,"d",null,null,null,null,null,null,null,null,null,null,0]
[null,null,null,null,null,0,null,null,1,null,1,null,1,null,1,null,1,null,1,null,1,null,1,null,1,null,"d","x",null,0,"d",null,null,null,null,null,null,null,null,null,null,0]
[null,null,null,null,null,0,null,null,1,null,1,null,1,null,1,null,1,null,1,null,1,null,1,null,1,null,"d","x",null,0,"d",null,null,null,null,null,null,null,null,null,null,0]
[null,null,null,null,null,0,null,null,1,null,1,null,1,null,1,null,1,null,1,null,1,null,1,null,1,null,"d","x",null,0,"d",null,null,null,null,null,null,null,null,null,null,0]
[null,null,null,null,null,0,null,null,1,null,1,null,1,null,1,null,1,null,1,null,1,null,1,null,1,null,"d","x",null,0,"d",null,null,null,null,null,null,null,null,null,null,0]
[null,null,null,null,null,0,null,null,1,null,1,null,1,null,1,null,1,null,1,null,1,null,1,null,1,null,"d","x",null,0,"d",null,null,null,null,null,null,null,null,null,null,0]
[null,null,null,null,null,{"$f":"9-(I982+K982+M982+O982+Q982+S982+U982++Y982+W982)","v":0},null,null,1,null,1,null,1,null,1,null,1,null,1,null,1,null,1,null,1,null,"d","x",null,{"$f":"D982","v":0},"d",null,null,null,null,null,null,null,null,null,null,0]
[null,null,null,null,null,0,null,null,1,null,1,null,1,null,1,null,1,null,1,null,1,null,1,null,1,null,"d","x",null,0,"d",null,null,null,null,null,null,null,null,null,null,0]
[null,null,null,null,null,0,null,null,1,null,1,null,1,null,1,null,1,null,1,null,1,null,1,null,1,null,"d","x",null,0,"d",null,null,null,null,null,null,null,null,null,null,0]
[null,null,null,null,null,0,null,null,1,null,1,null,1,null,1,null,1,null,1,null,1,null,1,null,1,null,"d","x",null,0,"d",null,null,null,null,null,null,null,null,null,null,0]
[null,null,null,null,null,0,null,null,1,null,1,null,1,null,1,null,1,null,1,null,1,null,1,null,1,null,"d","x",null,0,"d",null,null,null,null,null,null,null,null,null,null,0]
[null,null,null,null,null,0,null,null,1,null,1,null,1,null,1,null,1,null,1,null,1,null,1,null,1,null,"d","x",null,0,"d",null,null,null,null,null,null,null,null,null,null,0]
[null,null,null,null,null,0,null,null,1,null,1,null,1,null,1,null,1,null,1,null,1,null,1,null,1,null,"d","x",null,0,"d",null,null,null,null,null,null,null,null,null,null,0]
[null,null,null,null,null,0,null,null,1,null,1,null,1,null,1,null,1,null,1,null,1,null,1,null,1,null,"d","x",null,0,"d",null,null,null,null,null,null,null,null,null,null,0]
[null,null,null,null,null,0,null,null,1,null,1,null,1,null,1,null,1,null,1,null,1,null,1,null,1,null,"d","x",null,0,"d",null,null,null,null,null,null,null,null,null,null,0]
[null,null,null,null,null,0,null,null,1,null,1,null,1,null,1,null,1,null,1,null,1,null,1,null,1,null,"d","x",null,0,"d",null,null,null,null,null,null,null,null,null,null,0]
[null,null,null,null,null,0,null,null,1,null,1,null,1,null,1,null,1,null,1,null,1,null,1,null,1,null,"d","x",null,0,"d",null,null,null,null,null,null,null,null,null,null,0]
[null,null,null,null,null,0,null,null,1,null,1,null,1,null,1,null,1,null,1,null,1,null,1,null,1,null,"d","x",null,0,"d",null,null,null,null,null,null,null,null,null,null,0]
[null,null,null,null,null,0,null,null,1,null,1,null,1,null,1,null,1,null,1,null,1,null,1,null,1,null,"d","x",null,0,"d",null,null,null,null,null,null,null,null,null,null,0]
[null,null,null,null,null,0,null,null,1,null,1,null,1,null,1,null,1,null,1,null,1,null,1,null,1,null,"d","x",null,0,"d",null,null,null,null,null,null,null,null,null,null,0]
[null,null,null,null,null,0,null,null,1,null,1,null,1,null,1,null,1,null,1,null,1,null,1,null,1,null,"d","x",null,0,"d",null,null,null,null,null,null,null,null,null,null,0]
[null,null,null,null,null,0,null,null,1,null,1,null,1,null,1,null,1,null,1,null,1,null,1,null,1,null,"d","x",null,0,"d",null,null,null,null,null,null,null,null,null,null,0]
[null,null,null,null,null,0,null,null,1,null,1,null,1,null,1,null,1,null,1,null,1,null,1,null,1,null,"d","x",null,0,"d",null,null,null,null,null,null,null,null,null,null,0]
[null,null,null,null,null,0,null,null,1,null,1,null,1,null,1,null,1,null,1,null,1,null,1,null,1,null,"d","x",null,0,"d",null,null,null,null,null,null,null,null,null,null,0]
[null,null,null,null,null,0,null,null,1,null,1,null,1,null,1,null,1,null,1,null,1,null,1,null,1,null,"d","x",null,0,"d",null,null,null,null,null,null,null,null,null,null,0]
[null,null,null,null,null,0,null,null,1,null,1,null,1,null,1,null,1,null,1,null,1,null,1,null,1,null,"d","x",null,0,"d",null,null,null,null,null,null,null,null,null,null,0]